ServiceArea,Service,ResponsibleUnit,ExpensesType,Narrative,DatePaid,Invoice,TransactionReference,NetAmount,CapitalRevenue,SupplierID,SupplierName,Postcode,UnrecoveredVAT
Director Of Planning & Economy,Economic Development Total,Economic Development,Other Fees & Service,COMMUNITY HUB,20/05/2022,REDACTED INVOICE NUMBER,158814,75,Revenue,29030,1st Warley Scout Group,CM13 3BH,0
Director Of Planning & Economy,Economic Development Total,Economic Development,Other Fees & Service,COMMUNITY HUB,20/05/2022,REDACTED INVOICE NUMBER,158813,112.5,Revenue,29030,1st Warley Scout Group,CM13 3BH,0
Director Of Environment,Open Spaces,Recreation Areas,Purchases - Materials,PEST CONTROL - KGPF,24/05/2022,REDACTED INVOICE NUMBER,158868,440,Revenue,29,A1 Environmental Pest Control,CM13 1LH,0
Director Of Environment,Open Spaces,Recreation Areas,Purchases - Materials,PEST CONTROL - KGPF,24/05/2022,REDACTED INVOICE NUMBER,159468,440,Revenue,29,A1 Environmental Pest Control,CM13 1LH,0
Hra Expenditure,Repairs And Maintenance,Responsive Repairs Management,R&M Bldgs - General,LABOUR CHARGE,13/05/2022,REDACTED INVOICE NUMBER,158618,65,Revenue,49,Access Automation,CO15 4XL,0
Hra Expenditure,Repairs And Maintenance,Responsive Repairs Management,R&M Bldgs - General,Replacement Door ,13/05/2022,REDACTED INVOICE NUMBER,158619,1625,Revenue,49,Access Automation,CO15 4XL,0
Director Of Environment,Parking,Parking Services,Bank Charges,TRANSACTION CHARGES - MARCH '22,03/05/2022,REDACTED INVOICE NUMBER,159263,412.44,Revenue,28063,Aib Merchant Services (Pg Payments),.,0
Director Of Environment,"Communities, Health & Leisure",Sports & Social Venues,Contracted Services,LARKINS PLAYING FIELDS - 2ND PAYMENT,20/05/2022,REDACTED INVOICE NUMBER,159738,1500,Revenue,28609,Alan Lamb Associates,CB7 4DH,0
Director Corporate Resources,Asset Management,Asset Management,R&M Bldgs - General,REPAIRS - HIGH STREET TOILETS,06/05/2022,REDACTED INVOICE NUMBER,158879,357.34,Revenue,128,All Ways Wired Ltd,CM13 1PU,0
Director Corporate Resources,Office Accommodation,Office Facilities Management,R&M Bldgs - General,ELECTRICAL WORKS - TOWN HALL,06/05/2022,REDACTED INVOICE NUMBER,158880,348.7,Revenue,128,All Ways Wired Ltd,CM13 1PU,0
Capex Director Of C Resources,Asset Management,Asset Management Strategy,Enhancements,CAR PARK BARRIER REPAIRS. BRENTWOOD CENT,24/05/2022,REDACTED INVOICE NUMBER,159718,1441.5,Capital,128,All Ways Wired Ltd,CM13 1PU,0
Hra Expenditure,Supervision And Management,Rent Collection & Recovery,Bank Charges,PAYMENT PROCESSING,03/05/2022,REDACTED INVOICE NUMBER,159262,474.74,Revenue,132,Allpay.Net Limited,HR1 3SE,0
Hra Expenditure,Supervision And Management,Rent Collection & Recovery,Bank Charges,PAYMENT PROCESSING,03/05/2022,REDACTED INVOICE NUMBER,159261,122.99,Revenue,132,Allpay.Net Limited,HR1 3SE,0
Hra Expenditure,Supervision And Management,Rent Collection & Recovery,Bank Charges,PAYMENT PROCESSING,17/05/2022,REDACTED INVOICE NUMBER,159450,115.52,Revenue,132,Allpay.Net Limited,HR1 3SE,0
Hra Expenditure,Supervision And Management,Rent Collection & Recovery,Credit Card Charges,PAYMENT PROCESSING,17/05/2022,REDACTED INVOICE NUMBER,159451,439.37,Revenue,132,Allpay.Net Limited,HR1 3SE,0
Balance Sheet,Balance Sheet,Balance Sheet,Homes For Ukraine,HOMES FOR UKRAINE,17/05/2022,REDACTED INVOICE NUMBER,159931,200,Revenue,218499P,REDACTED PERSONAL DATA,REDACTED,0
Balance Sheet,Balance Sheet,Balance Sheet,Homes For Ukraine,HOMES FOR UKRAINE,10/05/2022,REDACTED INVOICE NUMBER,159647,400,Revenue,217839P,REDACTED PERSONAL DATA,REDACTED,0
Hra Expenditure,"Rents, Rates & Other Charges","Rents, Rates & Other Charges",Water,WATER SUPPLY,13/05/2022,REDACTED INVOICE NUMBER,159106,333.11,Revenue,28194,Anglian Water - Domestic Properties,PE29 6XU,0
Hra Expenditure,"Rents, Rates & Other Charges","Rents, Rates & Other Charges",Water,WATER SUPPLY,13/05/2022,REDACTED INVOICE NUMBER,159108,330.74,Revenue,28194,Anglian Water - Domestic Properties,PE29 6XU,0
Balance Sheet,Balance Sheet,Balance Sheet,Homes For Ukraine,HOMES FOR UKRAINE,17/05/2022,REDACTED INVOICE NUMBER,159930,200,Revenue,218498P,REDACTED PERSONAL DATA,REDACTED,0
Chief Executive,Executive Board,Senior Leadership Team,Project Management Support,ASSET MANAGEMENT CONSULTING ,24/05/2022,REDACTED INVOICE NUMBER,159169,2500,Revenue,29014,Apple Thatch Property Consultants Ltd,TS18 1LS,0
Capex Director Of Environment,Corporate Services,King George'S Redevelopment,Contracted Services,KING GEORGES PAVILLION DEVELOPMENT,31/05/2022,REDACTED INVOICE NUMBER,159733,1365,Capital,28277,Ark Consultancy Ltd,B18 6DS,0
Director Of Environment,Open Spaces,Amenity Greens,R&M Grounds - Treework,TREE WORKS - VARIOUS,13/05/2022,REDACTED INVOICE NUMBER,159548,9671.5,Revenue,24920,Ascending Arbs Tree Services Ltd,CM4 0BL,0
Director Of Environment,Env Health & Licensing Admin,Env Health & Licensing Admin,Vehicle R&M - External,VEHICLE REPAIRS - VARIOUS,06/05/2022,REDACTED INVOICE NUMBER,155077,30,Revenue,26506,Asm Truck Diagnostics Ltd,SS14 3EU,0
Director Of Environment,Env Health & Licensing Admin,Env Health & Licensing Admin,Vehicle R&M - External,VEHICLE REPAIRS - VARIOUS,06/05/2022,REDACTED INVOICE NUMBER,155348,40,Revenue,26506,Asm Truck Diagnostics Ltd,SS14 3EU,0
Director Of Environment,Vehicle Fleet Management,Vehicle Fleet Management,Vehicle Replacement Parts,VEHICLE REPAIRS - VARIOUS,06/05/2022,REDACTED INVOICE NUMBER,155077,60,Revenue,26506,Asm Truck Diagnostics Ltd,SS14 3EU,0
Director Of Environment,Vehicle Fleet Management,Vehicle Fleet Management,Vehicle R&M - External,VEHICLE REPAIRS - VARIOUS,06/05/2022,REDACTED INVOICE NUMBER,158428,515,Revenue,26506,Asm Truck Diagnostics Ltd,SS14 3EU,0
Director Of Environment,Vehicle Fleet Management,Vehicle Fleet Management,Vehicle R&M - External,VEHICLE REPAIRS - VARIOUS,06/05/2022,REDACTED INVOICE NUMBER,155077,310,Revenue,26506,Asm Truck Diagnostics Ltd,SS14 3EU,0
Director Of Environment,Vehicle Fleet Management,Vehicle Fleet Management,Vehicle R&M - External,VEHICLE REPAIRS - VARIOUS,06/05/2022,REDACTED INVOICE NUMBER,155348,300,Revenue,26506,Asm Truck Diagnostics Ltd,SS14 3EU,0
Director Of Environment,Vehicle Fleet Management,Vehicle Fleet Management,Vehicle R&M - External,VEHICLE REPAIRS - VARIOUS,06/05/2022,REDACTED INVOICE NUMBER,158427,340,Revenue,26506,Asm Truck Diagnostics Ltd,SS14 3EU,0
Director Of Environment,Vehicle Fleet Management,Vehicle Fleet Management,Vehicle R&M - External,VEHICLE REPAIRS - VARIOUS,06/05/2022,REDACTED INVOICE NUMBER,158426,400,Revenue,26506,Asm Truck Diagnostics Ltd,SS14 3EU,0
Director Of Environment,Vehicle Fleet Management,Vehicle Fleet Management,Vehicle R&M - External,VEHICLE REPAIRS,06/05/2022,REDACTED INVOICE NUMBER,158429,1240,Revenue,26506,Asm Truck Diagnostics Ltd,SS14 3EU,0
Director Of Environment,Vehicle Fleet Management,Vehicle Fleet Management,Vehicle R&M - External,VEHICLE REPAIRS,06/05/2022,REDACTED INVOICE NUMBER,158436,571.25,Revenue,26506,Asm Truck Diagnostics Ltd,SS14 3EU,0
Director Of Environment,Vehicle Fleet Management,Vehicle Fleet Management,Vehicle R&M - External,VEHICLE REPAIRS,20/05/2022,REDACTED INVOICE NUMBER,158774,340,Revenue,26506,Asm Truck Diagnostics Ltd,SS14 3EU,0
Director Of Environment,Vehicle Fleet Management,Vehicle Fleet Management,Vehicle R&M - External,VEHICLE REPAIRS,20/05/2022,REDACTED INVOICE NUMBER,158784,508.5,Revenue,26506,Asm Truck Diagnostics Ltd,SS14 3EU,0
Director Of Environment,Vehicle Fleet Management,Vehicle Fleet Management,Vehicle R&M - External,VEHICLE REPAIRS,20/05/2022,REDACTED INVOICE NUMBER,158792,340,Revenue,26506,Asm Truck Diagnostics Ltd,SS14 3EU,0
Director Of Environment,Vehicle Fleet Management,Vehicle Fleet Management,Vehicle R&M - External,VEHICLE REPAIRS,20/05/2022,REDACTED INVOICE NUMBER,158775,340,Revenue,26506,Asm Truck Diagnostics Ltd,SS14 3EU,0
Director Of Environment,Vehicle Fleet Management,Vehicle Fleet Management,Vehicle R&M - External,VEHICLE REPAIRS,20/05/2022,REDACTED INVOICE NUMBER,158773,340.00,Revenue,26506,Asm Truck Diagnostics Ltd,SS14 3EU,0
Director Of Environment,Vehicle Fleet Management,Vehicle Fleet Management,Vehicle R&M - External,VEHICLE REPAIRS,20/05/2022,REDACTED INVOICE NUMBER,158776,340,Revenue,26506,Asm Truck Diagnostics Ltd,SS14 3EU,0
Director Of Environment,Vehicle Fleet Management,Vehicle Fleet Management,Vehicle R&M - External,VEHICLE REPAIRS,20/05/2022,REDACTED INVOICE NUMBER,158777,340,Revenue,26506,Asm Truck Diagnostics Ltd,SS14 3EU,0
Director Of Environment,Vehicle Fleet Management,Vehicle Fleet Management,Vehicle R&M - External,VEHICLE REPAIRS,20/05/2022,REDACTED INVOICE NUMBER,158780,340,Revenue,26506,Asm Truck Diagnostics Ltd,SS14 3EU,0
Director Of Environment,Vehicle Fleet Management,Vehicle Fleet Management,Vehicle R&M - External,VEHICLE REPAIRS,27/05/2022,REDACTED INVOICE NUMBER,159207,340,Revenue,26506,Asm Truck Diagnostics Ltd,SS14 3EU,0
Director Of Environment,Vehicle Fleet Management,Vehicle Fleet Management,Vehicle R&M - External,VEHICLE REPAIRS,27/05/2022,REDACTED INVOICE NUMBER,159209,340,Revenue,26506,Asm Truck Diagnostics Ltd,SS14 3EU,0
Director Of Environment,Vehicle Fleet Management,Vehicle Fleet Management,Vehicle R&M - External,VEHICLE REPAIRS,27/05/2022,REDACTED INVOICE NUMBER,159208,340,Revenue,26506,Asm Truck Diagnostics Ltd,SS14 3EU,0
Director Of Environment,Vehicle Fleet Management,Vehicle Fleet Management,Vehicle R&M - External,VEHICLE REPAIRS,27/05/2022,REDACTED INVOICE NUMBER,159211,340,Revenue,26506,Asm Truck Diagnostics Ltd,SS14 3EU,0
Director Of Environment,Vehicle Fleet Management,Vehicle Fleet Management,Vehicle R&M - External,VEHICLE REPAIRS,31/05/2022,REDACTED INVOICE NUMBER,159424,340,Revenue,26506,Asm Truck Diagnostics Ltd,SS14 3EU,0
Director Of Environment,Vehicle Fleet Management,Vehicle Fleet Management,Vehicle R&M - External,VEHICLE REPAIRS,31/05/2022,REDACTED INVOICE NUMBER,159423,530.75,Revenue,26506,Asm Truck Diagnostics Ltd,SS14 3EU,0
Director Of Environment,Vehicle Fleet Management,Vehicle Fleet Management,Vehicle R&M - External,VEHICLE REPAIRS,31/05/2022,REDACTED INVOICE NUMBER,159425,340,Revenue,26506,Asm Truck Diagnostics Ltd,SS14 3EU,0
Director Of Law & Governance,Electoral Services,Register Of Electors,Consultancy Fees,HEALTH CHECKS,17/05/2022,REDACTED INVOICE NUMBER,158884,3067,Revenue,232,Association Of Electoral Administrators,L16 5HH,0
Director Of Environment,Street Services,Street Cleansing,Sub-Contractors,JET WASH - NEW RD UNDERPASS,20/05/2022,REDACTED INVOICE NUMBER,159496,400.00,Revenue,241,Atlantis Drain + Jetting Service,CM15 0AX,0
Capex Director Of Housing,Housing - Hra,Boiler/ Heating  Replacement,Enhancements,PPP EXCLUSIONS - MAR '22,13/05/2022,REDACTED INVOICE NUMBER,158222,11412.52,Capital,27759,Axis Europe,E15 4PN,0
Capex Director Of Housing,Housing - Hra,Disabled Adaptations,Enhancements,PPP EXCLUSIONS - MAR '22,13/05/2022,REDACTED INVOICE NUMBER,158222,5858.38,Capital,27759,Axis Europe,E15 4PN,0
Capex Director Of Housing,Housing - Hra,Housing Stock - Doors,Enhancements,PPP EXCLUSIONS - MAR '22,13/05/2022,REDACTED INVOICE NUMBER,158222,658.2,Capital,27759,Axis Europe,E15 4PN,0
Capex Director Of Housing,Housing - Hra,Housing Stock -Health & Safety,Enhancements,INTERIM VALUATION - DRAKE HOUSE,13/05/2022,REDACTED INVOICE NUMBER,158866,64149.62,Capital,27759,Axis Europe,E15 4PN,0
Capex Director Of Housing,Housing - Hra,Housing Stock -Health & Safety,Enhancements,INTERIM VALUATION - JUNIPER COURT,13/05/2022,REDACTED INVOICE NUMBER,158867,12392.15,Capital,27759,Axis Europe,E15 4PN,0
Capex Director Of Housing,Housing - Hra,Housing Stock -Health & Safety,Enhancements,INTERIM VALUATION - MAYFLOWER HOUSE,13/05/2022,REDACTED INVOICE NUMBER,158865,1149.5,Capital,27759,Axis Europe,E15 4PN,0
Capex Director Of Housing,Housing - Hra,Housing Stock Re-Roofing,Enhancements,PPP EXCLUSIONS - MAR '22,13/05/2022,REDACTED INVOICE NUMBER,158222,2608.82,Capital,27759,Axis Europe,E15 4PN,0
Capex Director Of Housing,Housing - Hra,Housing Stock Rewiring,Enhancements,PPP EXCLUSIONS - MAR '22,13/05/2022,REDACTED INVOICE NUMBER,158222,1877.31,Capital,27759,Axis Europe,E15 4PN,0
Hra Expenditure,Repairs And Maintenance,Responsive Repairs Management,R&M Bldgs - Asbestos,PPP EXCLUSIONS - MAR '22,13/05/2022,REDACTED INVOICE NUMBER,158222,390.35,Revenue,27759,Axis Europe,E15 4PN,0
Hra Expenditure,Repairs And Maintenance,Responsive Repairs Management,R&M Bldgs - General,PPP EXCLUSIONS - MAR '22,13/05/2022,REDACTED INVOICE NUMBER,158222,19772.16,Revenue,27759,Axis Europe,E15 4PN,0
Capex Director Of Housing,Housing - Hra,Housing Stock -Health & Safety,Enhancements,INTERIM VALUATION - GIBRALTAR HOUSE,20/05/2022,REDACTED INVOICE NUMBER,159959,40272,Capital,27759,Axis Europe,E15 4PN,0
Capex Director Of Housing,Housing - Hra,Central Heating,Enhancements,INSTALL HEATING SYSTEM - ST GEORGES COUR,27/05/2022,REDACTED INVOICE NUMBER,159252,183873.02,Capital,27759,Axis Europe,E15 4PN,0
Capex Director Of Housing,Housing - Hra,Central Heating,Enhancements,INSTALL HEATING - VICTORIA COURT,27/05/2022,REDACTED INVOICE NUMBER,159274,168971.45,Capital,27759,Axis Europe,E15 4PN,0
Capex Director Of Housing,Housing - Affordable Housing,Brookfield Project,Enhancements,COMMUNAL - APR '22,31/05/2022,REDACTED INVOICE NUMBER,159531,1870.05,Capital,27759,Axis Europe,E15 4PN,0
Capex Director Of Housing,Housing - Hra,Housing Stock - Lifts,Enhancements,COMMUNAL - APR '22,31/05/2022,REDACTED INVOICE NUMBER,159531,1424.69,Capital,27759,Axis Europe,E15 4PN,0
Capex Director Of Housing,Housing - Hra,Housing Stock Rewiring,Enhancements,EICR  - APR '22,31/05/2022,REDACTED INVOICE NUMBER,159533,96849.45,Capital,27759,Axis Europe,E15 4PN,0
Capex Director Of Housing,Housing - Hra,Housing Stock Rewiring,Enhancements,EMERGENCY LIGHTING - APR '22,31/05/2022,REDACTED INVOICE NUMBER,159529,22355.63,Capital,27759,Axis Europe,E15 4PN,0
Capex Director Of Housing,Housing - Hra,Housing Stock Rewiring,Enhancements,PPP EXCLUSIONS - APR '22,31/05/2022,REDACTED INVOICE NUMBER,159525,3666.01,Capital,27759,Axis Europe,E15 4PN,0
Capex Director Of Housing,Housing - Hra,Major Voids,Enhancements,VOIDS - APR '22,31/05/2022,REDACTED INVOICE NUMBER,159530,27444.31,Capital,27759,Axis Europe,E15 4PN,0
Hra Expenditure,Repairs And Maintenance,Planned Maintenance,R&M Fix & Fit - Electrical,COMMUNAL - APR '22,31/05/2022,REDACTED INVOICE NUMBER,159531,345.22,Revenue,27759,Axis Europe,E15 4PN,0
Hra Expenditure,Repairs And Maintenance,Planned Maintenance,R&M Fix & Fit - Electrical,EICR  - APR '22,31/05/2022,REDACTED INVOICE NUMBER,159533,1038.89,Revenue,27759,Axis Europe,E15 4PN,0
Hra Expenditure,Repairs And Maintenance,Planned Maintenance,R&M Fix & Fit - Lifts,COMMUNAL - APR '22,31/05/2022,REDACTED INVOICE NUMBER,159531,667.46,Revenue,27759,Axis Europe,E15 4PN,0
Hra Expenditure,Repairs And Maintenance,Planned Maintenance,R&M Fix & Fit - Tanks,WATER HYGIENE PROGRAMME - APR '22,31/05/2022,REDACTED INVOICE NUMBER,159534,3895.71,Revenue,27759,Axis Europe,E15 4PN,0
Hra Expenditure,Repairs And Maintenance,Responsive Repairs Management,R&M Bldgs - Asbestos,PPP EXCLUSIONS - APR '22,31/05/2022,REDACTED INVOICE NUMBER,159525,435.69,Revenue,27759,Axis Europe,E15 4PN,0
Hra Expenditure,Repairs And Maintenance,Responsive Repairs Management,R&M Bldgs - General,PPG EXCLUSIONS - APR '22,31/05/2022,REDACTED INVOICE NUMBER,159528,352.58,Revenue,27759,Axis Europe,E15 4PN,0
Hra Expenditure,Repairs And Maintenance,Responsive Repairs Management,R&M Bldgs - General,PPP EXCLUSIONS - APR '22,31/05/2022,REDACTED INVOICE NUMBER,159525,11221.14,Revenue,27759,Axis Europe,E15 4PN,0
Hra Expenditure,Repairs And Maintenance,Responsive Repairs Management,R&M Fix & Fit - Communal,COMMUNAL - APR '22,31/05/2022,REDACTED INVOICE NUMBER,159531,9190.26,Revenue,27759,Axis Europe,E15 4PN,0
Hra Expenditure,Repairs And Maintenance,Responsive Repairs Management,R&M Fix & Fit - Electrical,COMMUNAL - APR '22,31/05/2022,REDACTED INVOICE NUMBER,159531,1017.52,Revenue,27759,Axis Europe,E15 4PN,0
Hra Expenditure,Repairs And Maintenance,Responsive Repairs Management,R&M Fix & Fit - Electrical,EICR  - APR '22,31/05/2022,REDACTED INVOICE NUMBER,159533,28186.64,Revenue,27759,Axis Europe,E15 4PN,0
Hra Expenditure,Repairs And Maintenance,Responsive Repairs Management,R&M Fix & Fit - Electrical,EMERGENCY LIGHTING - APR '22,31/05/2022,REDACTED INVOICE NUMBER,159529,759.82,Revenue,27759,Axis Europe,E15 4PN,0
Hra Expenditure,Repairs And Maintenance,Responsive Repairs Management,R&M Fix & Fit - Gas Repairs,COMMERCIAL GAS - APR '22,31/05/2022,REDACTED INVOICE NUMBER,159527,237.78,Revenue,27759,Axis Europe,E15 4PN,0
Hra Expenditure,Repairs And Maintenance,Responsive Repairs Management,R&M Fix & Fit - Gas Repairs,GAS EXCLUSIONS - APR '22,31/05/2022,REDACTED INVOICE NUMBER,159526,25.82,Revenue,27759,Axis Europe,E15 4PN,0
Hra Expenditure,Repairs And Maintenance,Responsive Void Repairs,R&M Bldgs - General,VOIDS - APR '22,31/05/2022,REDACTED INVOICE NUMBER,159530,20802.57,Revenue,27759,Axis Europe,E15 4PN,0
Hra Expenditure,Repairs And Maintenance,Responsive Void Repairs,R&M Bldgs - Ppp,VOIDS - APR '22,31/05/2022,REDACTED INVOICE NUMBER,159530,490,Revenue,27759,Axis Europe,E15 4PN,0
Capex Director Of Housing,Housing - Hra,Housing Stock - Doors,Enhancements,FRA Works - 10no Blocks,20/05/2022,REDACTED INVOICE NUMBER,159621,14000,Capital,28436,Baily Garner Llp,SE9 5DY,0
Capex Director Of Housing,Housing - Hra,Housing Stock - Doors,Enhancements,FRA Works - 10no Blocks,27/05/2022,REDACTED INVOICE NUMBER,159620,1020,Capital,28436,Baily Garner Llp,SE9 5DY,0
Director Of Environment,Open Spaces,Recreation Areas,R&M Grounds - Treework,TREE WORKS,24/05/2022,REDACTED INVOICE NUMBER,159912,2000,Revenue,304,Bartlett Tree Experts,CM1 3QF,0
Director Of Environment,Open Spaces,Recreation Areas,R&M Grounds - Treework,TREE WORKS,31/05/2022,REDACTED INVOICE NUMBER,159913,360,Revenue,304,Bartlett Tree Experts,CM1 3QF,0
Capex Director Of Housing,Housing - Affordable Housing,Harewood Rd Dev,Enhancements,HAREWOOD REGENERATION,31/05/2022,REDACTED INVOICE NUMBER,159755,12308.06,Capital,305,Barton Willmore,RG1 3BE,0
Director Corporate Resources,Council Tax & Nndr,Council Tax & Nndr Team,Contracted Services,Annual Service Charge 2022/23,17/05/2022,REDACTED INVOICE NUMBER,159943,63619.89,Revenue,306,Basildon Borough Council,SS14 0DF,0
Director Corporate Resources,Revs & Bens Customer Support,Revenue Support,Contracted Services,Annual Service Charge 2022/23,17/05/2022,REDACTED INVOICE NUMBER,159943,38171.93,Revenue,306,Basildon Borough Council,SS14 0DF,0
Capex Director Of C Resources,Asset Management,Asset Management Strategy,Enhancements,FURNITURE,24/05/2022,REDACTED INVOICE NUMBER,159218,6456.16,Capital,23820,Bates Office Services Limited,ME2 2LS,0
Director Of Environment,Parking,Parking Services,Enforcement,PARTS,06/05/2022,REDACTED INVOICE NUMBER,158407,493,Revenue,329,Bemrose Booth Ltd,HU7 0XY,0
Director Of Environment,Parking,Parking Services,Enforcement,PARKING SERVICES,24/05/2022,REDACTED INVOICE NUMBER,159162,255,Revenue,329,Bemrose Booth Ltd,HU7 0XY,0
Director Of Environment,Parking,Parking Services,Tickets & Receipts,PERMITS,31/05/2022,REDACTED INVOICE NUMBER,159386,1111.14,Revenue,329,Bemrose Booth Ltd,HU7 0XY,0
Director Housing & Enforcement,Homelessness,Homelessness Prevention,Rent Deposit Scheme,RENT DEPOSIT,10/05/2022,REDACTED INVOICE NUMBER,159258,2884.6,Revenue,339,Beresfords Commerical Ltd,CM14 4DB,0
Director Of Law & Governance,Legal Services & Data Protect,Legal Services & Data Protect,Legal Fees,COMMITAL APP,13/05/2022,REDACTED INVOICE NUMBER,158766,900,Revenue,359,Birketts Llp,CM2 0AP,0
Director Of Law & Governance,Legal Services & Data Protect,Legal Services & Data Protect,Legal Fees,S106 MAPLE CLOSE & SEVEN ARCHES,13/05/2022,REDACTED INVOICE NUMBER,158759,0,Revenue,359,Birketts Llp,CM2 0AP,0
Director Of Law & Governance,Legal Services & Data Protect,Legal Services & Data Protect,Legal Fees,WASH ROAD BATTERY STORAGE SITE,17/05/2022,REDACTED INVOICE NUMBER,158255,5287,Revenue,359,Birketts Llp,CM2 0AP,0
Director Of Law & Governance,Legal Services & Data Protect,Legal Services & Data Protect,Legal Fees,DISREPAIR,24/05/2022,REDACTED INVOICE NUMBER,159807,539,Revenue,359,Birketts Llp,CM2 0AP,0
Director Of Law & Governance,Legal Services & Data Protect,Legal Services & Data Protect,Legal Fees,POSSESSION,24/05/2022,REDACTED INVOICE NUMBER,159806,537.5,Revenue,359,Birketts Llp,CM2 0AP,0
Director Of Law & Governance,Legal Services & Data Protect,Legal Services & Data Protect,Legal Fees,DISREPAIR,24/05/2022,REDACTED INVOICE NUMBER,159811,110.5,Revenue,359,Birketts Llp,CM2 0AP,0
Director Of Law & Governance,Legal Services & Data Protect,Legal Services & Data Protect,Legal Fees,DISREPAIR,24/05/2022,REDACTED INVOICE NUMBER,159803,103.5,Revenue,359,Birketts Llp,CM2 0AP,0
Capex Director Of Housing,Housing - Affordable Housing,Brookfield Project,Enhancements,DEVELOPMENT AT BROOKFIELD CLOSE,27/05/2022,REDACTED INVOICE NUMBER,159630,2455,Capital,359,Birketts Llp,CM2 0AP,0
Director Of Law & Governance,Legal Services & Data Protect,Legal Services & Data Protect,Court Fees,POSSESSION,27/05/2022,REDACTED INVOICE NUMBER,159812,108,Revenue,359,Birketts Llp,CM2 0AP,0
Director Of Law & Governance,Legal Services & Data Protect,Legal Services & Data Protect,Legal Fees,DISREPAIR,27/05/2022,REDACTED INVOICE NUMBER,159805,465.5,Revenue,359,Birketts Llp,CM2 0AP,0
Director Of Law & Governance,Legal Services & Data Protect,Legal Services & Data Protect,Legal Fees,POSSESSION,27/05/2022,REDACTED INVOICE NUMBER,159631,283,Revenue,359,Birketts Llp,CM2 0AP,0
Director Of Law & Governance,Legal Services & Data Protect,Legal Services & Data Protect,Legal Fees,DISREPAIR,27/05/2022,REDACTED INVOICE NUMBER,159804,765.5,Revenue,359,Birketts Llp,CM2 0AP,0
Director Of Law & Governance,Legal Services & Data Protect,Legal Services & Data Protect,Legal Fees,INJUNCTION,27/05/2022,REDACTED INVOICE NUMBER,159808,235.5,Revenue,359,Birketts Llp,CM2 0AP,0
Director Of Law & Governance,Legal Services & Data Protect,Legal Services & Data Protect,Legal Fees,POSSESSION,27/05/2022,REDACTED INVOICE NUMBER,159812,359.5,Revenue,359,Birketts Llp,CM2 0AP,0
Director Of Law & Governance,Legal Services & Data Protect,Legal Services & Data Protect,Legal Fees,SUCCESSION ADVICE,27/05/2022,REDACTED INVOICE NUMBER,159810,960.5,Revenue,359,Birketts Llp,CM2 0AP,0
Director Of Law & Governance,Legal Services & Data Protect,Legal Services & Data Protect,Legal Fees,DISREPAIR,27/05/2022,REDACTED INVOICE NUMBER,159632,266,Revenue,359,Birketts Llp,CM2 0AP,0
Director Of Law & Governance,Legal Services & Data Protect,Legal Services & Data Protect,Legal Fees,"CLAY HALL, DAYS LANE - VAT ONLY",27/05/2022,REDACTED INVOICE NUMBER,159264,0.00,Revenue,359,Birketts Llp,CM2 0AP,0
Director Of Law & Governance,Legal Services & Data Protect,Legal Services & Data Protect,Legal Fees,COMMITAL APP,27/05/2022,REDACTED INVOICE NUMBER,159809,263.5,Revenue,359,Birketts Llp,CM2 0AP,0
Director Of Law & Governance,Legal Services & Data Protect,Legal Services & Data Protect,Legal Fees,DISREPAIR,27/05/2022,REDACTED INVOICE NUMBER,159633,345.5,Revenue,359,Birketts Llp,CM2 0AP,0
Director Of Law & Governance,Legal Services & Data Protect,Legal Services & Data Protect,Legal Fees,WATES WAY,27/05/2022,REDACTED INVOICE NUMBER,159287,0.00,Revenue,359,Birketts Llp,CM2 0AP,0
Director Of Law & Governance,Legal Services & Data Protect,Legal Services & Data Protect,Legal Fees,RIGHT TO BUY,31/05/2022,REDACTED INVOICE NUMBER,160602,425.00,Revenue,359,Birketts Llp,CM2 0AP,0
Director Of Law & Governance,Legal Services & Data Protect,Legal Services & Data Protect,Legal Fees,ADVICE - MOBILE PHONE MAST MAS,31/05/2022,REDACTED INVOICE NUMBER,159499,6100,Revenue,359,Birketts Llp,CM2 0AP,0
Director Of Law & Governance,Legal Services & Data Protect,Legal Services & Data Protect,Legal Fees,GENERAL ADVICE FILE,31/05/2022,REDACTED INVOICE NUMBER,159532,165.00,Revenue,359,Birketts Llp,CM2 0AP,0
Director Of Law & Governance,Legal Services & Data Protect,Legal Services & Data Protect,Legal Fees,HARTSWOOD GOLF SHOP LEASE,31/05/2022,REDACTED INVOICE NUMBER,159456,2000,Revenue,359,Birketts Llp,CM2 0AP,0
Director Of Law & Governance,Legal Services & Data Protect,Legal Services & Data Protect,Planning Fees,GENERAL ADVICE FILE,31/05/2022,REDACTED INVOICE NUMBER,159532,90.61,Revenue,359,Birketts Llp,CM2 0AP,0
Director Of Law & Governance,Legal Services & Data Protect,Legal Services & Data Protect,Search Fees,RIGHT TO BUY,31/05/2022,REDACTED INVOICE NUMBER,160602,6,Revenue,359,Birketts Llp,CM2 0AP,0
Capex Director Of Housing,Housing - Affordable Housing,Brookfield Project,Aquisition Of Buildings,ADVICE,03/05/2022,REDACTED INVOICE NUMBER,159267,"294,374.00",Capital,187779P,Birketts Llp Client Account (Pg),.,0
Balance Sheet,Balance Sheet,Balance Sheet,Agency - Active Brentwood,ACTIVITIES,20/05/2022,REDACTED INVOICE NUMBER,159932,"1,500.00",Revenue,218500P,Brentwood Central Boxing Club,CM15 9JU,0
Director Of Planning & Economy,Economic Development Total,Economic Development,Other Fees & Service,Business Awards Sponsor,03/05/2022,REDACTED INVOICE NUMBER,158896,999,Revenue,412,Brentwood Chamber Of Commerce,CM14 4AJ,0
Balance Sheet,Balance Sheet,Balance Sheet,Agency - Bbp,BUSINESS AWARDS SPONSORSHIP,31/05/2022,REDACTED INVOICE NUMBER,159948,999,Revenue,412,Brentwood Chamber Of Commerce,CM14 4AJ,0
Director Of Environment,"Communities, Health & Leisure",Grants To Organisations,Grants - Bct,CO-ORDINATION OF COMMUNITY TRANSPORT,06/05/2022,REDACTED INVOICE NUMBER,158811,6634,Revenue,418,Brentwood Community Transport,CM14 4BX,0
Capex Director Of Housing,Housing - Affordable Housing,Maple Close,Enhancements,RECHARGE OF COSTS MAPLE CLOSE,13/05/2022,REDACTED INVOICE NUMBER,159439,3000,Capital,185870P,Brentwood Development Partnership Llp,W1D 3QR,0
Director Of Environment,Grounds Maintenance,Grounds Maintenance,Purchases - Materials,MATERIALS,17/05/2022,REDACTED INVOICE NUMBER,159740,14.4,Revenue,433,Brentwood Fencing Supplies Ltd,CM15 9JH,0
Director Corporate Resources,Office Accommodation,Office Facilities Management,R&M Bldgs - General,HEAT RECOVER UNIT REPAIR -  TOWN HALL,10/05/2022,REDACTED INVOICE NUMBER,159233,1050,Revenue,445,Brentwood M & E Services Ltd,CM6 3HT,0
Director Corporate Resources,Asset Management,Asset Management,R&M Bldgs - General,LANDLORDS GAS CERTIFICATE,13/05/2022,REDACTED INVOICE NUMBER,159232,7270,Revenue,445,Brentwood M & E Services Ltd,CM6 3HT,0
Director Of Environment,"Communities, Health & Leisure",Community Development,Contracted Services,COMF FUNDING PAYMENT,13/05/2022,REDACTED INVOICE NUMBER,159717,5000,Revenue,194088P,Brentwood Mutual Aid,CO9 4DJ,0
Director Of Planning & Economy,Economic Development Total,Economic Development,Other Fees & Service,HIRE OF THEATRE,17/05/2022,REDACTED INVOICE NUMBER,159452,290,Revenue,470,Brentwood Theatre,CM15 8AG,0
Director Housing & Enforcement,Homelessness,Homelessness Prevention,B & B Charges (Homelessness),HOMELESSNESS PREVENTION,10/05/2022,REDACTED INVOICE NUMBER,159088,2004.17,Revenue,28943,Britannia Inn Hotel,IG1 3BD,0
Hra Expenditure,Repairs And Maintenance,Responsive Void Repairs,Electricity,ELECTRICITY SUPPLY,13/05/2022,REDACTED INVOICE NUMBER,159277,3.85,Revenue,492,British Gas Trading Limited (Please Use),GU95 1AB,0
Hra Expenditure,Repairs And Maintenance,Responsive Void Repairs,Electricity,ELECTRICITY SUPPLY,20/05/2022,REDACTED INVOICE NUMBER,159278,0.97,Revenue,492,British Gas Trading Limited (Please Use),GU95 1AB,0
Director Digital & Customer En,Digital Servs & Transformation,Ict Services,Telephones - General,PHONE CHARGES,17/05/2022,REDACTED INVOICE NUMBER,159643,183,Revenue,501,British Telecommunications Plc,DH98 1BT,0
Director Digital & Customer En,Digital Servs & Transformation,Ict Services,Telephones - General,PHONE CHARGES,31/05/2022,REDACTED INVOICE NUMBER,160160,93.7,Revenue,501,British Telecommunications Plc,DH98 1BT,0
Director Of Environment,Vehicle Fleet Management,Vehicle Fleet Management,Vehicle R&M - External,Full Contract Maintenance,10/05/2022,REDACTED INVOICE NUMBER,158551,548.6,Revenue,28207,Bucher Municipal Limited,RH4 1XF,0
Director Of Environment,Env Health & Licensing Admin,Env Health & Licensing Admin,Agency Staff,PROJECT MANAGEMENT SUPPORT,06/05/2022,REDACTED INVOICE NUMBER,158515,1544.67,Revenue,28337,Buckingham Futures,HA7 4AW,0
Director Of Environment,Health & Food Safety,Food Safety Enforcement,Agency Staff,PROJECT MANAGEMENT SUPPORT,06/05/2022,REDACTED INVOICE NUMBER,158514,669.9,Revenue,28337,Buckingham Futures,HA7 4AW,0
Capex Director Of Housing,Housing - Affordable Housing,Brookfield Project,Enhancements,ENHANCEMENTS,20/05/2022,REDACTED INVOICE NUMBER,160040,2065,Capital,218531P,C & D Interiors,RM14 1DY,0
Director Of Environment,Vehicle Fleet Management,Vehicle Fleet Management,Vehicle Replacement Parts,VEHICLE PARTS,06/05/2022,REDACTED INVOICE NUMBER,158423,12.4,Revenue,25512,C V Components,EM8 7NH,0
Director Of Environment,Vehicle Fleet Management,Vehicle Fleet Management,Vehicle Replacement Parts,VEHICLE PARTS,06/05/2022,REDACTED INVOICE NUMBER,158420,69.36,Revenue,25512,C V Components,EM8 7NH,0
Director Of Environment,Vehicle Fleet Management,Vehicle Fleet Management,Vehicle Replacement Parts,VEHICLE PARTS,06/05/2022,REDACTED INVOICE NUMBER,158506,114.66,Revenue,25512,C V Components,EM8 7NH,0
Director Of Environment,Vehicle Fleet Management,Vehicle Fleet Management,Vehicle Replacement Parts,VEHICLE PARTS,06/05/2022,REDACTED INVOICE NUMBER,158505,69.36,Revenue,25512,C V Components,EM8 7NH,0
Director Of Environment,Vehicle Fleet Management,Vehicle Fleet Management,Vehicle Replacement Parts,VEHICLE PARTS,06/05/2022,REDACTED INVOICE NUMBER,158503,14.52,Revenue,25512,C V Components,EM8 7NH,0
Director Of Environment,Vehicle Fleet Management,Vehicle Fleet Management,Vehicle Replacement Parts,VEHICLE PARTS,06/05/2022,REDACTED INVOICE NUMBER,158502,114.66,Revenue,25512,C V Components,EM8 7NH,0
Director Of Environment,Vehicle Fleet Management,Vehicle Fleet Management,Vehicle Replacement Parts,VEHICLE PARTS,06/05/2022,REDACTED INVOICE NUMBER,157885,24.36,Revenue,25512,C V Components,EM8 7NH,0
Director Of Environment,Vehicle Fleet Management,Vehicle Fleet Management,Vehicle Replacement Parts,VEHICLE PARTS,06/05/2022,REDACTED INVOICE NUMBER,158521,65.88,Revenue,25512,C V Components,EM8 7NH,0
Director Of Environment,Vehicle Fleet Management,Vehicle Fleet Management,Vehicle Replacement Parts,VEHICLE PARTS,06/05/2022,REDACTED INVOICE NUMBER,158425,304.38,Revenue,25512,C V Components,EM8 7NH,0
Director Of Environment,Vehicle Fleet Management,Vehicle Fleet Management,Vehicle Replacement Parts,VEHICLE PARTS,06/05/2022,REDACTED INVOICE NUMBER,158422,158.31,Revenue,25512,C V Components,EM8 7NH,0
Director Of Environment,Vehicle Fleet Management,Vehicle Fleet Management,Vehicle Replacement Parts,VEHICLE PARTS,06/05/2022,REDACTED INVOICE NUMBER,158421,85.02,Revenue,25512,C V Components,EM8 7NH,0
Director Of Environment,Vehicle Fleet Management,Vehicle Fleet Management,Vehicle Replacement Parts,VEHICLE PARTS,06/05/2022,REDACTED INVOICE NUMBER,158504,213.9,Revenue,25512,C V Components,EM8 7NH,0
Director Of Environment,Vehicle Fleet Management,Vehicle Fleet Management,Vehicle Replacement Parts,VEHICLE PARTS,06/05/2022,REDACTED INVOICE NUMBER,158424,118.72,Revenue,25512,C V Components,EM8 7NH,0
Director Of Environment,Vehicle Fleet Management,Vehicle Fleet Management,Vehicle Replacement Parts,VEHICLE PARTS,10/05/2022,REDACTED INVOICE NUMBER,158614,55.39,Revenue,25512,C V Components,EM8 7NH,0
Director Of Environment,Vehicle Fleet Management,Vehicle Fleet Management,Vehicle Replacement Parts,VEHICLE PARTS,10/05/2022,REDACTED INVOICE NUMBER,158615,81.38,Revenue,25512,C V Components,EM8 7NH,0
Director Of Environment,Vehicle Fleet Management,Vehicle Fleet Management,Vehicle Replacement Parts,VEHICLE PARTS,10/05/2022,REDACTED INVOICE NUMBER,158625,64.47,Revenue,25512,C V Components,EM8 7NH,0
Director Of Environment,Vehicle Fleet Management,Vehicle Fleet Management,Vehicle Replacement Parts,VEHICLE PARTS,10/05/2022,REDACTED INVOICE NUMBER,158544,98.41,Revenue,25512,C V Components,EM8 7NH,0
Director Of Environment,Vehicle Fleet Management,Vehicle Fleet Management,Vehicle Replacement Parts,VEHICLE PARTS,13/05/2022,REDACTED INVOICE NUMBER,159668,23.1,Revenue,25512,C V Components,EM8 7NH,0
Director Of Environment,Vehicle Fleet Management,Vehicle Fleet Management,Vehicle Replacement Parts,VEHICLE PARTS,13/05/2022,REDACTED INVOICE NUMBER,159662,22.28,Revenue,25512,C V Components,EM8 7NH,0
Director Of Environment,Vehicle Fleet Management,Vehicle Fleet Management,Vehicle Replacement Parts,VEHICLE PARTS,13/05/2022,REDACTED INVOICE NUMBER,158685,19.37,Revenue,25512,C V Components,EM8 7NH,0
Director Of Environment,Vehicle Fleet Management,Vehicle Fleet Management,Vehicle Replacement Parts,VEHICLE PARTS,13/05/2022,REDACTED INVOICE NUMBER,158638,235,Revenue,25512,C V Components,EM8 7NH,0
Director Of Environment,Vehicle Fleet Management,Vehicle Fleet Management,Vehicle Replacement Parts,VEHICLE PARTS,13/05/2022,REDACTED INVOICE NUMBER,158639,24.36,Revenue,25512,C V Components,EM8 7NH,0
Director Of Environment,Vehicle Fleet Management,Vehicle Fleet Management,Vehicle Replacement Parts,VEHICLE PARTS,13/05/2022,REDACTED INVOICE NUMBER,158640,40.25,Revenue,25512,C V Components,EM8 7NH,0
Director Of Environment,Vehicle Fleet Management,Vehicle Fleet Management,Vehicle Replacement Parts,VEHICLE PARTS,13/05/2022,REDACTED INVOICE NUMBER,159667,224.78,Revenue,25512,C V Components,EM8 7NH,0
Director Of Environment,Vehicle Fleet Management,Vehicle Fleet Management,Vehicle Replacement Parts,VEHICLE PARTS,13/05/2022,REDACTED INVOICE NUMBER,159663,23.72,Revenue,25512,C V Components,EM8 7NH,0
Director Of Environment,Vehicle Fleet Management,Vehicle Fleet Management,Vehicle Replacement Parts,VEHICLE PARTS,13/05/2022,REDACTED INVOICE NUMBER,159666,13.2,Revenue,25512,C V Components,EM8 7NH,0
Director Of Environment,Vehicle Fleet Management,Vehicle Fleet Management,Vehicle Replacement Parts,CLOTHING,17/05/2022,REDACTED INVOICE NUMBER,158755,16.24,Revenue,25512,C V Components,EM8 7NH,0
Director Of Environment,Vehicle Fleet Management,Vehicle Fleet Management,Vehicle Replacement Parts,VEHICLE PARTS,17/05/2022,REDACTED INVOICE NUMBER,158754,67.62,Revenue,25512,C V Components,EM8 7NH,0
Director Of Environment,Vehicle Fleet Management,Vehicle Fleet Management,Vehicle Replacement Parts,VEHICLE PARTS,17/05/2022,REDACTED INVOICE NUMBER,158753,348,Revenue,25512,C V Components,EM8 7NH,0
Director Of Environment,Vehicle Fleet Management,Vehicle Fleet Management,Vehicle Replacement Parts,VEHICLE PARTS,17/05/2022,REDACTED INVOICE NUMBER,158756,154.5,Revenue,25512,C V Components,EM8 7NH,0
Director Of Environment,Vehicle Fleet Management,Vehicle Fleet Management,Vehicle Replacement Parts,VEHICLE PARTS,17/05/2022,REDACTED INVOICE NUMBER,158750,222,Revenue,25512,C V Components,EM8 7NH,0
Director Of Environment,Vehicle Fleet Management,Vehicle Fleet Management,Vehicle Replacement Parts,VEHICLE PARTS,20/05/2022,REDACTED INVOICE NUMBER,158762,11.57,Revenue,25512,C V Components,EM8 7NH,0
Director Of Environment,Vehicle Fleet Management,Vehicle Fleet Management,Vehicle Replacement Parts,VEHICLE PARTS,20/05/2022,REDACTED INVOICE NUMBER,158845,230,Revenue,25512,C V Components,EM8 7NH,0
Director Of Environment,Vehicle Fleet Management,Vehicle Fleet Management,Vehicle Replacement Parts,VEHICLE PARTS,24/05/2022,REDACTED INVOICE NUMBER,159200,218.62,Revenue,25512,C V Components,EM8 7NH,0
Director Of Environment,Vehicle Fleet Management,Vehicle Fleet Management,Vehicle Replacement Parts,VEHICLE PARTS,24/05/2022,REDACTED INVOICE NUMBER,159198,46.04,Revenue,25512,C V Components,EM8 7NH,0
Director Of Environment,Vehicle Fleet Management,Vehicle Fleet Management,Vehicle Replacement Parts,VEHICLE PARTS,24/05/2022,REDACTED INVOICE NUMBER,159155,11.76,Revenue,25512,C V Components,EM8 7NH,0
Director Of Environment,Vehicle Fleet Management,Vehicle Fleet Management,Vehicle Replacement Parts,VEHICLE PARTS,24/05/2022,REDACTED INVOICE NUMBER,159154,11.46,Revenue,25512,C V Components,EM8 7NH,0
Director Of Environment,Vehicle Fleet Management,Vehicle Fleet Management,Vehicle Replacement Parts,VEHICLE PARTS,24/05/2022,REDACTED INVOICE NUMBER,159153,71.64,Revenue,25512,C V Components,EM8 7NH,0
Director Of Environment,Vehicle Fleet Management,Vehicle Fleet Management,Vehicle Replacement Parts,VEHICLE PARTS,24/05/2022,REDACTED INVOICE NUMBER,159156,51.53,Revenue,25512,C V Components,EM8 7NH,0
Director Of Environment,Vehicle Fleet Management,Vehicle Fleet Management,Vehicle Replacement Parts,VEHICLE PARTS,24/05/2022,REDACTED INVOICE NUMBER,159197,312.2,Revenue,25512,C V Components,EM8 7NH,0
Director Of Environment,Vehicle Fleet Management,Vehicle Fleet Management,Vehicle Replacement Parts,VEHICLE PARTS,24/05/2022,REDACTED INVOICE NUMBER,159199,53.59,Revenue,25512,C V Components,EM8 7NH,0
Director Of Environment,Vehicle Fleet Management,Vehicle Fleet Management,Vehicle Replacement Parts,VEHICLE PARTS,27/05/2022,REDACTED INVOICE NUMBER,159284,11.18,Revenue,25512,C V Components,EM8 7NH,0
Director Of Environment,Vehicle Fleet Management,Vehicle Fleet Management,Vehicle Replacement Parts,VEHICLE PARTS,27/05/2022,REDACTED INVOICE NUMBER,159285,40,Revenue,25512,C V Components,EM8 7NH,0
Director Of Environment,Vehicle Fleet Management,Vehicle Fleet Management,Vehicle Replacement Parts,VEHICLE PARTS,27/05/2022,REDACTED INVOICE NUMBER,159226,54,Revenue,25512,C V Components,EM8 7NH,0
Director Of Environment,Vehicle Fleet Management,Vehicle Fleet Management,Vehicle Replacement Parts,VEHICLE PARTS,27/05/2022,REDACTED INVOICE NUMBER,159288,40,Revenue,25512,C V Components,EM8 7NH,0
Director Of Environment,Vehicle Fleet Management,Vehicle Fleet Management,Vehicle Replacement Parts,VEHICLE PARTS,31/05/2022,REDACTED INVOICE NUMBER,159472,154.5,Revenue,25512,C V Components,EM8 7NH,0
Director Of Environment,Vehicle Fleet Management,Vehicle Fleet Management,Vehicle Replacement Parts,VEHICLE PARTS,31/05/2022,REDACTED INVOICE NUMBER,159473,206.08,Revenue,25512,C V Components,EM8 7NH,0
Director Corporate Resources,Corporate Management,Corporate Management Costs,Bank Charges,Transaction charges,13/05/2022,REDACTED INVOICE NUMBER,159762,229.95,Revenue,23084,Capita Bus. Serv Ltd (Pg Payments),DL1 9HN,0
Director Corporate Resources,Corporate Management,Corporate Management Costs,Bank Charges,TRANSACTION CHARGES,17/05/2022,REDACTED INVOICE NUMBER,159767,8531.72,Revenue,23084,Capita Bus. Serv Ltd (Pg Payments),DL1 9HN,0
Director Corporate Resources,Corporate Finance,Corporate Finance,Computer Software Licences,Smart Gateway Licence,24/05/2022,REDACTED INVOICE NUMBER,160033,513.5,Revenue,560,Capita Business Services Ltd,SWIH 0XA,0
Director Corporate Resources,Asset Management,Asset Management,Other Professional Fees,DECOMMISSIONING COST ESTIMATE,13/05/2022,REDACTED INVOICE NUMBER,159731,750,Revenue,29051,REDACTED PERSONAL DATA,REDACTED,0
Chief Executive,Executive Board,Senior Leadership Team,Subscriptions,OPERATING COSTS,06/05/2022,REDACTED INVOICE NUMBER,158417,6750,Revenue,579,Castle Point Borough Council,SS7 ITF,0
Director Of Environment,Cemeteries,Cemeteries,Water,WATER SUPPLY,10/05/2022,REDACTED INVOICE NUMBER,159157,40,Revenue,26488,Castle Water Ltd,PH10 7BH,0
Director Of Environment,Cemeteries,Cemeteries,Water,WATER SUPPLY,13/05/2022,REDACTED INVOICE NUMBER,159644,192.78,Revenue,26488,Castle Water Ltd,PH10 7BH,0
Director Digital & Customer En,Digital Servs & Transformation,Ict Services,Telephones - General,PHONE CHARGES,17/05/2022,REDACTED INVOICE NUMBER,158586,3262.96,Revenue,22769,Catalyst Amc Ltd,B77 3QU,0
Director Digital & Customer En,Digital Servs & Transformation,Ict Services,Telephones - General,PHONE CHARGES,17/05/2022,REDACTED INVOICE NUMBER,158597,582,Revenue,22769,Catalyst Amc Ltd,B77 3QU,0
Director Digital & Customer En,Digital Servs & Transformation,Ict Services,Telephones - General,PHONE CHARGES,17/05/2022,REDACTED INVOICE NUMBER,158585,123.79,Revenue,22769,Catalyst Amc Ltd,B77 3QU,0
Capex Director Digital & C.E,Ict Services,Ict Hardware,Enhancements,IT EQUIPMENT,24/05/2022,REDACTED INVOICE NUMBER,159201,687.48,Capital,586,Ccs Media Ltd,RM1 3PJ,0
Director Of Environment,"Communities, Health & Leisure",Health & Wellbeing,Contracted Services,PROJECT MANAGEMENT SUPPORT,13/05/2022,REDACTED INVOICE NUMBER,159753,150,Revenue,218150P,REDACTED PERSONAL DATA,REDACTED,0
Director Of Environment,Env Pro. Noise & Pollution,Env Pro. Noise & Pollution,Analytical Services,AIR QUALITY SLA 21/22,20/05/2022,REDACTED INVOICE NUMBER,158869,2072.52,Revenue,28247,Chelmsford City Council,CM1 1JE,0
Director Of Environment,Golf Course,Golf Course,Protective Clothing,CLOTHING,24/05/2022,REDACTED INVOICE NUMBER,157686,605.74,Revenue,645,Chelmsford Safety Supplies,CM1 3AG,0
Director Of Environment,Parking,Parking Services,Managed Services,DVLA Enquiry Service,31/05/2022,REDACTED INVOICE NUMBER,160435,21.5,Revenue,656,Chipside Limited,SN15 5FD,0
Director Of Environment,Parking,Parking Services,Managed Services,Provision of hosting facilitie,31/05/2022,REDACTED INVOICE NUMBER,159494,80,Revenue,656,Chipside Limited,SN15 5FD,0
Director Of Environment,Depot Management & Admin,Depot Management & Admin,R&M Bldgs - General,REPAIRS TO INTRUDER ALARM - DEPOT,06/05/2022,REDACTED INVOICE NUMBER,158767,278.92,Revenue,674,Chubb Fire And Security Limited,BB1 2PR,0
Director Of Environment,Env Pro. Noise & Pollution,Env Pro. Noise & Pollution,Subscriptions,ANNUAL SUBSCRIPTION - 22/23,13/05/2022,REDACTED INVOICE NUMBER,159818,515,Revenue,677,Cieh,SE1 8BR,0
Director Housing & Enforcement,Cctv,Community Safety - Cctv,Equipment & Tools - R&M,SUPPLY AND INSTALL CCTV,20/05/2022,REDACTED INVOICE NUMBER,158632,3099.09,Revenue,706,Clearview Communications,CM1 3AG,0
Director Digital & Customer En,Customer & Performance,Customer Contact Service,Training Expenses,TELEPHONE AGRESSION COURSES,13/05/2022,REDACTED INVOICE NUMBER,159159,770,Revenue,23144,Cms Training Ltd,W1U 6PZ,0
Capex Director Of Housing,Housing - Affordable Housing,17 Crescent Road,Enhancements,ENHANCEMENTS,31/05/2022,REDACTED INVOICE NUMBER,159917,26612.51,Capital,28999,Colnesett Ltd,CO5 9SE,0
Balance Sheet,Balance Sheet,Balance Sheet,St Borrowing - Las - Principal,LOAN REPAYMENT,03/05/2022,REDACTED INVOICE NUMBER,159266,5000000,Revenue,183259P,REDACTED PERSONAL DATA,REDACTED,0
Interest Payable - Gf,Interest Payable - Gf,Interest Payable - Gf,Interest - Temporary Borrowing,LOAN REPAYMENT,03/05/2022,REDACTED INVOICE NUMBER,159266,2424.66,Revenue,183259P,REDACTED PERSONAL DATA,REDACTED,0
Director Of Law & Governance,Procurement,Procurement,Subscriptions,STANDARD V4 UK. 22/23,06/05/2022,REDACTED INVOICE NUMBER,159432,595,Revenue,18693,Creditsafe Business Solutions Ltd,CF83 3GG,0
Director Of Environment,Open Spaces,Countryside Recreation Mtnce,R&M Grounds - Treework,"TREE WORKS, FENCING",13/05/2022,REDACTED INVOICE NUMBER,158542,1050,Revenue,27170,Cut Above,CM15 0PG,0
Director Of Environment,Open Spaces,Amenity Greens,R&M Grounds - Treework,CLEAR DEBRIS - STORM DAMAGE,24/05/2022,REDACTED INVOICE NUMBER,159951,300,Revenue,27170,Cut Above,CM15 0PG,0
Director Of Environment,Open Spaces,Amenity Greens,R&M Grounds - Treework,CUT LID OFF SKIP - DEPOT,24/05/2022,REDACTED INVOICE NUMBER,159953,300,Revenue,27170,Cut Above,CM15 0PG,0
Director Of Environment,Open Spaces,Amenity Greens,R&M Grounds - Treework,TREE WORKS,24/05/2022,REDACTED INVOICE NUMBER,159952,600,Revenue,27170,Cut Above,CM15 0PG,0
Director Of Environment,Open Spaces,Sports Pitches,Purchases - General Equipment,Post Erection,27/05/2022,REDACTED INVOICE NUMBER,160447,350,Revenue,27170,Cut Above,CM15 0PG,0
Director Of Environment,Street Services,Street Cleansing,Sub-Contractors,Storm damage,27/05/2022,REDACTED INVOICE NUMBER,160448,450,Revenue,27170,Cut Above,CM15 0PG,0
Director Of Planning & Economy,Planning Policy Total,Planning Policy,Contracted Services,LOCAL PLAN,06/05/2022,REDACTED INVOICE NUMBER,158810,5062.5,Revenue,26869,D.U.P. Limited,EC2A 4NE,0
Balance Sheet,Balance Sheet,Balance Sheet,Insurance Account,INSURANCE CLAIM,20/05/2022,REDACTED INVOICE NUMBER,159292,0,Revenue,808,Dac Beachcroft Llp,BS99 7UR,0
Balance Sheet,Balance Sheet,Balance Sheet,Insurance Account,PROFESSIONAL FEES. NOV '21 - JAN '22,20/05/2022,REDACTED INVOICE NUMBER,159914,0,Revenue,808,Dac Beachcroft Llp,BS99 7UR,0
Director Digital & Customer En,Digital Servs & Transformation,Ict Services,Mobile Phone - General,PHONE CHARGES,13/05/2022,REDACTED INVOICE NUMBER,159152,670.7,Revenue,811,Daisy Communications Ltd,BB9 5SR,0
Director Digital & Customer En,Digital Servs & Transformation,Ict Services,Mobile Phone - General,PHONE CHARGES,17/05/2022,REDACTED INVOICE NUMBER,159151,876.92,Revenue,811,Daisy Communications Ltd,BB9 5SR,0
Director Digital & Customer En,Digital Servs & Transformation,Ict Services,Telephones - General,PHONE CHARGES,17/05/2022,REDACTED INVOICE NUMBER,158331,1888.35,Revenue,811,Daisy Communications Ltd,BB9 5SR,0
Director Digital & Customer En,Digital Servs & Transformation,Ict Services,Telephones - General,PHONE CHARGES,24/05/2022,REDACTED INVOICE NUMBER,159470,1915.64,Revenue,811,Daisy Communications Ltd,BB9 5SR,0
Director Digital & Customer En,Digital Servs & Transformation,Ict Services,Mobile Phone - General,PHONE CHARGES,13/05/2022,REDACTED INVOICE NUMBER,158297,670.7,Revenue,23240,Daisy Updata Communications Ltd,BB9 5SR,0
Director Of Planning & Economy,Building Control,Building Control - Chargeable,Other Professional Fees,Structural Services,20/05/2022,REDACTED INVOICE NUMBER,159248,92.5,Revenue,25248,Davies Burton Sweetlove Limited,CM2 5PW,0
Director Of Planning & Economy,Building Control,Building Control - Chargeable,Other Professional Fees,Structural Services,20/05/2022,REDACTED INVOICE NUMBER,159249,74,Revenue,25248,Davies Burton Sweetlove Limited,CM2 5PW,0
Director Of Planning & Economy,Building Control,Building Control - Chargeable,Other Professional Fees,Structural Services,20/05/2022,REDACTED INVOICE NUMBER,159250,259,Revenue,25248,Davies Burton Sweetlove Limited,CM2 5PW,0
Capex Director Digital & C.E,Ict Services,Ict Hardware,Enhancements,System Service Tags,06/05/2022,REDACTED INVOICE NUMBER,158438,"1,251.60",Capital,28443,Dell Emc,RG12 1LF,0
Director Of Environment,Vehicle Fleet Management,Vehicle Fleet Management,Vehicle Replacement Parts,VEHICLE PARTS,06/05/2022,REDACTED INVOICE NUMBER,158452,151.22,Revenue,861,Dennis Eagle Ltd,CV34 6TE,0
Director Of Environment,Vehicle Fleet Management,Vehicle Fleet Management,Vehicle Replacement Parts,VEHICLE PARTS,10/05/2022,REDACTED INVOICE NUMBER,158624,724.39,Revenue,861,Dennis Eagle Ltd,CV34 6TE,0
Chief Executive,Executive Board,Senior Leadership Team,Subscriptions,Annual Membership Fee 22/23,27/05/2022,REDACTED INVOICE NUMBER,159455,2047,Revenue,879,District Councils Network,SW1P 3HZ,0
Balance Sheet,Balance Sheet,Balance Sheet,Temp Investments - Principal,SHORT TERM INVESTMENT,03/05/2022,REDACTED INVOICE NUMBER,158898,1000000,Revenue,28893,Dma Deposit Facility (Pg),.,0
Balance Sheet,Balance Sheet,Balance Sheet,Temp Investments - Principal,SHORT TERM INVESTMENT,06/05/2022,REDACTED INVOICE NUMBER,159415,6000000,Revenue,28893,Dma Deposit Facility (Pg),.,0
Balance Sheet,Balance Sheet,Balance Sheet,Temp Investments - Principal,SHORT TERM INVESTMENT,13/05/2022,REDACTED INVOICE NUMBER,159645,4000000,Revenue,28893,Dma Deposit Facility (Pg),.,0
Balance Sheet,Balance Sheet,Balance Sheet,Temp Investments - Principal,SHORT TERM INVESTMENT,17/05/2022,REDACTED INVOICE NUMBER,159774,1000000,Revenue,28893,Dma Deposit Facility (Pg),.,0
Balance Sheet,Balance Sheet,Balance Sheet,Temp Investments - Principal,SHORT TERM INVESTMENT,17/05/2022,REDACTED INVOICE NUMBER,159941,1000000,Revenue,28893,Dma Deposit Facility (Pg),.,0
Director Of Environment,Street Services,Street Cleansing,Agency Staff,PROJECT MANAGEMENT SUPPORT,06/05/2022,REDACTED INVOICE NUMBER,158746,558,Revenue,28029,Driver Hire (Chelmsford & Harlow),CM8 1BA,0
Director Of Environment,Waste Management,Waste Collection Support,Agency Staff,PROJECT MANAGEMENT SUPPORT,06/05/2022,REDACTED INVOICE NUMBER,158745,2403.75,Revenue,28029,Driver Hire (Chelmsford & Harlow),CM8 1BA,0
Director Of Environment,Street Services,Street Cleansing,Agency Staff,PROJECT MANAGEMENT SUPPORT,10/05/2022,REDACTED INVOICE NUMBER,159275,548.7,Revenue,28029,Driver Hire (Chelmsford & Harlow),CM8 1BA,0
Director Of Environment,Waste Management,Waste Collection Support,Agency Staff,PROJECT MANAGEMENT SUPPORT,10/05/2022,REDACTED INVOICE NUMBER,159273,2037.16,Revenue,28029,Driver Hire (Chelmsford & Harlow),CM8 1BA,0
Director Of Environment,Golf Course,Golf Course,Agency Staff,PROJECT MANAGEMENT SUPPORT,17/05/2022,REDACTED INVOICE NUMBER,158403,688.2,Revenue,28029,Driver Hire (Chelmsford & Harlow),CM8 1BA,0
Director Of Environment,Street Services,Street Cleansing,Agency Staff,PROJECT MANAGEMENT SUPPORT,20/05/2022,REDACTED INVOICE NUMBER,159541,688.2,Revenue,28029,Driver Hire (Chelmsford & Harlow),CM8 1BA,0
Director Of Environment,Waste Management,Waste Collection Support,Agency Staff,PROJECT MANAGEMENT SUPPORT,20/05/2022,REDACTED INVOICE NUMBER,159542,1794.9,Revenue,28029,Driver Hire (Chelmsford & Harlow),CM8 1BA,0
Director Of Environment,Golf Course,Golf Course,Agency Staff,PROJECT MANAGEMENT SUPPORT,24/05/2022,REDACTED INVOICE NUMBER,158588,636.75,Revenue,28029,Driver Hire (Chelmsford & Harlow),CM8 1BA,0
Director Of Environment,Golf Course,Golf Course,Agency Staff,PROJECT MANAGEMENT SUPPORT,24/05/2022,REDACTED INVOICE NUMBER,159276,457.88,Revenue,28029,Driver Hire (Chelmsford & Harlow),CM8 1BA,0
Director Of Environment,Golf Course,Golf Course,Agency Staff,PROJECT MANAGEMENT SUPPORT,24/05/2022,REDACTED INVOICE NUMBER,159540,607.76,Revenue,28029,Driver Hire (Chelmsford & Harlow),CM8 1BA,0
Capex Director Of Housing,Housing - Hra,Asbestos,Enhancements,ASBESTOS REMOVAL - DRAKE HOUSE,31/05/2022,REDACTED INVOICE NUMBER,159618,6000,Capital,28327,Ductclean Uk Ltd,AI7 1JQ,0
Capex Director Of Housing,Housing - Hra,Asbestos,Enhancements,ASBESTOS REMOVAL - MASEFIELD COURT,31/05/2022,REDACTED INVOICE NUMBER,159617,9750,Capital,28327,Ductclean Uk Ltd,AI7 1JQ,0
Capex Director Of Housing,Housing - Hra,Asbestos,Enhancements,ASBESTOS REMOVAL - MAYFLOWER HOUSE,31/05/2022,REDACTED INVOICE NUMBER,159619,3750,Capital,28327,Ductclean Uk Ltd,AI7 1JQ,0
Director Of Planning & Economy,Planning Policy Total,Planning Policy,Subscriptions,TRANSPORT EAST SUBSCRIPTIONS 2,13/05/2022,REDACTED INVOICE NUMBER,159104,2750,Revenue,970,East Of England Local Government Associat,IP33 3YU,0
Balance Sheet,Balance Sheet,Balance Sheet,Ctax 15 Jan Prior Surplus Ecc,PRECEPTS - APRIL '22,03/05/2022,REDACTED INVOICE NUMBER,159241,-8183,Revenue,22442,Ecc Precept,.,0
Balance Sheet,Balance Sheet,Balance Sheet,C Tax Ecc Precept,PRECEPTS - APRIL '22,03/05/2022,REDACTED INVOICE NUMBER,159241,4216652,Revenue,22442,Ecc Precept,.,0
Balance Sheet,Balance Sheet,Balance Sheet,C Tax Ecc Precept,PRECEPTS,31/05/2022,REDACTED INVOICE NUMBER,160478,4225256,Revenue,22442,Ecc Precept,.,0
Director Corporate Resources,Council Tax & Nndr,Council Tax Collection,Grants/Contributions - Ecc,PRECEPTS,31/05/2022,REDACTED INVOICE NUMBER,160478,-60843,Revenue,22442,Ecc Precept,.,0
Hra Expenditure,Supervision And Management,Right To Buy Admin,Other Professional Fees,EPC AND FLOORPLAN - VARIOUS,20/05/2022,REDACTED INVOICE NUMBER,159739,145,Revenue,22377,Eco Approach Ltd,BR3 1AT,0
Balance Sheet,Balance Sheet,Balance Sheet,Agency - Active Brentwood,ACTIVE BRENTWOOD,13/05/2022,REDACTED INVOICE NUMBER,159754,395.88,Revenue,218151P,England Netball,LE11 3QF,0
Director Of Environment,Env Pro. Noise & Pollution,Env Pro. Noise & Pollution,Analytical Services,WATER SUPPLY SAMPLING ANALYSIS,10/05/2022,REDACTED INVOICE NUMBER,158596,688.9,Revenue,1042,Epping Forest District Council,CM16 4BZ,0
Capex Director Of Environment,Environmental Initiatives,S106 114-122 Kings Road,Enhancements,NEW VEHICLE,17/05/2022,REDACTED INVOICE NUMBER,157375,31200,Capital,1050,Ernest Doe & Sons Ltd,CM9 6QH,0
Director Of Environment,Grounds Maintenance,Grounds Maintenance,Vehicle R&M - External,VEHICLE REPAIRS,17/05/2022,REDACTED INVOICE NUMBER,159719,237.5,Revenue,1050,Ernest Doe & Sons Ltd,CM9 6QH,0
Director Of Environment,Grounds Maintenance,Grounds Maintenance,Purchases - General Equipment, PARTS,20/05/2022,REDACTED INVOICE NUMBER,158864,798,Revenue,1050,Ernest Doe & Sons Ltd,CM9 6QH,0
Director Of Environment,Waste Management,Recycling - Dry,Purchases - Bins,BINS,20/05/2022,REDACTED INVOICE NUMBER,158853,2949,Revenue,4160,Ese World Ltd,LE67 1GH,0
Director Corporate Resources,Asset Management,Asset Management,Water,WATER SUPPLY,10/05/2022,REDACTED INVOICE NUMBER,159107,1364.3,Revenue,1058,Essex + Suffolk Water,DH1 9TX,0
Director Of Planning & Economy,Planning Development Managemt,Planning Development Managemt,Consultancy Fees,DUNTON HILLS,06/05/2022,REDACTED INVOICE NUMBER,158498,3449,Revenue,1075,Essex County Council,CM1 1JZ,0
Director Of Planning & Economy,Land Charges,Land Charges,Search Fees,SEARCH FEES MARCH 22,13/05/2022,REDACTED INVOICE NUMBER,158633,224,Revenue,1075,Essex County Council,CM1 1JZ,0
Director Corporate Resources,Asset Management,Asset Management,R&M Bldgs - General,ANNUAL FIRE MAINS TESTING,13/05/2022,REDACTED INVOICE NUMBER,159210,605,Revenue,1083,Essex County Fire + Rescue Service,CM13 1AL,0
Director Corporate Resources,Asset Management,Asset Management,Other Professional Fees,EICR - 6 THE KEYS,10/05/2022,REDACTED INVOICE NUMBER,158731,180,Revenue,1087,Essex Energy Services,CM14 5DH,0
Director Corporate Resources,Asset Management,Asset Management,Other Professional Fees,LIGHT INSTALATION,10/05/2022,REDACTED INVOICE NUMBER,158752,596.94,Revenue,1087,Essex Energy Services,CM14 5DH,0
Director Corporate Resources,Asset Management,Asset Management,R&M Bldgs - General,ELECTRICAL WORK - WARLEY PFP,10/05/2022,REDACTED INVOICE NUMBER,158738,1380,Revenue,1087,Essex Energy Services,CM14 5DH,0
Director Corporate Resources,Asset Management,Asset Management,R&M Bldgs - General,Electrics 6 The Keys,20/05/2022,REDACTED INVOICE NUMBER,159495,180,Revenue,1087,Essex Energy Services,CM14 5DH,0
Balance Sheet,Balance Sheet,Balance Sheet,Contractor Retentions Account,NIGHTINGALE CENTRE,13/05/2022,REDACTED INVOICE NUMBER,159265,14619.87,Revenue,27991,Etec Contract Services,E18 2QH,0
Capex Director Of Environment,Corporate Services,King George'S Redevelopment,Contracted Services,CONCRETE BASES FOR CCTV - KGPF,06/05/2022,REDACTED INVOICE NUMBER,158499,1400,Capital,1134,F J Britten Landscapes Ltd,CM3 8BG,0
Capex Director Of Environment,Environmental Initiatives,Open Spaces Infrastructure,Enhancements,LANDSCAPING WORKS - SPLASH PAR,10/05/2022,REDACTED INVOICE NUMBER,158613,4950,Capital,1134,F J Britten Landscapes Ltd,CM3 8BG,0
Director Of Environment,Golf Course,Golf Course,R&M Grounds - General,DRAINAGE WORKS - HARTSWOOD GC,10/05/2022,REDACTED INVOICE NUMBER,158728,2420,Revenue,1134,F J Britten Landscapes Ltd,CM3 8BG,0
Director Of Environment,Cemeteries,Cemeteries,Public Funerals Expenses,FUNERAL COSTS,31/05/2022,REDACTED INVOICE NUMBER,159908,1494,Revenue,1132,F.E.Farrer,CM15 8PA,0
Balance Sheet,Balance Sheet,Balance Sheet,C Tax Fire Precept,PRECEPTS - MAY '22,03/05/2022,REDACTED INVOICE NUMBER,159259,227167,Revenue,22443,Fire Precept,.,0
Balance Sheet,Balance Sheet,Balance Sheet,Nndr Fire Est Share(Precept),PRECEPTS - MAY '22,03/05/2022,REDACTED INVOICE NUMBER,159259,17744,Revenue,22443,Fire Precept,.,0
Director Corporate Resources,Council Tax & Nndr,Council Tax Collection,Grants/Contributions - Fire,PRECEPTS - MAY '22,03/05/2022,REDACTED INVOICE NUMBER,159259,-2005,Revenue,22443,Fire Precept,.,0
Balance Sheet,Balance Sheet,Balance Sheet,C Tax Fire Precept,PRECEPTS,31/05/2022,REDACTED INVOICE NUMBER,160481,227167,Revenue,22443,Fire Precept,.,0
Balance Sheet,Balance Sheet,Balance Sheet,Nndr Fire Est Share(Precept),PRECEPTS,31/05/2022,REDACTED INVOICE NUMBER,160481,17744,Revenue,22443,Fire Precept,.,0
Director Corporate Resources,Council Tax & Nndr,Council Tax Collection,Grants/Contributions - Fire,PRECEPTS,31/05/2022,REDACTED INVOICE NUMBER,160481,-478,Revenue,22443,Fire Precept,.,0
Director Of Environment,"Communities, Health & Leisure",Sports & Social Venues,Bank Charges,DD APRIL 22,03/05/2022,REDACTED INVOICE NUMBER,159158,40,Revenue,27884,First Data Global Leasing (Dd Payments),SS14 3WF,0
Director Of Environment,Golf Course,Golf Course,Bank Charges,APR 22 DD,03/05/2022,REDACTED INVOICE NUMBER,159160,19,Revenue,27884,First Data Global Leasing (Dd Payments),SS14 3WF,0
Director Of Environment,Golf Course,Golf Course,Legal Fees,DD MAY 22,06/05/2022,REDACTED INVOICE NUMBER,159508,23.19,Revenue,27884,First Data Global Leasing (Dd Payments),SS14 3WF,0
Director Of Environment,"Communities, Health & Leisure",Sports & Social Venues,Bank Charges,DIRECT DEBIT,31/05/2022,REDACTED INVOICE NUMBER,160031,40,Revenue,27884,First Data Global Leasing (Dd Payments),SS14 3WF,0
Director Of Environment,Golf Course,Golf Course,Bank Charges,DIRECT DEBIT,31/05/2022,REDACTED INVOICE NUMBER,160032,19,Revenue,27884,First Data Global Leasing (Dd Payments),SS14 3WF,0
Director Corporate Resources,Asset Management,Asset Management,R&M Bldgs - General,BISHOPS HALL - RAMP REPAIR,13/05/2022,REDACTED INVOICE NUMBER,158722,980,Revenue,1163,Fisk Building Contractors Ltd,CM11 1PW,0
Director Corporate Resources,Asset Management,Asset Management,R&M Bldgs - General,Warlev Car Garage Roof,17/05/2022,REDACTED INVOICE NUMBER,159847,34200,Revenue,1163,Fisk Building Contractors Ltd,CM11 1PW,0
Director Corporate Resources,Asset Management,Asset Management,R&M Bldgs - General,FENCE REPAIR WORKS - WARLEY,20/05/2022,REDACTED INVOICE NUMBER,158892,160,Revenue,1163,Fisk Building Contractors Ltd,CM11 1PW,0
Director Corporate Resources,Asset Management,Asset Management,R&M Bldgs - General,REPAIR WORKS - HUTTON POPLAR LODGE,20/05/2022,REDACTED INVOICE NUMBER,158891,1646,Revenue,1163,Fisk Building Contractors Ltd,CM11 1PW,0
Director Corporate Resources,Asset Management,Asset Management,R&M Bldgs - General,REPAIR WORKS - KGPF Depot,20/05/2022,REDACTED INVOICE NUMBER,158894,235,Revenue,1163,Fisk Building Contractors Ltd,CM11 1PW,0
Director Corporate Resources,Office Accommodation,Office Facilities Management,R&M Bldgs - General,REPAIR WORKS - TOWN HALL FLATS,20/05/2022,REDACTED INVOICE NUMBER,158893,250,Revenue,1163,Fisk Building Contractors Ltd,CM11 1PW,0
Director Of Law & Governance,Legal Services & Data Protect,Legal Services & Data Protect,Legal Fees,POSSESSION,06/05/2022,REDACTED INVOICE NUMBER,159441,1850,Revenue,172133P,Five Paper,EC4Y 7HB,0
Capex Director Of Housing,Housing - Affordable Housing,Brookfield Project,Enhancements,ENHANCEMENTS,20/05/2022,REDACTED INVOICE NUMBER,160039,8949.55,Capital,218530P,REDACTED PERSONAL DATA,REDACTED,0
Director Of Environment,Parking,Parking Services,R&M Other - Car Parks,PAY AND DISPLAY MACHINE MAINT. APR '22,06/05/2022,REDACTED INVOICE NUMBER,158455,9719.54,Revenue,4187,Flowbird Smart City Uk Ltd (Was Parkeon),BH12 5AG,0
Director Of Environment,Parking,Parking Services,R&M Other - Car Parks,RELOCATION OF SOLAR MACHINES - KGPF,06/05/2022,REDACTED INVOICE NUMBER,158321,1872,Revenue,4187,Flowbird Smart City Uk Ltd (Was Parkeon),BH12 5AG,0
Director Of Environment,Parking,Parking Services,Equipment & Tools - R&M,SERVICES FOR PARKING EQUIPMENT - MAR '22,31/05/2022,REDACTED INVOICE NUMBER,160641,795.12,Revenue,4187,Flowbird Smart City Uk Ltd (Was Parkeon),BH12 5AG,0
Director Of Environment,Parking,Parking Services,Equipment & Tools - R&M,SERVICES FOR PARKING EQUIPMENT - MAY '22,31/05/2022,REDACTED INVOICE NUMBER,160642,324,Revenue,4187,Flowbird Smart City Uk Ltd (Was Parkeon),BH12 5AG,0
Director Of Environment,Parking,Parking Services,R&M Other - Car Parks,CALL OUT  - TOWN HALL,31/05/2022,REDACTED INVOICE NUMBER,159222,715,Revenue,4187,Flowbird Smart City Uk Ltd (Was Parkeon),BH12 5AG,0
Director Corporate Resources,Design And Print Services,Design & Print Services,Stationery - Paper,PAPER SUPPLIES,06/05/2022,REDACTED INVOICE NUMBER,158623,800,Revenue,1199,Fulton Paper,SS2 5RY,0
Hra Expenditure,Repairs And Maintenance,Planned Maintenance,Contracted Services,Domestic Electrical Audit Cert,31/05/2022,REDACTED INVOICE NUMBER,160530,607,Revenue,27976,Gas Contract Services Ltd,ME2 4NZ,0
Hra Expenditure,Repairs And Maintenance,Planned Maintenance,Contracted Services,DOMESTIC ELECTRIC AND GAS WORK,31/05/2022,REDACTED INVOICE NUMBER,159768,2140,Revenue,27976,Gas Contract Services Ltd,ME2 4NZ,0
Hra Expenditure,Repairs And Maintenance,Planned Maintenance,Contracted Services,Domestic Gas Annual Service ,31/05/2022,REDACTED INVOICE NUMBER,160528,784,Revenue,27976,Gas Contract Services Ltd,ME2 4NZ,0
Hra Expenditure,Repairs And Maintenance,Planned Maintenance,Contracted Services,Domestic Gas Boiler/System Ins,31/05/2022,REDACTED INVOICE NUMBER,160529,627,Revenue,27976,Gas Contract Services Ltd,ME2 4NZ,0
Hra Expenditure,Special Services,Chichester House,Gas,GAS SUPPLY,06/05/2022,REDACTED INVOICE NUMBER,159184,1337.5,Revenue,1222,Gazprom Energy,M3 3GY,0
Hra Expenditure,Special Services,Communal Heating,Gas,GAS SUPPLY,06/05/2022,REDACTED INVOICE NUMBER,159170,9.59,Revenue,1222,Gazprom Energy,M3 3GY,0
Hra Expenditure,Special Services,Communal Heating,Gas,GAS SUPPLY,06/05/2022,REDACTED INVOICE NUMBER,159184,573.18,Revenue,1222,Gazprom Energy,M3 3GY,0
Hra Expenditure,Special Services,Communal Heating,Gas,GAS SUPPLY,06/05/2022,REDACTED INVOICE NUMBER,159181,3.15,Revenue,1222,Gazprom Energy,M3 3GY,0
Hra Expenditure,Special Services,Communal Heating,Gas,GAS SUPPLY,06/05/2022,REDACTED INVOICE NUMBER,159183,109.55,Revenue,1222,Gazprom Energy,M3 3GY,0
Hra Expenditure,Special Services,St Georges Court,Gas,GAS SUPPLY,06/05/2022,REDACTED INVOICE NUMBER,159181,6.44,Revenue,1222,Gazprom Energy,M3 3GY,0
Hra Expenditure,Special Services,St Georges Court,Gas,GAS SUPPLY,06/05/2022,REDACTED INVOICE NUMBER,159183,202.84,Revenue,1222,Gazprom Energy,M3 3GY,0
Director Corporate Resources,Asset Management,Asset Management,Gas,GAS SUPPLY,10/05/2022,REDACTED INVOICE NUMBER,158851,125.15,Revenue,1222,Gazprom Energy,M3 3GY,0
Director Of Environment,Open Spaces,Buildings & Stakeholders,Gas,GAS SUPPLY,10/05/2022,REDACTED INVOICE NUMBER,158808,9.9,Revenue,1222,Gazprom Energy,M3 3GY,0
Director Of Environment,Open Spaces,Buildings & Stakeholders,Gas,GAS SUPPLY,10/05/2022,REDACTED INVOICE NUMBER,158809,117.03,Revenue,1222,Gazprom Energy,M3 3GY,0
Director Of Environment,Open Spaces,Buildings & Stakeholders,Gas,GAS SUPPLY,10/05/2022,REDACTED INVOICE NUMBER,159086,208.68,Revenue,1222,Gazprom Energy,M3 3GY,0
Director Corporate Resources,Asset Management,Asset Management,Gas,GAS SUPPLY,13/05/2022,REDACTED INVOICE NUMBER,159787,656.53,Revenue,1222,Gazprom Energy,M3 3GY,0
Director Corporate Resources,Asset Management,Asset Management,Gas,GAS SUPPLY,13/05/2022,REDACTED INVOICE NUMBER,159788,726.87,Revenue,1222,Gazprom Energy,M3 3GY,0
Director Corporate Resources,Asset Management,Asset Management,Gas,GAS SUPPLY,13/05/2022,REDACTED INVOICE NUMBER,159817,726.87,Revenue,1222,Gazprom Energy,M3 3GY,0
Director Corporate Resources,Asset Management,Asset Management,Gas,GAS SUPPLY,13/05/2022,REDACTED INVOICE NUMBER,159813,162.39,Revenue,1222,Gazprom Energy,M3 3GY,0
Director Corporate Resources,Asset Management,Asset Management,Gas,GAS SUPPLY,13/05/2022,REDACTED INVOICE NUMBER,159786,591.76,Revenue,1222,Gazprom Energy,M3 3GY,0
Hra Expenditure,Special Services,Communal Heating,Gas,GAS SUPPLY,13/05/2022,REDACTED INVOICE NUMBER,159087,806.26,Revenue,1222,Gazprom Energy,M3 3GY,0
Hra Expenditure,Special Services,Oldfields,Electricity,ELECTRICITY SUPPLY,13/05/2022,REDACTED INVOICE NUMBER,159087,1864.46,Revenue,1222,Gazprom Energy,M3 3GY,0
Hra Expenditure,Special Services,Victoria Court,Gas,GAS SUPPLY,13/05/2022,REDACTED INVOICE NUMBER,159087,2368.73,Revenue,1222,Gazprom Energy,M3 3GY,0
Director Of Environment,Depot Management & Admin,Depot Management & Admin,Gas,GAS SUPPLY,27/05/2022,REDACTED INVOICE NUMBER,160156,60.52,Revenue,1222,Gazprom Energy,M3 3GY,0
Hra Expenditure,Special Services,Communal Heating,Gas,GAS SUPPLY,31/05/2022,REDACTED INVOICE NUMBER,160169,26.36,Revenue,1222,Gazprom Energy,M3 3GY,0
Hra Expenditure,Special Services,Communal Heating,Gas,GAS SUPPLY,31/05/2022,REDACTED INVOICE NUMBER,160153,78.25,Revenue,1222,Gazprom Energy,M3 3GY,0
Hra Expenditure,Special Services,Communal Heating,Gas,GAS SUPPLY,31/05/2022,REDACTED INVOICE NUMBER,160146,56.64,Revenue,1222,Gazprom Energy,M3 3GY,0
Hra Expenditure,Special Services,Communal Heating,Gas,GAS SUPPLY,31/05/2022,REDACTED INVOICE NUMBER,160154,63.39,Revenue,1222,Gazprom Energy,M3 3GY,0
Hra Expenditure,Special Services,Drake House,Gas,GAS SUPPLY,31/05/2022,REDACTED INVOICE NUMBER,160150,2722.18,Revenue,1222,Gazprom Energy,M3 3GY,0
Hra Expenditure,Special Services,Ingleton House,Gas,GAS SUPPLY,31/05/2022,REDACTED INVOICE NUMBER,160153,235.55,Revenue,1222,Gazprom Energy,M3 3GY,0
Hra Expenditure,Special Services,Victoria Court,Gas,GAS SUPPLY,31/05/2022,REDACTED INVOICE NUMBER,160152,666.18,Revenue,1222,Gazprom Energy,M3 3GY,0
Director Of Environment,Waste Management,Refuse Waste,Equipment & Tools - R&M,BAGS COLLECTED/SUPPLIED,24/05/2022,REDACTED INVOICE NUMBER,159461,504.4,Revenue,25265,General Business Holdings Ltd,CM8 3DH,0
Capex Director Of C Resources,Asset Management,Asset Management Strategy,Enhancements,44 High Street External Works,27/05/2022,REDACTED INVOICE NUMBER,159444,26200.6,Capital,1254,Glorcroft Ltd,SS14 1PE,0
Capex Director Of C Resources,Asset Management,Asset Management Strategy,R&M Bldgs - General,44 HIGH STREET  - WORKS,27/05/2022,REDACTED INVOICE NUMBER,159431,41824.19,Capital,1254,Glorcroft Ltd,SS14 1PE,0
Director Digital & Customer En,Digital Servs & Transformation,Ict Services,Internet Services,Renewal Charge - FEB'22 - FEB'23,10/05/2022,REDACTED INVOICE NUMBER,158552,42480.01,Revenue,22008,Granicus-Firmstep Ltd,EC2A 2DT,0
Capex Director Of Housing,Housing - Affordable Housing,Harewood Rd Dev,Enhancements,ARBORICULTURE REPORTS HAREWOOD,24/05/2022,REDACTED INVOICE NUMBER,159214,1890,Capital,29000,Greenlight Environmental Consultancy,IP22 4GT,0
Director Corporate Resources,Asset Management,Asset Management,Search Fees,LAND REG DD'S APRIL 2022,06/05/2022,REDACTED INVOICE NUMBER,159498,177,Revenue,22013,H M Land Registry,.,0
Director Of Environment,Open Spaces,Amenity Greens,Search Fees,LAND REG DD'S APRIL 2022,06/05/2022,REDACTED INVOICE NUMBER,159498,6,Revenue,22013,H M Land Registry,.,0
Director Of Planning & Economy,Planning Development Managemt,Planning Development Managemt,Search Fees,LAND REG DD'S APRIL 2022,06/05/2022,REDACTED INVOICE NUMBER,159498,90,Revenue,22013,H M Land Registry,.,0
Hra Expenditure,Supervision And Management,Rent Collection & Recovery,Search Fees,LAND REG DD'S APRIL 2022,06/05/2022,REDACTED INVOICE NUMBER,159498,30,Revenue,22013,H M Land Registry,.,0
Director Of Environment,Open Spaces,Recreation Areas,Purchases - Materials,SEAT ASSEMBLY,31/05/2022,REDACTED INVOICE NUMBER,160471,480.36,Revenue,1310,Hags Smp,YO8 8AP,0
Director Of Environment,Open Spaces,Recreation Areas,R&M Grounds - Play Equipment,PARTS,31/05/2022,REDACTED INVOICE NUMBER,160382,50,Revenue,1310,Hags Smp,YO8 8AP,0
Director Of Environment,Vehicle Fleet Management,Vehicle Fleet Management,Vehicle Replacement Parts,VEHICLE PARTS,06/05/2022,REDACTED INVOICE NUMBER,158541,19.17,Revenue,1329,Harris Commercial Repairs Limited,RM20 4AU,0
Director Of Environment,Vehicle Fleet Management,Vehicle Fleet Management,Vehicle R&M - External,MONTHLY SERVICE,06/05/2022,REDACTED INVOICE NUMBER,158252,255,Revenue,1329,Harris Commercial Repairs Limited,RM20 4AU,0
Director Of Environment,Vehicle Fleet Management,Vehicle Fleet Management,Vehicle R&M - External,CREDIT NOTE,06/05/2022,REDACTED INVOICE NUMBER,158779,-125,Revenue,1329,Harris Commercial Repairs Limited,RM20 4AU,0
Director Of Environment,Vehicle Fleet Management,Vehicle Fleet Management,Vehicle R&M - External,CREDIT NOTE,06/05/2022,REDACTED INVOICE NUMBER,158778,-255,Revenue,1329,Harris Commercial Repairs Limited,RM20 4AU,0
Director Of Environment,Vehicle Fleet Management,Vehicle Fleet Management,Vehicle R&M - External,VEHICLE PARTS,06/05/2022,REDACTED INVOICE NUMBER,158541,229.28,Revenue,1329,Harris Commercial Repairs Limited,RM20 4AU,0
Director Corporate Resources,Corporate Finance,Corporate Finance,Agency Staff,PROJECT MANAGEMENT SUPPORT,03/05/2022,REDACTED INVOICE NUMBER,159203,1564.4,Revenue,27208,Hays Specialist Recruitment Ltd,KT3 4QF,0
Director Corporate Resources,Corporate Finance,Corporate Finance,Agency Staff,PROJECT MANAGEMENT SUPPORT,13/05/2022,REDACTED INVOICE NUMBER,159627,1564.4,Revenue,27208,Hays Specialist Recruitment Ltd,KT3 4QF,0
Director Corporate Resources,Corporate Finance,Corporate Finance,Agency Staff,PROJECT MANAGEMENT SUPPORT,20/05/2022,REDACTED INVOICE NUMBER,159780,1564.4,Revenue,27208,Hays Specialist Recruitment Ltd,KT3 4QF,0
Director Housing & Enforcement,Homelessness,Homelessness Prevention,Rent Deposit Scheme,RENT DEPOSIT,27/05/2022,REDACTED INVOICE NUMBER,160074,2255,Revenue,218735P,Help2rent Property Management Ltd,CO5 5NE,0
Director Of Environment,Grounds Maintenance,Grounds Maintenance,Purchases - Materials,HUSQVAMA SERVICE AND PARTS,13/05/2022,REDACTED INVOICE NUMBER,157697,135.82,Revenue,1419,Hopedima Engineering Ltd,CM14 5SU,0
Director Of Environment,Grounds Maintenance,Grounds Maintenance,Purchases - Materials,STIHL SERVICE,13/05/2022,REDACTED INVOICE NUMBER,157694,130.62,Revenue,1419,Hopedima Engineering Ltd,CM14 5SU,0
Director Of Environment,Grounds Maintenance,Grounds Maintenance,Plant & Mcy - Repairs & Maint,STIHL SERVICE AND REPAIR,20/05/2022,REDACTED INVOICE NUMBER,159489,108.33,Revenue,1419,Hopedima Engineering Ltd,CM14 5SU,0
Director Of Environment,Grounds Maintenance,Grounds Maintenance,Plant & Mcy - Repairs & Maint,strimmer repair,20/05/2022,REDACTED INVOICE NUMBER,159488,22.5,Revenue,1419,Hopedima Engineering Ltd,CM14 5SU,0
Director Of Environment,Golf Course,Golf Course,Vehicle R&M - External,JOHN DEERE REPAIRS,24/05/2022,REDACTED INVOICE NUMBER,158743,199.23,Revenue,1419,Hopedima Engineering Ltd,CM14 5SU,0
Director Of Environment,Grounds Maintenance,Grounds Maintenance,Plant & Mcy - Repairs & Maint,MOWER REPAIR - KGPF,24/05/2022,REDACTED INVOICE NUMBER,159751,294.92,Revenue,1419,Hopedima Engineering Ltd,CM14 5SU,0
Director Of Environment,Grounds Maintenance,Grounds Maintenance,Purchases - General Equipment,MACHINERY,24/05/2022,REDACTED INVOICE NUMBER,158211,2700,Revenue,1419,Hopedima Engineering Ltd,CM14 5SU,0
Director Of Environment,Grounds Maintenance,Grounds Maintenance,Purchases - General Equipment,VEHICLE PARTS,24/05/2022,REDACTED INVOICE NUMBER,158748,365,Revenue,1419,Hopedima Engineering Ltd,CM14 5SU,0
Hra Expenditure,Supervision And Management,Policy And Management,Training Expenses,SHARED OWNERSHIP TRAINING,03/05/2022,REDACTED INVOICE NUMBER,159186,350,Revenue,1430,Hqn Limited,YO31 7JA,0
Hra Expenditure,Supervision And Management,Policy And Management,Training Expenses,LEASEHOLD SUMMIT,31/05/2022,REDACTED INVOICE NUMBER,160446,350,Revenue,1430,Hqn Limited,YO31 7JA,0
Director Corporate Resources,Design And Print Services,Design & Print Services,Other Fees & Service,SERVICE CONTRACT,17/05/2022,REDACTED INVOICE NUMBER,159422,175,Revenue,25054,Hussey Knights (Use Supplier 28945),CM13 1TN,0
Director Corporate Resources,Office Accommodation,Office Accommodation,Postage Costs Direct,Imail Hybrid Standard,06/05/2022,REDACTED INVOICE NUMBER,159469,139.77,Revenue,5008,Imail Comms Ltd,CV3 4LA,0
Director Corporate Resources,Office Accommodation,Office Accommodation,Postage Costs Direct,Imail Hybrid Standard,13/05/2022,REDACTED INVOICE NUMBER,159741,26.67,Revenue,5008,Imail Comms Ltd,CV3 4LA,0
Director Corporate Resources,Office Accommodation,Office Accommodation,Postage Costs Direct,Imail Hybrid Premium,20/05/2022,REDACTED INVOICE NUMBER,160026,52.63,Revenue,5008,Imail Comms Ltd,CV3 4LA,0
Director Corporate Resources,Office Accommodation,Office Accommodation,Postage Costs Direct,Imail Hybrid Premium,27/05/2022,REDACTED INVOICE NUMBER,160453,87.86,Revenue,5008,Imail Comms Ltd,CV3 4LA,0
Director Corporate Resources,Human Resources,Human Resources,Occupational Health,Management Referral OHA,20/05/2022,REDACTED INVOICE NUMBER,160037,128,Revenue,28613,Innovate Healthcare Management Group,SK11 1TA,0
Director Of Environment,Vehicle Fleet Management,Vehicle Fleet Management,Vehicle Replacement Parts,VEHICLE PARTS,13/05/2022,REDACTED INVOICE NUMBER,158635,469.06,Revenue,1533,Interwaste Municipal Limited,WV10 7PA,0
Director Of Environment,Vehicle Fleet Management,Vehicle Fleet Management,Vehicle Replacement Parts,VEHICLE PARTS,24/05/2022,REDACTED INVOICE NUMBER,158889,219.5,Revenue,1533,Interwaste Municipal Limited,WV10 7PA,0
Director Of Environment,Vehicle Fleet Management,Vehicle Fleet Management,Vehicle Replacement Parts,VEHICLE PARTS,27/05/2022,REDACTED INVOICE NUMBER,159243,467.31,Revenue,1533,Interwaste Municipal Limited,WV10 7PA,0
Capex Director Of Housing,Housing - Affordable Housing,Brookfield Project,Enhancements,ENHANCEMENTS,20/05/2022,REDACTED INVOICE NUMBER,160041,9526.67,Capital,218532P,REDACTED PERSONAL DATA,REDACTED,0
Capex Director Of Environment,Other Environmental Services,Disabled Facilities Grant,Grants - General,DISABLED FACILITIES GRANT,03/05/2022,REDACTED INVOICE NUMBER,158772,6725,Capital,1570,J W Commons + Sons,CM15 9QB,0
Director Housing & Enforcement,Homelessness,Homelessness Prevention,Removal Costs,REMOVAL COSTS,24/05/2022,REDACTED INVOICE NUMBER,160081,1359.16,Revenue,1623,Jeakins Domestic + Comm Removals Ltd,SS15 6PZ,0
Director Of Environment,Vehicle Fleet Management,Vehicle Fleet Management,Vehicle Replacement Parts,VEHICLE PARTS,13/05/2022,REDACTED INVOICE NUMBER,159434,180.1,Revenue,25305,Jennings Engineering Supplies Ltd,CM3 6LG,0
Director Of Environment,Vehicle Fleet Management,Vehicle Fleet Management,Vehicle Replacement Parts,VEHICLE PARTS,20/05/2022,REDACTED INVOICE NUMBER,159661,268.15,Revenue,25305,Jennings Engineering Supplies Ltd,CM3 6LG,0
Director Of Environment,Vehicle Fleet Management,Vehicle Fleet Management,Vehicle Replacement Parts,VEHICLE PARTS,31/05/2022,REDACTED INVOICE NUMBER,159440,287.05,Revenue,25305,Jennings Engineering Supplies Ltd,CM3 6LG,0
Balance Sheet,Balance Sheet,Balance Sheet,Homes For Ukraine,HOMES FOR UKRAINE,27/05/2022,REDACTED INVOICE NUMBER,160469,400,Revenue,219010P,REDACTED PERSONAL DATA,REDACTED,0
Balance Sheet,Balance Sheet,Balance Sheet,Homes For Ukraine,HOMES FOR UKRAINE,27/05/2022,REDACTED INVOICE NUMBER,160470,200,Revenue,219010P,REDACTED PERSONAL DATA,REDACTED,0
Capex Director Of Housing,Housing - Affordable Housing,Four Oaks,Aquisition Of Buildings,AQUSITION OF BUILDINGS,31/05/2022,REDACTED INVOICE NUMBER,160806,250000,Capital,219401P,Johnson Crilly Solicitors Llp,.,0
Capex Director Of Housing,Housing - Affordable Housing,Garage Site Development,Enhancements,SHDP APR 22 Programme ManagemeNT,17/05/2022,REDACTED INVOICE NUMBER,159625,5266.62,Capital,28185,Joseph Hardy & Company Ltd,CM4 9TA,0
Director Of Planning & Economy,Planning Development Managemt,Planning Development Managemt,Consultancy Fees,CONSERVATION & DESIGN CONSULTEE ,31/05/2022,REDACTED INVOICE NUMBER,159421,4450,Revenue,28185,Joseph Hardy & Company Ltd,CM4 9TA,0
Director Of Planning & Economy,Planning Development Managemt,Planning Development Managemt,Consultancy Fees,CONSERVATION REPORTS,31/05/2022,REDACTED INVOICE NUMBER,158254,4957.4,Revenue,28185,Joseph Hardy & Company Ltd,CM4 9TA,0
Director Of Planning & Economy,Planning Development Managemt,Planning Development Managemt,Consultancy Fees,DESIGN CONSULTEE SITE TRAVEL,31/05/2022,REDACTED INVOICE NUMBER,159420,136.32,Revenue,28185,Joseph Hardy & Company Ltd,CM4 9TA,0
Hra Expenditure,Repairs And Maintenance,Planned Maintenance,R&M Other - Servicing,ROOF SURVEYS,13/05/2022,REDACTED INVOICE NUMBER,158646,810,Revenue,27613,Keegans Ltd,SE1 4PU,0
Director Of Environment,Waste Management,Refuse Waste,Training Expenses,Driving Assessment,06/05/2022,REDACTED INVOICE NUMBER,158435,300,Revenue,25904,Keep Legal Consultancy Ltd,RM15 4YD,0
Director Of Planning & Economy,Building Control,Building Control - Chargeable,Subscriptions,LABC SERVICE FEE 22/23,06/05/2022,REDACTED INVOICE NUMBER,159212,1898.45,Revenue,1769,Labc Services (Promotions),CV11 6SN,0
Director Housing & Enforcement,Homelessness,Private Sector Acc Leased,B & B Charges (Homelessness),PRIVATE SECTOR LEASING,20/05/2022,REDACTED INVOICE NUMBER,159688,350,Revenue,24333,REDACTED PERSONAL DATA,REDACTED,0
Director Of Environment,Grounds Maintenance,Grounds Maintenance,Protective Clothing,GLOVES,24/05/2022,REDACTED INVOICE NUMBER,159687,-207.6,Revenue,1780,Landscape Supply Company,ME5 7NP,0
Director Of Environment,Grounds Maintenance,Grounds Maintenance,Purchases - General Equipment,CREDIT NOTE - RE CONSUMABLES,24/05/2022,REDACTED INVOICE NUMBER,159490,-59.7,Revenue,1780,Landscape Supply Company,ME5 7NP,0
Director Of Environment,Grounds Maintenance,Grounds Maintenance,Purchases - General Equipment,STRIMMER HEAD,24/05/2022,REDACTED INVOICE NUMBER,158863,338,Revenue,1780,Landscape Supply Company,ME5 7NP,0
Director Corporate Resources,Corporate Finance,Corporate Finance,Subscriptions,FUNDING BRIEFINGS / FORECAST,17/05/2022,REDACTED INVOICE NUMBER,159940,4470,Revenue,1824,Lg Futures Ltd,LU7 6HB,0
Balance Sheet,Balance Sheet,Balance Sheet,Homes For Ukraine,HOMES FOR UKRAINE,06/05/2022,REDACTED INVOICE NUMBER,159507,200,Revenue,216931P,REDACTED PERSONAL DATA,REDACTED,0
Director Of Environment,Golf Course,Golf Course,Bank Charges,CHIP AND PIN - APRIL '22,13/05/2022,REDACTED INVOICE NUMBER,159674,313.95,Revenue,27902,Lloyds Bank (Pg),.,0
Director Of Environment,"Communities, Health & Leisure",Sports & Social Venues,Bank Charges,BRENTWOOD CENTRE - APRIL '22,17/05/2022,REDACTED INVOICE NUMBER,159924,20.5,Revenue,27902,Lloyds Bank (Pg),.,0
Chief Executive,Executive Board,Senior Leadership Team,Conference Expenses - Officers,LGA CONFERENCE,06/05/2022,REDACTED INVOICE NUMBER,158448,495,Revenue,1853,Local Government Association,SW1P 3HZ,0
Director Of Law & Governance,Democratic Services & Support,Member Allowances & Expenses,Conference Expenses - Members,LGA CONFERENCE,06/05/2022,REDACTED INVOICE NUMBER,158449,545,Revenue,1853,Local Government Association,SW1P 3HZ,0
Chief Executive,Executive Board,Senior Leadership Team,Conference Expenses - Officers,Housing 151 conference,06/05/2022,REDACTED INVOICE NUMBER,158518,718,Revenue,29026,Longview Productions Ltd,EC3A 8AA,0
Director Of Environment,Open Spaces,Countryside Recreation Mtnce,R&M Grounds - Treework,TREE WORKS,31/05/2022,REDACTED INVOICE NUMBER,160028,6000,Revenue,27240,M H Dunn & Sons Forestry Contracts,CM8 3EL,0
Director Of Environment,Dog Control,Dog Control,Kennel & Vet Fees,KENNEL COSTS,27/05/2022,REDACTED INVOICE NUMBER,160195,445,Revenue,1913,M.A. Robinson,CM15 0LH,0
Director Corporate Resources,Council Tax & Nndr,Council Tax Collection,Baliff Fees,VAT ON FEES,17/05/2022,REDACTED INVOICE NUMBER,158791,0,Revenue,1956,Marston Group Limited,CM16 9EB,0
Director Corporate Resources,Council Tax & Nndr,Council Tax Collection,Baliff Fees,VAT ON FEES,17/05/2022,REDACTED INVOICE NUMBER,158771,0,Revenue,1956,Marston Group Limited,CM16 9EB,0
Director Corporate Resources,Council Tax & Nndr,Council Tax Collection,Baliff Fees,VAT ON FEES ,17/05/2022,REDACTED INVOICE NUMBER,158770,0,Revenue,1956,Marston Group Limited,CM16 9EB,0
Director Corporate Resources,Asset Management,Asset Management,Other Professional Fees,SUITE 10 TOWN HALL - AGENCY SERVICES,13/05/2022,REDACTED INVOICE NUMBER,159729,2196,Revenue,1969,Mass & Co Ltd,CM14 4RG,0
Director Corporate Resources,Asset Management,Asset Management,Other Professional Fees,VALUATION - HUTTON POPLARS HALL,27/05/2022,REDACTED INVOICE NUMBER,159926,1500,Revenue,1969,Mass & Co Ltd,CM14 4RG,0
Director Of Environment,Vehicle Fleet Management,Vehicle Fleet Management,Equipment - Lease Rentals,TRACK AND TRACE - APR '22,31/05/2022,REDACTED INVOICE NUMBER,159448,1052.87,Revenue,1971,Masternaut (Uk) Ltd,LS25 3DF,0
Director Of Environment,Vehicle Fleet Management,Vehicle Fleet Management,Equipment - Lease Rentals,TRACK AND TRACE - MAY '22,31/05/2022,REDACTED INVOICE NUMBER,159449,42.40,Revenue,1971,Masternaut (Uk) Ltd,LS25 3DF,0
Director Housing & Enforcement,Homelessness,Private Sector Acc Leased,Rent/Hire Of Buildings,PRIVATE SECTOR LEASING,13/05/2022,REDACTED INVOICE NUMBER,159417,600,Revenue,2339,REDACTED PERSONAL DATA,REDACTED,0
Director Of Environment,Vehicle Fleet Management,Vehicle Fleet Management,Vehicle R&M - External,MOT,13/05/2022,REDACTED INVOICE NUMBER,158815,45,Revenue,1382,Mr K Neame,CM15 0PJ,0
Director Housing & Enforcement,Homelessness,Private Sector Acc Leased,Rents - Other Premises,PRIVATE SECTOR LEASING,17/05/2022,REDACTED INVOICE NUMBER,159651,725,Revenue,2968,REDACTED PERSONAL DATA,REDACTED,0
Hra Expenditure,Special Services,Grounds Maintenance,R&M Grounds - Treework,HAREWOOD RAOD - CLEARANCE,06/05/2022,REDACTED INVOICE NUMBER,158794,725,Revenue,3467,Multiclean,RM12 4QU,0
Director Digital & Customer En,Digital Servs & Transformation,Ict Services,Telephones - General,PHONE CHARGES,17/05/2022,REDACTED INVOICE NUMBER,158430,932.55,Revenue,4022,Multidata,SN6 8EY,0
Director Digital & Customer En,Digital Servs & Transformation,Ict Services,Telephones - General,PHONE CHARGES,27/05/2022,REDACTED INVOICE NUMBER,160004,43.72,Revenue,4022,Multidata,SN6 8EY,0
Director Digital & Customer En,Digital Servs & Transformation,Ict Services,Telephones - General,PHONE CHARGES,31/05/2022,REDACTED INVOICE NUMBER,159436,43.72,Revenue,4022,Multidata,SN6 8EY,0
Director Digital & Customer En,Digital Servs & Transformation,Ict Services,Telephones - General,PHONE CHARGES,31/05/2022,REDACTED INVOICE NUMBER,159435,932.55,Revenue,4022,Multidata,SN6 8EY,0
Director Of Law & Governance,Democratic Services & Support,Civic Services & Support,Miscellaneous Expenses,CIVIC DINNER,06/05/2022,REDACTED INVOICE NUMBER,158447,470,Revenue,4082,REDACTED PERSONAL DATA,REDACTED,0
Director Of Environment,Vehicle Fleet Management,Vehicle Fleet Management,Vehicle - Tyres,VEHICLE REPAIRS,03/05/2022,REDACTED INVOICE NUMBER,158729,55,Revenue,4083,Nicks Tyre Services Ltd,CM15 9SB,0
Director Of Environment,Vehicle Fleet Management,Vehicle Fleet Management,Vehicle - Tyres,VEHICLE REPAIRS,03/05/2022,REDACTED INVOICE NUMBER,158721,699,Revenue,4083,Nicks Tyre Services Ltd,CM15 9SB,0
Director Of Environment,Vehicle Fleet Management,Vehicle Fleet Management,Vehicle - Tyres,VEHICLE REPAIRS,10/05/2022,REDACTED INVOICE NUMBER,159161,55,Revenue,4083,Nicks Tyre Services Ltd,CM15 9SB,0
Director Of Law & Governance,Democratic Services & Support,Civic Services & Support,Vehicle - Fuel,VEHICLE REPAIRS,10/05/2022,REDACTED INVOICE NUMBER,159188,298.9,Revenue,4083,Nicks Tyre Services Ltd,CM15 9SB,0
Director Of Environment,Vehicle Fleet Management,Vehicle Fleet Management,Vehicle - Tyres,VEHICLE REPAIRS,13/05/2022,REDACTED INVOICE NUMBER,159418,56.98,Revenue,4083,Nicks Tyre Services Ltd,CM15 9SB,0
Director Of Environment,Vehicle Fleet Management,Vehicle Fleet Management,Vehicle - Tyres,VEHICLE REPAIRS,13/05/2022,REDACTED INVOICE NUMBER,159213,119.68,Revenue,4083,Nicks Tyre Services Ltd,CM15 9SB,0
Capex Director Of Housing,Housing - Hra,Housing Stock - Water,Enhancements,PIPE REPLACEMENT ,06/05/2022,REDACTED INVOICE NUMBER,159281,1582.82,Capital,4101,Northumbrian Water Limited,DH1 9WF,0
Capex Director Of Housing,Housing - Hra,Housing Stock - Water,Enhancements,PIPE RENEWAL.,13/05/2022,REDACTED INVOICE NUMBER,158650,961.61,Capital,4101,Northumbrian Water Limited,DH1 9WF,0
Director Housing & Enforcement,Housing Advice & Enabling,Housing Advice,Medical Reports,MEDICAL ADVISE - HOUSING DEPT,31/05/2022,REDACTED INVOICE NUMBER,159426,370,Revenue,4103,Nowmedical,W4 5LH,0
Capex Director Of Housing,Housing - Affordable Housing,Harewood Rd Dev,Enhancements,HAREWOOD ROAD DEVELOPMENT ,27/05/2022,REDACTED INVOICE NUMBER,160467,19642.78,Capital,28307,Nps Property Consultants Ltd,NR6 6EQ,0
Capex Director Of Housing,Housing - Affordable Housing,Harewood Rd Dev,Enhancements,HAREWOOD ROAD - REDEVELOPMENT,31/05/2022,REDACTED INVOICE NUMBER,159430,28136.65,Capital,28307,Nps Property Consultants Ltd,NR6 6EQ,0
Director Of Environment,Golf Course,Golf Course,Water,WATER SUPPLY,03/05/2022,REDACTED INVOICE NUMBER,158674,2668.11,Revenue,26560,Nwg Business Ltd - Now Wave,DH1 5FJ,0
Director Of Environment,Golf Course,Golf Course,Water,WATER SUPPLY,03/05/2022,REDACTED INVOICE NUMBER,158651,-3773.56,Revenue,26560,Nwg Business Ltd - Now Wave,DH1 5FJ,0
Hra Expenditure,"Rents, Rates & Other Charges","Rents, Rates & Other Charges",Water,WATER SUPPLY,03/05/2022,REDACTED INVOICE NUMBER,158314,801.2,Revenue,26560,Nwg Business Ltd - Now Wave,DH1 5FJ,0
Hra Expenditure,"Rents, Rates & Other Charges","Rents, Rates & Other Charges",Water,WATER SUPPLY,03/05/2022,REDACTED INVOICE NUMBER,158258,110.19,Revenue,26560,Nwg Business Ltd - Now Wave,DH1 5FJ,0
Hra Expenditure,"Rents, Rates & Other Charges","Rents, Rates & Other Charges",Water,WATER SUPPLY,03/05/2022,REDACTED INVOICE NUMBER,158257,110.19,Revenue,26560,Nwg Business Ltd - Now Wave,DH1 5FJ,0
Hra Expenditure,"Rents, Rates & Other Charges","Rents, Rates & Other Charges",Water,WATER SUPPLY,03/05/2022,REDACTED INVOICE NUMBER,158652,197.33,Revenue,26560,Nwg Business Ltd - Now Wave,DH1 5FJ,0
Hra Expenditure,"Rents, Rates & Other Charges","Rents, Rates & Other Charges",Water,WATER SUPPLY,03/05/2022,REDACTED INVOICE NUMBER,158256,110.19,Revenue,26560,Nwg Business Ltd - Now Wave,DH1 5FJ,0
Director Of Environment,Open Spaces,Buildings & Stakeholders,Water,WATER SUPPLY,10/05/2022,REDACTED INVOICE NUMBER,159185,803.7,Revenue,26560,Nwg Business Ltd - Now Wave,DH1 5FJ,0
Director Of Environment,Cemeteries,Cemeteries,Water,WATER SUPPLY,13/05/2022,REDACTED INVOICE NUMBER,158648,301.41,Revenue,26560,Nwg Business Ltd - Now Wave,DH1 5FJ,0
Director Of Environment,Cemeteries,Cemeteries,Water,WATER SUPPLY,13/05/2022,REDACTED INVOICE NUMBER,158649,51.83,Revenue,26560,Nwg Business Ltd - Now Wave,DH1 5FJ,0
Director Of Environment,Open Spaces,Buildings & Stakeholders,Water,WATER SUPPLY,13/05/2022,REDACTED INVOICE NUMBER,117722,76.64,Revenue,26560,Nwg Business Ltd - Now Wave,DH1 5FJ,0
Director Of Environment,Open Spaces,Buildings & Stakeholders,Water,WATER SUPPLY,17/05/2022,REDACTED INVOICE NUMBER,158885,4518.53,Revenue,26560,Nwg Business Ltd - Now Wave,DH1 5FJ,0
Director Of Environment,Parking,Parking Services,Water,WATER SUPPLY,17/05/2022,REDACTED INVOICE NUMBER,158886,66.57,Revenue,26560,Nwg Business Ltd - Now Wave,DH1 5FJ,0
Hra Expenditure,"Rents, Rates & Other Charges","Rents, Rates & Other Charges",Water,WATER SUPPLY,20/05/2022,REDACTED INVOICE NUMBER,159798,801.2,Revenue,26560,Nwg Business Ltd - Now Wave,DH1 5FJ,0
Director Corporate Resources,Asset Management,Asset Management,Water,WATER SUPPLY,24/05/2022,REDACTED INVOICE NUMBER,159433,25.36,Revenue,26560,Nwg Business Ltd - Now Wave,DH1 5FJ,0
Director Of Environment,Open Spaces,Buildings & Stakeholders,Water,WATER SUPPLY,31/05/2022,REDACTED INVOICE NUMBER,159680,72.74,Revenue,26560,Nwg Business Ltd - Now Wave,DH1 5FJ,0
Director Housing & Enforcement,Homelessness,B&B Accommodation,B & B Charges (Homelessness),HOMELESSNESS PREVENTION,13/05/2022,REDACTED INVOICE NUMBER,159634,681.33,Revenue,22829,Oasis Hotel Harlow Ltd,CM17 0HL,0
Director Housing & Enforcement,Homelessness,B&B Accommodation,B & B Charges (Homelessness),HOMELESSNESS PREVENTION,13/05/2022,REDACTED INVOICE NUMBER,159612,2303.81,Revenue,22829,Oasis Hotel Harlow Ltd,CM17 0HL,0
Director Housing & Enforcement,Homelessness,B&B Accommodation,B & B Charges (Homelessness),HOMELESSNESS PREVENTION,13/05/2022,REDACTED INVOICE NUMBER,159613,2360,Revenue,22829,Oasis Hotel Harlow Ltd,CM17 0HL,0
Director Housing & Enforcement,Homelessness,B&B Accommodation,B & B Charges (Homelessness),HOMELESSNESS PREVENTION,13/05/2022,REDACTED INVOICE NUMBER,159615,524.44,Revenue,22829,Oasis Hotel Harlow Ltd,CM17 0HL,0
Director Housing & Enforcement,Homelessness,B&B Accommodation,B & B Charges (Homelessness),HOMELESSNESS PREVENTION,13/05/2022,REDACTED INVOICE NUMBER,159616,72,Revenue,22829,Oasis Hotel Harlow Ltd,CM17 0HL,0
Balance Sheet,Balance Sheet,Balance Sheet,Homes For Ukraine,HOMES FOR UKRAINE,06/05/2022,REDACTED INVOICE NUMBER,159442,400,Revenue,216928P,REDACTED PERSONAL DATA,REDACTED,0
Balance Sheet,Balance Sheet,Balance Sheet,Homes For Ukraine,HOMES FOR UKRAINE,27/05/2022,REDACTED INVOICE NUMBER,160425,600,Revenue,218753P,REDACTED PERSONAL DATA,REDACTED,0
Director Housing & Enforcement,Cctv,Community Safety - Cctv,Electricity,ELECTRICITY SUPPLY,06/05/2022,REDACTED INVOICE NUMBER,158986,155.26,Revenue,4145,Opus Energy (Corporate) Ltd,OX2 7JH,0
Director Housing & Enforcement,Homelessness,Temp Accommodation (Own Stock),Electricity,ELECTRICITY SUPPLY,06/05/2022,REDACTED INVOICE NUMBER,158977,232.58,Revenue,4145,Opus Energy (Corporate) Ltd,OX2 7JH,0
Director Of Environment,"Communities, Health & Leisure",Christmas Lights & Decorations,Electricity,ELECTRICITY SUPPLY,06/05/2022,REDACTED INVOICE NUMBER,159053,2.37,Revenue,4145,Opus Energy (Corporate) Ltd,OX2 7JH,0
Director Of Environment,Depot Management & Admin,Depot Management & Admin,Electricity,ELECTRICITY SUPPLY,06/05/2022,REDACTED INVOICE NUMBER,159065,1665.12,Revenue,4145,Opus Energy (Corporate) Ltd,OX2 7JH,0
Director Of Environment,Parking,Parking Services,Electricity,ELECTRICITY SUPPLY,06/05/2022,REDACTED INVOICE NUMBER,159018,7682.75,Revenue,4145,Opus Energy (Corporate) Ltd,OX2 7JH,0
Director Of Environment,Parking,Parking Services,Electricity,ELECTRICITY SUPPLY,06/05/2022,REDACTED INVOICE NUMBER,158988,124,Revenue,4145,Opus Energy (Corporate) Ltd,OX2 7JH,0
Director Of Environment,Parking,Parking Services,Electricity,ELECTRICITY SUPPLY,06/05/2022,REDACTED INVOICE NUMBER,158991,21.7,Revenue,4145,Opus Energy (Corporate) Ltd,OX2 7JH,0
Director Of Environment,Street Services,Public Conveniences,Electricity,ELECTRICITY SUPPLY,06/05/2022,REDACTED INVOICE NUMBER,159017,169.52,Revenue,4145,Opus Energy (Corporate) Ltd,OX2 7JH,0
Director Of Environment,Street Services,Public Conveniences,Electricity,ELECTRICITY SUPPLY,06/05/2022,REDACTED INVOICE NUMBER,159015,17.62,Revenue,4145,Opus Energy (Corporate) Ltd,OX2 7JH,0
Hra Expenditure,"Rents, Rates & Other Charges","Rents, Rates & Other Charges",Electricity,ELECTRICITY SUPPLY,06/05/2022,REDACTED INVOICE NUMBER,158935,9.03,Revenue,4145,Opus Energy (Corporate) Ltd,OX2 7JH,0
Hra Expenditure,Special Services,Communal Heating,Electricity,ELECTRICITY SUPPLY,06/05/2022,REDACTED INVOICE NUMBER,157751,-15.18,Revenue,4145,Opus Energy (Corporate) Ltd,OX2 7JH,0
Hra Expenditure,Special Services,Communal Lighting,Electricity,ELECTRICITY SUPPLY,06/05/2022,REDACTED INVOICE NUMBER,159081,-28.77,Revenue,4145,Opus Energy (Corporate) Ltd,OX2 7JH,0
Hra Expenditure,Special Services,Communal Lighting,Electricity,ELECTRICITY SUPPLY,06/05/2022,REDACTED INVOICE NUMBER,158922,-59.26,Revenue,4145,Opus Energy (Corporate) Ltd,OX2 7JH,0
Hra Expenditure,Special Services,Communal Lighting,Electricity,ELECTRICITY SUPPLY,06/05/2022,REDACTED INVOICE NUMBER,158923,-68.47,Revenue,4145,Opus Energy (Corporate) Ltd,OX2 7JH,0
Hra Expenditure,Special Services,Communal Lighting,Electricity,ELECTRICITY SUPPLY,06/05/2022,REDACTED INVOICE NUMBER,159084,-28.7,Revenue,4145,Opus Energy (Corporate) Ltd,OX2 7JH,0
Hra Expenditure,Special Services,Communal Lighting,Electricity,ELECTRICITY SUPPLY,06/05/2022,REDACTED INVOICE NUMBER,159076,-28.08,Revenue,4145,Opus Energy (Corporate) Ltd,OX2 7JH,0
Hra Expenditure,Special Services,Communal Lighting,Electricity,ELECTRICITY SUPPLY,06/05/2022,REDACTED INVOICE NUMBER,159079,-33.25,Revenue,4145,Opus Energy (Corporate) Ltd,OX2 7JH,0
Hra Expenditure,Special Services,Communal Lighting,Electricity,ELECTRICITY SUPPLY,06/05/2022,REDACTED INVOICE NUMBER,159012,264.58,Revenue,4145,Opus Energy (Corporate) Ltd,OX2 7JH,0
Hra Expenditure,Special Services,Communal Lighting,Electricity,ELECTRICITY SUPPLY,06/05/2022,REDACTED INVOICE NUMBER,158925,-62.56,Revenue,4145,Opus Energy (Corporate) Ltd,OX2 7JH,0
Hra Expenditure,Special Services,Communal Lighting,Electricity,ELECTRICITY SUPPLY,06/05/2022,REDACTED INVOICE NUMBER,158924,-54.44,Revenue,4145,Opus Energy (Corporate) Ltd,OX2 7JH,0
Hra Expenditure,Special Services,Communal Lighting,Electricity,ELECTRICITY SUPPLY,06/05/2022,REDACTED INVOICE NUMBER,159080,-30.09,Revenue,4145,Opus Energy (Corporate) Ltd,OX2 7JH,0
Hra Expenditure,Special Services,Communal Lighting,Electricity,ELECTRICITY SUPPLY,06/05/2022,REDACTED INVOICE NUMBER,158927,23.19,Revenue,4145,Opus Energy (Corporate) Ltd,OX2 7JH,0
Hra Expenditure,Special Services,Communal Lighting,Electricity,ELECTRICITY SUPPLY,06/05/2022,REDACTED INVOICE NUMBER,158920,37.38,Revenue,4145,Opus Energy (Corporate) Ltd,OX2 7JH,0
Hra Expenditure,Special Services,Communal Lighting,Electricity,ELECTRICITY SUPPLY,06/05/2022,REDACTED INVOICE NUMBER,158902,39.97,Revenue,4145,Opus Energy (Corporate) Ltd,OX2 7JH,0
Hra Expenditure,Special Services,Communal Lighting,Electricity,ELECTRICITY SUPPLY,06/05/2022,REDACTED INVOICE NUMBER,158912,75.06,Revenue,4145,Opus Energy (Corporate) Ltd,OX2 7JH,0
Hra Expenditure,Special Services,Communal Lighting,Electricity,ELECTRICITY SUPPLY,06/05/2022,REDACTED INVOICE NUMBER,158963,-109.59,Revenue,4145,Opus Energy (Corporate) Ltd,OX2 7JH,0
Hra Expenditure,Special Services,Communal Lighting,Electricity,ELECTRICITY SUPPLY,06/05/2022,REDACTED INVOICE NUMBER,158995,188.36,Revenue,4145,Opus Energy (Corporate) Ltd,OX2 7JH,0
Hra Expenditure,Special Services,Communal Lighting,Electricity,ELECTRICITY SUPPLY,06/05/2022,REDACTED INVOICE NUMBER,158906,41.5,Revenue,4145,Opus Energy (Corporate) Ltd,OX2 7JH,0
Hra Expenditure,Special Services,Communal Lighting,Electricity,ELECTRICITY SUPPLY,06/05/2022,REDACTED INVOICE NUMBER,158998,53.59,Revenue,4145,Opus Energy (Corporate) Ltd,OX2 7JH,0
Hra Expenditure,Special Services,Communal Lighting,Electricity,ELECTRICITY SUPPLY,06/05/2022,REDACTED INVOICE NUMBER,158957,54.55,Revenue,4145,Opus Energy (Corporate) Ltd,OX2 7JH,0
Hra Expenditure,Special Services,Communal Lighting,Electricity,ELECTRICITY SUPPLY,06/05/2022,REDACTED INVOICE NUMBER,158910,34.2,Revenue,4145,Opus Energy (Corporate) Ltd,OX2 7JH,0
Hra Expenditure,Special Services,Communal Lighting,Electricity,ELECTRICITY SUPPLY,06/05/2022,REDACTED INVOICE NUMBER,159042,18.64,Revenue,4145,Opus Energy (Corporate) Ltd,OX2 7JH,0
Hra Expenditure,Special Services,Communal Lighting,Electricity,ELECTRICITY SUPPLY,06/05/2022,REDACTED INVOICE NUMBER,158909,11.43,Revenue,4145,Opus Energy (Corporate) Ltd,OX2 7JH,0
Hra Expenditure,Special Services,Communal Lighting,Electricity,ELECTRICITY SUPPLY,06/05/2022,REDACTED INVOICE NUMBER,158999,36.58,Revenue,4145,Opus Energy (Corporate) Ltd,OX2 7JH,0
Hra Expenditure,Special Services,Communal Lighting,Electricity,ELECTRICITY SUPPLY,06/05/2022,REDACTED INVOICE NUMBER,158938,9.27,Revenue,4145,Opus Energy (Corporate) Ltd,OX2 7JH,0
Hra Expenditure,Special Services,Communal Lighting,Electricity,ELECTRICITY SUPPLY,06/05/2022,REDACTED INVOICE NUMBER,158937,22.12,Revenue,4145,Opus Energy (Corporate) Ltd,OX2 7JH,0
Hra Expenditure,Special Services,Communal Lighting,Electricity,ELECTRICITY SUPPLY,06/05/2022,REDACTED INVOICE NUMBER,158915,27.92,Revenue,4145,Opus Energy (Corporate) Ltd,OX2 7JH,0
Hra Expenditure,Special Services,Communal Lighting,Electricity,ELECTRICITY SUPPLY,06/05/2022,REDACTED INVOICE NUMBER,159005,24.15,Revenue,4145,Opus Energy (Corporate) Ltd,OX2 7JH,0
Hra Expenditure,Special Services,Communal Lighting,Electricity,ELECTRICITY SUPPLY,06/05/2022,REDACTED INVOICE NUMBER,159040,35.84,Revenue,4145,Opus Energy (Corporate) Ltd,OX2 7JH,0
Hra Expenditure,Special Services,Communal Lighting,Electricity,ELECTRICITY SUPPLY,06/05/2022,REDACTED INVOICE NUMBER,158913,100.44,Revenue,4145,Opus Energy (Corporate) Ltd,OX2 7JH,0
Hra Expenditure,Special Services,Communal Lighting,Electricity,ELECTRICITY SUPPLY,06/05/2022,REDACTED INVOICE NUMBER,158904,32.59,Revenue,4145,Opus Energy (Corporate) Ltd,OX2 7JH,0
Hra Expenditure,Special Services,Communal Lighting,Electricity,ELECTRICITY SUPPLY,06/05/2022,REDACTED INVOICE NUMBER,158949,881.98,Revenue,4145,Opus Energy (Corporate) Ltd,OX2 7JH,0
Hra Expenditure,Special Services,Communal Lighting,Electricity,ELECTRICITY SUPPLY,06/05/2022,REDACTED INVOICE NUMBER,158903,34.53,Revenue,4145,Opus Energy (Corporate) Ltd,OX2 7JH,0
Hra Expenditure,Special Services,Communal Lighting,Electricity,ELECTRICITY SUPPLY,06/05/2022,REDACTED INVOICE NUMBER,158981,38.72,Revenue,4145,Opus Energy (Corporate) Ltd,OX2 7JH,0
Hra Expenditure,Special Services,Communal Lighting,Electricity,ELECTRICITY SUPPLY,06/05/2022,REDACTED INVOICE NUMBER,158921,45.89,Revenue,4145,Opus Energy (Corporate) Ltd,OX2 7JH,0
Hra Expenditure,Special Services,Communal Lighting,Electricity,ELECTRICITY SUPPLY,06/05/2022,REDACTED INVOICE NUMBER,159035,23.59,Revenue,4145,Opus Energy (Corporate) Ltd,OX2 7JH,0
Hra Expenditure,Special Services,Communal Lighting,Electricity,ELECTRICITY SUPPLY,06/05/2022,REDACTED INVOICE NUMBER,159072,96.51,Revenue,4145,Opus Energy (Corporate) Ltd,OX2 7JH,0
Hra Expenditure,Special Services,Communal Lighting,Electricity,ELECTRICITY SUPPLY,06/05/2022,REDACTED INVOICE NUMBER,159071,46.54,Revenue,4145,Opus Energy (Corporate) Ltd,OX2 7JH,0
Hra Expenditure,Special Services,Communal Lighting,Electricity,ELECTRICITY SUPPLY,06/05/2022,REDACTED INVOICE NUMBER,158907,64.13,Revenue,4145,Opus Energy (Corporate) Ltd,OX2 7JH,0
Hra Expenditure,Special Services,Communal Lighting,Electricity,ELECTRICITY SUPPLY,06/05/2022,REDACTED INVOICE NUMBER,158901,49.72,Revenue,4145,Opus Energy (Corporate) Ltd,OX2 7JH,0
Hra Expenditure,Special Services,Communal Lighting,Electricity,ELECTRICITY SUPPLY,06/05/2022,REDACTED INVOICE NUMBER,159077,-34.2,Revenue,4145,Opus Energy (Corporate) Ltd,OX2 7JH,0
Hra Expenditure,Special Services,Communal Lighting,Electricity,ELECTRICITY SUPPLY,06/05/2022,REDACTED INVOICE NUMBER,159007,81.06,Revenue,4145,Opus Energy (Corporate) Ltd,OX2 7JH,0
Hra Expenditure,Special Services,Communal Lighting,Electricity,ELECTRICITY SUPPLY,06/05/2022,REDACTED INVOICE NUMBER,159002,23.96,Revenue,4145,Opus Energy (Corporate) Ltd,OX2 7JH,0
Hra Expenditure,Special Services,Communal Lighting,Electricity,ELECTRICITY SUPPLY,06/05/2022,REDACTED INVOICE NUMBER,159074,46.51,Revenue,4145,Opus Energy (Corporate) Ltd,OX2 7JH,0
Hra Expenditure,Special Services,Communal Lighting,Electricity,ELECTRICITY SUPPLY,06/05/2022,REDACTED INVOICE NUMBER,159073,42.63,Revenue,4145,Opus Energy (Corporate) Ltd,OX2 7JH,0
Hra Expenditure,Special Services,Communal Lighting,Electricity,ELECTRICITY SUPPLY,06/05/2022,REDACTED INVOICE NUMBER,159045,15.29,Revenue,4145,Opus Energy (Corporate) Ltd,OX2 7JH,0
Hra Expenditure,Special Services,Communal Lighting,Electricity,ELECTRICITY SUPPLY,06/05/2022,REDACTED INVOICE NUMBER,159008,47.01,Revenue,4145,Opus Energy (Corporate) Ltd,OX2 7JH,0
Hra Expenditure,Special Services,Communal Lighting,Electricity,ELECTRICITY SUPPLY,06/05/2022,REDACTED INVOICE NUMBER,159041,19.32,Revenue,4145,Opus Energy (Corporate) Ltd,OX2 7JH,0
Hra Expenditure,Special Services,Communal Lighting,Electricity,ELECTRICITY SUPPLY,06/05/2022,REDACTED INVOICE NUMBER,159004,101.34,Revenue,4145,Opus Energy (Corporate) Ltd,OX2 7JH,0
Hra Expenditure,Special Services,Communal Lighting,Electricity,ELECTRICITY SUPPLY,06/05/2022,REDACTED INVOICE NUMBER,159036,-48.53,Revenue,4145,Opus Energy (Corporate) Ltd,OX2 7JH,0
Hra Expenditure,Special Services,Communal Lighting,Electricity,ELECTRICITY SUPPLY,06/05/2022,REDACTED INVOICE NUMBER,159047,-28.95,Revenue,4145,Opus Energy (Corporate) Ltd,OX2 7JH,0
Hra Expenditure,Special Services,Communal Lighting,Electricity,ELECTRICITY SUPPLY,06/05/2022,REDACTED INVOICE NUMBER,159006,-22.15,Revenue,4145,Opus Energy (Corporate) Ltd,OX2 7JH,0
Hra Expenditure,Special Services,Communal Lighting,Electricity,ELECTRICITY SUPPLY,06/05/2022,REDACTED INVOICE NUMBER,159052,-34.88,Revenue,4145,Opus Energy (Corporate) Ltd,OX2 7JH,0
Hra Expenditure,Special Services,Communal Lighting,Electricity,ELECTRICITY SUPPLY,06/05/2022,REDACTED INVOICE NUMBER,159013,271.08,Revenue,4145,Opus Energy (Corporate) Ltd,OX2 7JH,0
Hra Expenditure,Special Services,Communal Lighting,Electricity,ELECTRICITY SUPPLY,06/05/2022,REDACTED INVOICE NUMBER,159037,-52.37,Revenue,4145,Opus Energy (Corporate) Ltd,OX2 7JH,0
Hra Expenditure,Special Services,Communal Lighting,Electricity,ELECTRICITY SUPPLY,06/05/2022,REDACTED INVOICE NUMBER,158928,-31.51,Revenue,4145,Opus Energy (Corporate) Ltd,OX2 7JH,0
Hra Expenditure,Special Services,Communal Lighting,Electricity,ELECTRICITY SUPPLY,06/05/2022,REDACTED INVOICE NUMBER,159039,-46.1,Revenue,4145,Opus Energy (Corporate) Ltd,OX2 7JH,0
Hra Expenditure,Special Services,Communal Lighting,Electricity,ELECTRICITY SUPPLY,06/05/2022,REDACTED INVOICE NUMBER,159051,-36.64,Revenue,4145,Opus Energy (Corporate) Ltd,OX2 7JH,0
Hra Expenditure,Special Services,Communal Lighting,Electricity,ELECTRICITY SUPPLY,06/05/2022,REDACTED INVOICE NUMBER,159038,-53.24,Revenue,4145,Opus Energy (Corporate) Ltd,OX2 7JH,0
Hra Expenditure,Special Services,Communal Lighting,Electricity,ELECTRICITY SUPPLY,06/05/2022,REDACTED INVOICE NUMBER,158975,-22.08,Revenue,4145,Opus Energy (Corporate) Ltd,OX2 7JH,0
Hra Expenditure,Special Services,Communal Lighting,Electricity,ELECTRICITY SUPPLY,06/05/2022,REDACTED INVOICE NUMBER,158976,-21.79,Revenue,4145,Opus Energy (Corporate) Ltd,OX2 7JH,0
Hra Expenditure,Special Services,Communal Lighting,Electricity,ELECTRICITY SUPPLY,06/05/2022,REDACTED INVOICE NUMBER,159048,-33.06,Revenue,4145,Opus Energy (Corporate) Ltd,OX2 7JH,0
Hra Expenditure,Special Services,Communal Lighting,Electricity,ELECTRICITY SUPPLY,06/05/2022,REDACTED INVOICE NUMBER,158973,-25.73,Revenue,4145,Opus Energy (Corporate) Ltd,OX2 7JH,0
Hra Expenditure,Special Services,Communal Lighting,Electricity,ELECTRICITY SUPPLY,06/05/2022,REDACTED INVOICE NUMBER,159030,-42.08,Revenue,4145,Opus Energy (Corporate) Ltd,OX2 7JH,0
Hra Expenditure,Special Services,Communal Lighting,Electricity,ELECTRICITY SUPPLY,06/05/2022,REDACTED INVOICE NUMBER,159029,-23.06,Revenue,4145,Opus Energy (Corporate) Ltd,OX2 7JH,0
Hra Expenditure,Special Services,Communal Lighting,Electricity,ELECTRICITY SUPPLY,06/05/2022,REDACTED INVOICE NUMBER,158996,202.06,Revenue,4145,Opus Energy (Corporate) Ltd,OX2 7JH,0
Hra Expenditure,Special Services,Communal Lighting,Electricity,ELECTRICITY SUPPLY,06/05/2022,REDACTED INVOICE NUMBER,159003,43.48,Revenue,4145,Opus Energy (Corporate) Ltd,OX2 7JH,0
Hra Expenditure,Special Services,Communal Lighting,Electricity,ELECTRICITY SUPPLY,06/05/2022,REDACTED INVOICE NUMBER,158919,21.03,Revenue,4145,Opus Energy (Corporate) Ltd,OX2 7JH,0
Hra Expenditure,Special Services,Communal Lighting,Electricity,ELECTRICITY SUPPLY,06/05/2022,REDACTED INVOICE NUMBER,158930,-33.89,Revenue,4145,Opus Energy (Corporate) Ltd,OX2 7JH,0
Hra Expenditure,Special Services,Communal Lighting,Electricity,ELECTRICITY SUPPLY,06/05/2022,REDACTED INVOICE NUMBER,159082,-38.98,Revenue,4145,Opus Energy (Corporate) Ltd,OX2 7JH,0
Hra Expenditure,Special Services,Communal Lighting,Electricity,ELECTRICITY SUPPLY,06/05/2022,REDACTED INVOICE NUMBER,159070,91.69,Revenue,4145,Opus Energy (Corporate) Ltd,OX2 7JH,0
Hra Expenditure,Special Services,Communal Lighting,Electricity,ELECTRICITY SUPPLY,06/05/2022,REDACTED INVOICE NUMBER,159000,53.66,Revenue,4145,Opus Energy (Corporate) Ltd,OX2 7JH,0
Hra Expenditure,Special Services,Communal Lighting,Electricity,ELECTRICITY SUPPLY,06/05/2022,REDACTED INVOICE NUMBER,159063,41.57,Revenue,4145,Opus Energy (Corporate) Ltd,OX2 7JH,0
Hra Expenditure,Special Services,Communal Lighting,Electricity,ELECTRICITY SUPPLY,06/05/2022,REDACTED INVOICE NUMBER,158951,17,Revenue,4145,Opus Energy (Corporate) Ltd,OX2 7JH,0
Hra Expenditure,Special Services,Communal Lighting,Electricity,ELECTRICITY SUPPLY,06/05/2022,REDACTED INVOICE NUMBER,158939,9.48,Revenue,4145,Opus Energy (Corporate) Ltd,OX2 7JH,0
Hra Expenditure,Special Services,Communal Lighting,Electricity,ELECTRICITY SUPPLY,06/05/2022,REDACTED INVOICE NUMBER,159009,148.02,Revenue,4145,Opus Energy (Corporate) Ltd,OX2 7JH,0
Hra Expenditure,Special Services,Communal Lighting,Electricity,ELECTRICITY SUPPLY,06/05/2022,REDACTED INVOICE NUMBER,158941,9.05,Revenue,4145,Opus Energy (Corporate) Ltd,OX2 7JH,0
Hra Expenditure,Special Services,Communal Lighting,Electricity,ELECTRICITY SUPPLY,06/05/2022,REDACTED INVOICE NUMBER,158905,29.44,Revenue,4145,Opus Energy (Corporate) Ltd,OX2 7JH,0
Hra Expenditure,Special Services,Communal Lighting,Electricity,ELECTRICITY SUPPLY,06/05/2022,REDACTED INVOICE NUMBER,158943,29.46,Revenue,4145,Opus Energy (Corporate) Ltd,OX2 7JH,0
Hra Expenditure,Special Services,Communal Lighting,Electricity,ELECTRICITY SUPPLY,06/05/2022,REDACTED INVOICE NUMBER,158942,926.17,Revenue,4145,Opus Energy (Corporate) Ltd,OX2 7JH,0
Hra Expenditure,Special Services,Communal Lighting,Electricity,ELECTRICITY SUPPLY,06/05/2022,REDACTED INVOICE NUMBER,158948,15.73,Revenue,4145,Opus Energy (Corporate) Ltd,OX2 7JH,0
Hra Expenditure,Special Services,Communal Lighting,Electricity,ELECTRICITY SUPPLY,06/05/2022,REDACTED INVOICE NUMBER,159011,383.77,Revenue,4145,Opus Energy (Corporate) Ltd,OX2 7JH,0
Hra Expenditure,Special Services,Communal Lighting,Electricity,ELECTRICITY SUPPLY,06/05/2022,REDACTED INVOICE NUMBER,158955,15.71,Revenue,4145,Opus Energy (Corporate) Ltd,OX2 7JH,0
Hra Expenditure,Special Services,Communal Lighting,Electricity,ELECTRICITY SUPPLY,06/05/2022,REDACTED INVOICE NUMBER,158900,20.7,Revenue,4145,Opus Energy (Corporate) Ltd,OX2 7JH,0
Hra Expenditure,Special Services,Communal Lighting,Electricity,ELECTRICITY SUPPLY,06/05/2022,REDACTED INVOICE NUMBER,158953,1019.78,Revenue,4145,Opus Energy (Corporate) Ltd,OX2 7JH,0
Hra Expenditure,Special Services,Communal Lighting,Electricity,ELECTRICITY SUPPLY,06/05/2022,REDACTED INVOICE NUMBER,158908,219.29,Revenue,4145,Opus Energy (Corporate) Ltd,OX2 7JH,0
Hra Expenditure,Special Services,Communal Lighting,Electricity,ELECTRICITY SUPPLY,06/05/2022,REDACTED INVOICE NUMBER,158952,14.48,Revenue,4145,Opus Energy (Corporate) Ltd,OX2 7JH,0
Hra Expenditure,Special Services,Communal Lighting,Electricity,ELECTRICITY SUPPLY,06/05/2022,REDACTED INVOICE NUMBER,158911,203.37,Revenue,4145,Opus Energy (Corporate) Ltd,OX2 7JH,0
Hra Expenditure,Special Services,Communal Lighting,Electricity,ELECTRICITY SUPPLY,06/05/2022,REDACTED INVOICE NUMBER,158950,128,Revenue,4145,Opus Energy (Corporate) Ltd,OX2 7JH,0
Hra Expenditure,Special Services,Communal Lighting,Electricity,ELECTRICITY SUPPLY,06/05/2022,REDACTED INVOICE NUMBER,159066,9.05,Revenue,4145,Opus Energy (Corporate) Ltd,OX2 7JH,0
Hra Expenditure,Special Services,Communal Lighting,Electricity,ELECTRICITY SUPPLY,06/05/2022,REDACTED INVOICE NUMBER,159054,18.64,Revenue,4145,Opus Energy (Corporate) Ltd,OX2 7JH,0
Hra Expenditure,Special Services,Communal Lighting,Electricity,ELECTRICITY SUPPLY,06/05/2022,REDACTED INVOICE NUMBER,158959,9.05,Revenue,4145,Opus Energy (Corporate) Ltd,OX2 7JH,0
Hra Expenditure,Special Services,Communal Lighting,Electricity,ELECTRICITY SUPPLY,06/05/2022,REDACTED INVOICE NUMBER,158954,44.28,Revenue,4145,Opus Energy (Corporate) Ltd,OX2 7JH,0
Hra Expenditure,Special Services,Communal Lighting,Electricity,ELECTRICITY SUPPLY,06/05/2022,REDACTED INVOICE NUMBER,159022,202.81,Revenue,4145,Opus Energy (Corporate) Ltd,OX2 7JH,0
Hra Expenditure,Special Services,Communal Lighting,Electricity,ELECTRICITY SUPPLY,06/05/2022,REDACTED INVOICE NUMBER,159021,36.58,Revenue,4145,Opus Energy (Corporate) Ltd,OX2 7JH,0
Hra Expenditure,Special Services,Communal Lighting,Electricity,ELECTRICITY SUPPLY,06/05/2022,REDACTED INVOICE NUMBER,158914,17.62,Revenue,4145,Opus Energy (Corporate) Ltd,OX2 7JH,0
Hra Expenditure,Special Services,Communal Lighting,Electricity,ELECTRICITY SUPPLY,06/05/2022,REDACTED INVOICE NUMBER,159010,55.76,Revenue,4145,Opus Energy (Corporate) Ltd,OX2 7JH,0
Hra Expenditure,Special Services,Communal Lighting,Electricity,ELECTRICITY SUPPLY,06/05/2022,REDACTED INVOICE NUMBER,159026,101.28,Revenue,4145,Opus Energy (Corporate) Ltd,OX2 7JH,0
Hra Expenditure,Special Services,Communal Lighting,Electricity,ELECTRICITY SUPPLY,06/05/2022,REDACTED INVOICE NUMBER,159067,3971.34,Revenue,4145,Opus Energy (Corporate) Ltd,OX2 7JH,0
Hra Expenditure,Special Services,Communal Lighting,Electricity,ELECTRICITY SUPPLY,06/05/2022,REDACTED INVOICE NUMBER,159025,35.4,Revenue,4145,Opus Energy (Corporate) Ltd,OX2 7JH,0
Hra Expenditure,Special Services,Communal Lighting,Electricity,ELECTRICITY SUPPLY,06/05/2022,REDACTED INVOICE NUMBER,159024,1293.91,Revenue,4145,Opus Energy (Corporate) Ltd,OX2 7JH,0
Hra Expenditure,Special Services,Communal Lighting,Electricity,ELECTRICITY SUPPLY,06/05/2022,REDACTED INVOICE NUMBER,159031,234.68,Revenue,4145,Opus Energy (Corporate) Ltd,OX2 7JH,0
Hra Expenditure,Special Services,Communal Lighting,Electricity,ELECTRICITY SUPPLY,06/05/2022,REDACTED INVOICE NUMBER,159032,640.2,Revenue,4145,Opus Energy (Corporate) Ltd,OX2 7JH,0
Hra Expenditure,Special Services,Communal Lighting,Electricity,ELECTRICITY SUPPLY,06/05/2022,REDACTED INVOICE NUMBER,158918,36.28,Revenue,4145,Opus Energy (Corporate) Ltd,OX2 7JH,0
Hra Expenditure,Special Services,Communal Lighting,Electricity,ELECTRICITY SUPPLY,06/05/2022,REDACTED INVOICE NUMBER,159034,50.03,Revenue,4145,Opus Energy (Corporate) Ltd,OX2 7JH,0
Hra Expenditure,Special Services,Communal Lighting,Electricity,ELECTRICITY SUPPLY,06/05/2022,REDACTED INVOICE NUMBER,159033,9.05,Revenue,4145,Opus Energy (Corporate) Ltd,OX2 7JH,0
Hra Expenditure,Special Services,Communal Lighting,Electricity,ELECTRICITY SUPPLY,06/05/2022,REDACTED INVOICE NUMBER,159023,32.87,Revenue,4145,Opus Energy (Corporate) Ltd,OX2 7JH,0
Hra Expenditure,Special Services,Communal Lighting,Electricity,ELECTRICITY SUPPLY,06/05/2022,REDACTED INVOICE NUMBER,158956,128.56,Revenue,4145,Opus Energy (Corporate) Ltd,OX2 7JH,0
Hra Expenditure,Special Services,Communal Lighting,Electricity,ELECTRICITY SUPPLY,06/05/2022,REDACTED INVOICE NUMBER,158958,170.1,Revenue,4145,Opus Energy (Corporate) Ltd,OX2 7JH,0
Hra Expenditure,Special Services,Communal Lighting,Electricity,ELECTRICITY SUPPLY,06/05/2022,REDACTED INVOICE NUMBER,158940,10.96,Revenue,4145,Opus Energy (Corporate) Ltd,OX2 7JH,0
Hra Expenditure,Special Services,Communal Lighting,Electricity,ELECTRICITY SUPPLY,06/05/2022,REDACTED INVOICE NUMBER,158960,112.96,Revenue,4145,Opus Energy (Corporate) Ltd,OX2 7JH,0
Hra Expenditure,Special Services,Communal Lighting,Electricity,ELECTRICITY SUPPLY,06/05/2022,REDACTED INVOICE NUMBER,159046,70.01,Revenue,4145,Opus Energy (Corporate) Ltd,OX2 7JH,0
Hra Expenditure,Special Services,Communal Lighting,Electricity,ELECTRICITY SUPPLY,06/05/2022,REDACTED INVOICE NUMBER,158997,38.09,Revenue,4145,Opus Energy (Corporate) Ltd,OX2 7JH,0
Hra Expenditure,Special Services,Communal Lighting,Electricity,ELECTRICITY SUPPLY,06/05/2022,REDACTED INVOICE NUMBER,158987,594.15,Revenue,4145,Opus Energy (Corporate) Ltd,OX2 7JH,0
Hra Expenditure,Special Services,Communal Lighting,Electricity,ELECTRICITY SUPPLY,06/05/2022,REDACTED INVOICE NUMBER,159044,79.32,Revenue,4145,Opus Energy (Corporate) Ltd,OX2 7JH,0
Hra Expenditure,Special Services,Communal Lighting,Electricity,ELECTRICITY SUPPLY,06/05/2022,REDACTED INVOICE NUMBER,159043,38.27,Revenue,4145,Opus Energy (Corporate) Ltd,OX2 7JH,0
Hra Expenditure,Special Services,Communal Lighting,Electricity,ELECTRICITY SUPPLY,06/05/2022,REDACTED INVOICE NUMBER,158964,368.33,Revenue,4145,Opus Energy (Corporate) Ltd,OX2 7JH,0
Hra Expenditure,Special Services,Communal Lighting,Electricity,ELECTRICITY SUPPLY,06/05/2022,REDACTED INVOICE NUMBER,159061,59.97,Revenue,4145,Opus Energy (Corporate) Ltd,OX2 7JH,0
Hra Expenditure,Special Services,Communal Lighting,Electricity,ELECTRICITY SUPPLY,06/05/2022,REDACTED INVOICE NUMBER,159060,38.71,Revenue,4145,Opus Energy (Corporate) Ltd,OX2 7JH,0
Hra Expenditure,Special Services,Communal Lighting,Electricity,ELECTRICITY SUPPLY,06/05/2022,REDACTED INVOICE NUMBER,159058,35.85,Revenue,4145,Opus Energy (Corporate) Ltd,OX2 7JH,0
Hra Expenditure,Special Services,Communal Lighting,Electricity,ELECTRICITY SUPPLY,06/05/2022,REDACTED INVOICE NUMBER,159057,42.36,Revenue,4145,Opus Energy (Corporate) Ltd,OX2 7JH,0
Hra Expenditure,Special Services,Communal Lighting,Electricity,ELECTRICITY SUPPLY,06/05/2022,REDACTED INVOICE NUMBER,158929,83.57,Revenue,4145,Opus Energy (Corporate) Ltd,OX2 7JH,0
Hra Expenditure,Special Services,Communal Lighting,Electricity,ELECTRICITY SUPPLY,06/05/2022,REDACTED INVOICE NUMBER,159056,27.4,Revenue,4145,Opus Energy (Corporate) Ltd,OX2 7JH,0
Hra Expenditure,Special Services,Communal Lighting,Electricity,ELECTRICITY SUPPLY,06/05/2022,REDACTED INVOICE NUMBER,159055,21.13,Revenue,4145,Opus Energy (Corporate) Ltd,OX2 7JH,0
Hra Expenditure,Special Services,Communal Lighting,Electricity,ELECTRICITY SUPPLY,06/05/2022,REDACTED INVOICE NUMBER,158934,53.21,Revenue,4145,Opus Energy (Corporate) Ltd,OX2 7JH,0
Hra Expenditure,Special Services,Communal Lighting,Electricity,ELECTRICITY SUPPLY,06/05/2022,REDACTED INVOICE NUMBER,158933,25.33,Revenue,4145,Opus Energy (Corporate) Ltd,OX2 7JH,0
Hra Expenditure,Special Services,Communal Lighting,Electricity,ELECTRICITY SUPPLY,06/05/2022,REDACTED INVOICE NUMBER,158932,78.88,Revenue,4145,Opus Energy (Corporate) Ltd,OX2 7JH,0
Hra Expenditure,Special Services,Communal Lighting,Electricity,ELECTRICITY SUPPLY,06/05/2022,REDACTED INVOICE NUMBER,158989,97.74,Revenue,4145,Opus Energy (Corporate) Ltd,OX2 7JH,0
Hra Expenditure,Special Services,Communal Lighting,Electricity,ELECTRICITY SUPPLY,06/05/2022,REDACTED INVOICE NUMBER,159016,184.28,Revenue,4145,Opus Energy (Corporate) Ltd,OX2 7JH,0
Hra Expenditure,Special Services,Communal Lighting,Electricity,ELECTRICITY SUPPLY,06/05/2022,REDACTED INVOICE NUMBER,158972,368.06,Revenue,4145,Opus Energy (Corporate) Ltd,OX2 7JH,0
Hra Expenditure,Special Services,Communal Lighting,Electricity,ELECTRICITY SUPPLY,06/05/2022,REDACTED INVOICE NUMBER,158931,79.48,Revenue,4145,Opus Energy (Corporate) Ltd,OX2 7JH,0
Hra Expenditure,Special Services,Communal Lighting,Electricity,ELECTRICITY SUPPLY,06/05/2022,REDACTED INVOICE NUMBER,158971,53.9,Revenue,4145,Opus Energy (Corporate) Ltd,OX2 7JH,0
Hra Expenditure,Special Services,Communal Lighting,Electricity,ELECTRICITY SUPPLY,06/05/2022,REDACTED INVOICE NUMBER,159062,40.86,Revenue,4145,Opus Energy (Corporate) Ltd,OX2 7JH,0
Hra Expenditure,Special Services,Communal Lighting,Gas,GAS SUPPLY,06/05/2022,REDACTED INVOICE NUMBER,159064,38.88,Revenue,4145,Opus Energy (Corporate) Ltd,OX2 7JH,0
Hra Expenditure,Special Services,Other Special Services,Electricity,ELECTRICITY SUPPLY,06/05/2022,REDACTED INVOICE NUMBER,158947,45.21,Revenue,4145,Opus Energy (Corporate) Ltd,OX2 7JH,0
Hra Expenditure,Special Services,Other Special Services,Electricity,ELECTRICITY SUPPLY,06/05/2022,REDACTED INVOICE NUMBER,158961,11.3,Revenue,4145,Opus Energy (Corporate) Ltd,OX2 7JH,0
Hra Expenditure,Special Services,Sheltered Welfare Services,Electricity,ELECTRICITY SUPPLY,06/05/2022,REDACTED INVOICE NUMBER,158983,15.72,Revenue,4145,Opus Energy (Corporate) Ltd,OX2 7JH,0
Hra Expenditure,Special Services,Sheltered Welfare Services,Electricity,ELECTRICITY SUPPLY,06/05/2022,REDACTED INVOICE NUMBER,158982,13.61,Revenue,4145,Opus Energy (Corporate) Ltd,OX2 7JH,0
Hra Expenditure,Special Services,Sheltered Welfare Services,Electricity,ELECTRICITY SUPPLY,06/05/2022,REDACTED INVOICE NUMBER,158992,32.3,Revenue,4145,Opus Energy (Corporate) Ltd,OX2 7JH,0
Hra Expenditure,Supervision And Management,Right To Buy Admin,Electricity,ELECTRICITY SUPPLY,06/05/2022,REDACTED INVOICE NUMBER,158926,-67.83,Revenue,4145,Opus Energy (Corporate) Ltd,OX2 7JH,0
Director Corporate Resources,Asset Management,Asset Management,Electricity,ELECTRICITY SUPPLY,10/05/2022,REDACTED INVOICE NUMBER,159027,53.03,Revenue,4145,Opus Energy (Corporate) Ltd,OX2 7JH,0
Director Corporate Resources,Asset Management,Asset Management,Electricity,ELECTRICITY SUPPLY,10/05/2022,REDACTED INVOICE NUMBER,158993,129.89,Revenue,4145,Opus Energy (Corporate) Ltd,OX2 7JH,0
Director Corporate Resources,Asset Management,Asset Management,Electricity,ELECTRICITY SUPPLY,10/05/2022,REDACTED INVOICE NUMBER,158965,11520.71,Revenue,4145,Opus Energy (Corporate) Ltd,OX2 7JH,0
Director Corporate Resources,Asset Management,Asset Management,Electricity,ELECTRICITY SUPPLY,10/05/2022,REDACTED INVOICE NUMBER,158968,148.18,Revenue,4145,Opus Energy (Corporate) Ltd,OX2 7JH,0
Director Corporate Resources,Asset Management,Asset Management,Electricity,ELECTRICITY SUPPLY,10/05/2022,REDACTED INVOICE NUMBER,158967,238.68,Revenue,4145,Opus Energy (Corporate) Ltd,OX2 7JH,0
Director Corporate Resources,Asset Management,Asset Management,Electricity,ELECTRICITY SUPPLY,10/05/2022,REDACTED INVOICE NUMBER,158966,91.62,Revenue,4145,Opus Energy (Corporate) Ltd,OX2 7JH,0
Director Corporate Resources,Asset Management,Asset Management,Electricity,ELECTRICITY SUPPLY,10/05/2022,REDACTED INVOICE NUMBER,158985,70.67,Revenue,4145,Opus Energy (Corporate) Ltd,OX2 7JH,0
Director Corporate Resources,Asset Management,Asset Management,Electricity,ELECTRICITY SUPPLY,10/05/2022,REDACTED INVOICE NUMBER,158969,920.15,Revenue,4145,Opus Energy (Corporate) Ltd,OX2 7JH,0
Director Corporate Resources,Asset Management,Asset Management,Electricity,ELECTRICITY SUPPLY,10/05/2022,REDACTED INVOICE NUMBER,158970,15.1,Revenue,4145,Opus Energy (Corporate) Ltd,OX2 7JH,0
Director Corporate Resources,Asset Management,Asset Management,Electricity,ELECTRICITY SUPPLY,10/05/2022,REDACTED INVOICE NUMBER,158978,69.99,Revenue,4145,Opus Energy (Corporate) Ltd,OX2 7JH,0
Director Corporate Resources,Office Accommodation,Office Facilities Management,Electricity,ELECTRICITY SUPPLY,10/05/2022,REDACTED INVOICE NUMBER,158979,51.72,Revenue,4145,Opus Energy (Corporate) Ltd,OX2 7JH,0
Director Of Environment,Cemeteries,Cemeteries,Electricity,ELECTRICITY SUPPLY,10/05/2022,REDACTED INVOICE NUMBER,158944,413.21,Revenue,4145,Opus Energy (Corporate) Ltd,OX2 7JH,0
Director Of Environment,Cemeteries,Cemeteries,Electricity,ELECTRICITY SUPPLY,10/05/2022,REDACTED INVOICE NUMBER,158946,84.04,Revenue,4145,Opus Energy (Corporate) Ltd,OX2 7JH,0
Director Of Environment,Cemeteries,Cemeteries,Electricity,ELECTRICITY SUPPLY,10/05/2022,REDACTED INVOICE NUMBER,158945,11.57,Revenue,4145,Opus Energy (Corporate) Ltd,OX2 7JH,0
Director Of Environment,Golf Course,Golf Course,Electricity,ELECTRICITY SUPPLY,10/05/2022,REDACTED INVOICE NUMBER,158990,8.38,Revenue,4145,Opus Energy (Corporate) Ltd,OX2 7JH,0
Director Of Environment,Open Spaces,Buildings & Stakeholders,Electricity,ELECTRICITY SUPPLY,10/05/2022,REDACTED INVOICE NUMBER,158936,61.62,Revenue,4145,Opus Energy (Corporate) Ltd,OX2 7JH,0
Director Of Environment,Open Spaces,Buildings & Stakeholders,Electricity,ELECTRICITY SUPPLY,10/05/2022,REDACTED INVOICE NUMBER,159075,5252.72,Revenue,4145,Opus Energy (Corporate) Ltd,OX2 7JH,0
Director Of Environment,Open Spaces,Buildings & Stakeholders,Electricity,ELECTRICITY SUPPLY,10/05/2022,REDACTED INVOICE NUMBER,159069,579.38,Revenue,4145,Opus Energy (Corporate) Ltd,OX2 7JH,0
Director Of Environment,Open Spaces,Buildings & Stakeholders,Electricity,ELECTRICITY SUPPLY,10/05/2022,REDACTED INVOICE NUMBER,159020,18.67,Revenue,4145,Opus Energy (Corporate) Ltd,OX2 7JH,0
Director Of Environment,Open Spaces,Buildings & Stakeholders,Electricity,ELECTRICITY SUPPLY,10/05/2022,REDACTED INVOICE NUMBER,159019,52.14,Revenue,4145,Opus Energy (Corporate) Ltd,OX2 7JH,0
Director Of Environment,Open Spaces,Buildings & Stakeholders,Electricity,ELECTRICITY SUPPLY,10/05/2022,REDACTED INVOICE NUMBER,159014,30.06,Revenue,4145,Opus Energy (Corporate) Ltd,OX2 7JH,0
Director Of Environment,Open Spaces,Buildings & Stakeholders,Electricity,ELECTRICITY SUPPLY,10/05/2022,REDACTED INVOICE NUMBER,159049,-634.49,Revenue,4145,Opus Energy (Corporate) Ltd,OX2 7JH,0
Director Of Environment,Open Spaces,Buildings & Stakeholders,Electricity,ELECTRICITY SUPPLY,10/05/2022,REDACTED INVOICE NUMBER,159068,2349.33,Revenue,4145,Opus Energy (Corporate) Ltd,OX2 7JH,0
Director Of Environment,Parking,Parking Services,Agency Staff,PROJECT MANAGEMENT SUPPORT,06/05/2022,REDACTED INVOICE NUMBER,159477,342.77,Revenue,28444,Opus People Solutions Group Limited,IP1 2BX,0
Director Of Environment,Parking,Parking Services,Agency Staff,PROJECT MANAGEMENT SUPPORT,06/05/2022,REDACTED INVOICE NUMBER,159466,508.3,Revenue,28444,Opus People Solutions Group Limited,IP1 2BX,0
Director Of Environment,Env Health & Licensing Admin,Env Health & Licensing Admin,Agency Staff,PROJECT MANAGEMENT SUPPORT,13/05/2022,REDACTED INVOICE NUMBER,159476,1005.29,Revenue,28444,Opus People Solutions Group Limited,IP1 2BX,0
Director Of Environment,Parking,Parking Services,Agency Staff,PROJECT MANAGEMENT SUPPORT,17/05/2022,REDACTED INVOICE NUMBER,159790,448.5,Revenue,28444,Opus People Solutions Group Limited,IP1 2BX,0
Director Of Environment,Grounds Maintenance,Grounds Maintenance,Agency Staff,PROJECT MANAGEMENT SUPPORT,20/05/2022,REDACTED INVOICE NUMBER,159478,577.2,Revenue,28444,Opus People Solutions Group Limited,IP1 2BX,0
Director Of Environment,Grounds Maintenance,Grounds Maintenance,Agency Staff,PROJECT MANAGEMENT SUPPORT,20/05/2022,REDACTED INVOICE NUMBER,159829,1045.2,Revenue,28444,Opus People Solutions Group Limited,IP1 2BX,0
Director Of Environment,Health & Food Safety,Food Safety Enforcement,Analytical Services,PROJECT MANAGEMENT SUPPORT,20/05/2022,REDACTED INVOICE NUMBER,159830,2.7,Revenue,28444,Opus People Solutions Group Limited,IP1 2BX,0
Director Of Environment,Env Health & Licensing Admin,Env Health & Licensing Admin,Agency Staff,PROJECT MANAGEMENT SUPPORT,27/05/2022,REDACTED INVOICE NUMBER,160084,2116.4,Revenue,28444,Opus People Solutions Group Limited,IP1 2BX,0
Director Of Environment,Health & Food Safety,Food Safety Enforcement,Analytical Services,PROJECT MANAGEMENT SUPPORT,27/05/2022,REDACTED INVOICE NUMBER,160092,719.7,Revenue,28444,Opus People Solutions Group Limited,IP1 2BX,0
Director Of Environment,Golf Course,Golf Course,Purchases - General Equipment,CREDIT NOTE,24/05/2022,REDACTED INVOICE NUMBER,158511,-551.99,Revenue,4169,P Tuckwell Ltd,CO7 7LG,0
Director Of Environment,Golf Course,Golf Course,Vehicle Replacement Parts,PARTS,24/05/2022,REDACTED INVOICE NUMBER,159110,551.99,Revenue,4169,P Tuckwell Ltd,CO7 7LG,0
Director Of Environment,Grounds Maintenance,Grounds Maintenance,Vehicle R&M - External,VEHICLE PARTS,24/05/2022,REDACTED INVOICE NUMBER,158621,301.72,Revenue,4169,P Tuckwell Ltd,CO7 7LG,0
Director Of Planning & Economy,Planning Development Managemt,Planning Development Managemt,Agency Staff,PROJECT MANAGEMENT SUPPORT,03/05/2022,REDACTED INVOICE NUMBER,158384,878.75,Revenue,26959,Park Avenue Recruitment Ltd,EC1V 9EE,0
Director Housing & Enforcement,Homelessness,Homelessness Admin,Agency Staff,PROJECT MANAGEMENT SUPPORT,06/05/2022,REDACTED INVOICE NUMBER,158848,1295,Revenue,26959,Park Avenue Recruitment Ltd,EC1V 9EE,0
Director Of Planning & Economy,Planning Development Managemt,Planning Development Managemt,Agency Staff,PROJECT MANAGEMENT SUPPORT,10/05/2022,REDACTED INVOICE NUMBER,158591,652.5,Revenue,26959,Park Avenue Recruitment Ltd,EC1V 9EE,0
Director Housing & Enforcement,Homelessness,Homelessness Admin,Agency Staff,PROJECT MANAGEMENT SUPPORT,13/05/2022,REDACTED INVOICE NUMBER,158847,1295,Revenue,26959,Park Avenue Recruitment Ltd,EC1V 9EE,0
Director Housing & Enforcement,Homelessness,Homelessness Admin,Agency Staff,PROJECT MANAGEMENT SUPPORT,13/05/2022,REDACTED INVOICE NUMBER,158385,1295,Revenue,26959,Park Avenue Recruitment Ltd,EC1V 9EE,0
Capex Director Of Environment,Other Environmental Services,Disabled Facilities Grant,Grants - General,DISABLED FACILITIES GRANT,03/05/2022,REDACTED INVOICE NUMBER,158818,1008.75,Capital,26573,Paul Weightman,CM14 4PL,0
Capex Director Of Environment,Other Environmental Services,Disabled Facilities Grant,Grants - General,DISABLED FACILITIES GRANT,17/05/2022,REDACTED INVOICE NUMBER,159446,1500,Capital,26573,Paul Weightman,CM14 4PL,0
Capex Director Of Environment,Other Environmental Services,Disabled Facilities Grant,Grants - General,DISABLED FACILITIES GRANT,24/05/2022,REDACTED INVOICE NUMBER,159721,671.97,Capital,26573,Paul Weightman,CM14 4PL,0
Director Corporate Resources,Corporate Management,Corporate Management Costs,Contracted Services,ANNUAL INSTALMENT 22/23,13/05/2022,REDACTED INVOICE NUMBER,158679,6275,Revenue,28115,Paygate Solutions Limited,OX10 9BT,0
Hra Expenditure,Supervision And Management,Affordable Hsg,Consultancy Fees,TOWER HILL - PRE-CONSTRUCTIOIN STAGE,27/05/2022,REDACTED INVOICE NUMBER,159279,20815.75,Revenue,21886,Pellings Llp,BR1 1RY,0
Director Digital & Customer En,Digital Servs & Transformation,Ict Services,Managed Services,MICROSOFT 365 9/3/22-8/4/22,17/05/2022,REDACTED INVOICE NUMBER,159206,123.96,Revenue,4250,Phoenix Software Limited,YO42 1NS,0
Director Digital & Customer En,Digital Servs & Transformation,Ict Services,Managed Services,MICROSOFT 365 APR22,17/05/2022,REDACTED INVOICE NUMBER,159205,139.47,Revenue,4250,Phoenix Software Limited,YO42 1NS,0
Director Digital & Customer En,Digital Servs & Transformation,Ict Services,Managed Services,AZURE COVERAGE - MAR '22,20/05/2022,REDACTED INVOICE NUMBER,160003,26594.07,Revenue,4250,Phoenix Software Limited,YO42 1NS,0
Director Of Environment,Vehicle Fleet Management,Vehicle Fleet Management,Vehicle R&M - External,VEHICLE REPAIRS,06/05/2022,REDACTED INVOICE NUMBER,159228,71.55,Revenue,4270,Pirtek (Basildon),SS14 3DY,0
Director Of Environment,Vehicle Fleet Management,Vehicle Fleet Management,Vehicle R&M - External,VEHICLE REPAIRS,06/05/2022,REDACTED INVOICE NUMBER,159229,144.48,Revenue,4270,Pirtek (Basildon),SS14 3DY,0
Director Of Planning & Economy,Economic Development Total,Economic Development,Other Fees & Service,BRENTWOOD BUSINESS SHOWCASE AD,31/05/2022,REDACTED INVOICE NUMBER,159447,495,Revenue,28965,Pjr Communications Ltd,CO4 9EB,0
Director Of Planning & Economy,Planning Development Managemt,Planning Development Managemt,Consultancy Fees,TREE  LANDSCAPE SUPPORT,31/05/2022,REDACTED INVOICE NUMBER,159463,2475,Revenue,26594,Plumb Associates Ltd,CM3 6NF,0
Balance Sheet,Balance Sheet,Balance Sheet,C Tax Police Precept,PRECEPTS - APRIL '22,03/05/2022,REDACTED INVOICE NUMBER,159260,658975,Revenue,22444,Police Precept,.,0
Director Corporate Resources,Council Tax & Nndr,Council Tax Collection,Grants/Contributions - Police,PRECEPTS - APRIL '22,03/05/2022,REDACTED INVOICE NUMBER,159260,-4800,Revenue,22444,Police Precept,.,0
Balance Sheet,Balance Sheet,Balance Sheet,C Tax Police Precept,PRECEPTS,31/05/2022,REDACTED INVOICE NUMBER,160479,658975,Revenue,22444,Police Precept,.,0
Director Corporate Resources,Council Tax & Nndr,Council Tax Collection,Grants/Contributions - Police,PRECEPTS,31/05/2022,REDACTED INVOICE NUMBER,160479,-1273,Revenue,22444,Police Precept,.,0
Director Corporate Resources,Office Accommodation,Office Accommodation,Postage Costs Direct,Direct Debit Payment,03/05/2022,REDACTED INVOICE NUMBER,158350,2020,Revenue,4295,Postage By Phone-Pitney Bowes Ltd,CM19 5DQ,0
Director Corporate Resources,Office Accommodation,Office Accommodation,Postage Costs Direct,Direct Debit Payment,03/05/2022,REDACTED INVOICE NUMBER,158408,2020,Revenue,4295,Postage By Phone-Pitney Bowes Ltd,CM19 5DQ,0
Director Of Law & Governance,Electoral Services,Register Of Electors,Stationery - General,Direct Debit Payment,31/05/2022,REDACTED INVOICE NUMBER,159611,6175.74,Revenue,4295,Postage By Phone-Pitney Bowes Ltd,CM19 5DQ,0
Hra Expenditure,Special Services,Sheltered Welfare Services,Purchases - Cleaning,CLEANING MATERIALS,10/05/2022,REDACTED INVOICE NUMBER,158330,165.3,Revenue,4300,Power Hygiene + Safety Products Limited,SS6 7UY,0
Hra Expenditure,Special Services,Sheltered Welfare Services,Purchases - Cleaning,CLEANING MATERIALS,10/05/2022,REDACTED INVOICE NUMBER,158500,4.18,Revenue,4300,Power Hygiene + Safety Products Limited,SS6 7UY,0
Hra Expenditure,Special Services,Sheltered Welfare Services,Purchases - Cleaning,CLEANING MATERIALS,10/05/2022,REDACTED INVOICE NUMBER,158553,235.96,Revenue,4300,Power Hygiene + Safety Products Limited,SS6 7UY,0
Hra Expenditure,Special Services,Caretaking,Cleaning & Dom. Supplies-Other,CLEANING MATERIALS,13/05/2022,REDACTED INVOICE NUMBER,158680,245.8,Revenue,4300,Power Hygiene + Safety Products Limited,SS6 7UY,0
Hra Expenditure,Special Services,Caretaking,Cleaning & Dom. Supplies-Other,CLEANING MATERIALS,13/05/2022,REDACTED INVOICE NUMBER,158681,133.04,Revenue,4300,Power Hygiene + Safety Products Limited,SS6 7UY,0
Director Corporate Resources,Asset Management,Asset Management,R&M Bldgs - General,LIFT MAINTENANCE - MSCP - FEB '22,13/05/2022,REDACTED INVOICE NUMBER,158765,952,Revenue,4308,Precision Lift Services Ltd,SS14 3BZ,0
Director Corporate Resources,Asset Management,Asset Management,R&M Bldgs - General,LIFT MAINTENANCE - MSCP - MAR '22,13/05/2022,REDACTED INVOICE NUMBER,158764,476,Revenue,4308,Precision Lift Services Ltd,SS14 3BZ,0
Director Of Environment,Depot Management & Admin,Depot Management & Admin,R&M Bldgs - General,SERVICING - Feb 2022-2023,06/05/2022,REDACTED INVOICE NUMBER,158882,510,Revenue,27023,Protection Security Systems Ltd,CO15 4XA,0
Director Of Environment,Depot Management & Admin,Depot Management & Admin,R&M Bldgs - General,REPLACEMENT CALL POINT - ,24/05/2022,REDACTED INVOICE NUMBER,159168,65,Revenue,27023,Protection Security Systems Ltd,CO15 4XA,0
Director Of Law & Governance,Legal Services & Data Protect,Legal Services & Data Protect,Planning Fees,FIVE ACRES ,20/05/2022,REDACTED INVOICE NUMBER,159639,2700,Revenue,2809,Radcliffe Chambers,WC2A 3QB,0
Director Of Law & Governance,Legal Services & Data Protect,Legal Services & Data Protect,Legal Fees,ELECTRIC VEHICLE CHARGERS ,31/05/2022,REDACTED INVOICE NUMBER,160044,7313.32,Revenue,2809,Radcliffe Chambers,WC2A 3QB,0
Director Of Law & Governance,Legal Services & Data Protect,Legal Services & Data Protect,Legal Fees,ROCHFORD REGENERATION FUND,31/05/2022,REDACTED INVOICE NUMBER,160045,437.5,Revenue,2809,Radcliffe Chambers,WC2A 3QB,0
Director Of Law & Governance,Procurement,Procurement,Consultancy Fees,General Queries,31/05/2022,REDACTED INVOICE NUMBER,160058,562.5,Revenue,2809,Radcliffe Chambers,WC2A 3QB,0
Director Of Planning & Economy,Planning Development Managemt,Planning Development Managemt,Consultancy Fees,APPEAL STATEMENT OF CASE,13/05/2022,REDACTED INVOICE NUMBER,159459,2250,Revenue,28942,Rca Regeneration Ltd,WR9 0QE,0
Director Of Planning & Economy,Planning Development Managemt,Planning Development Managemt,Consultancy Fees,APPEAL STATEMENT OF CASE,13/05/2022,REDACTED INVOICE NUMBER,159460,2250,Revenue,28942,Rca Regeneration Ltd,WR9 0QE,0
Director Of Planning & Economy,Planning Development Managemt,Planning Development Managemt,Advertising - General,ADVERT PLACEMENT,10/05/2022,REDACTED INVOICE NUMBER,158546,305.04,Revenue,27928,Reach Publishing Services Ltd,E14 5AP,0
Director Of Planning & Economy,Planning Development Managemt,Planning Development Managemt,Advertising - General,ADVERT PLACEMENT,17/05/2022,REDACTED INVOICE NUMBER,158749,737.18,Revenue,27928,Reach Publishing Services Ltd,E14 5AP,0
Director Of Planning & Economy,Planning Development Managemt,Planning Development Managemt,Advertising - General,ADVERT PLACEMENT,20/05/2022,REDACTED INVOICE NUMBER,160038,330.46,Revenue,27928,Reach Publishing Services Ltd,E14 5AP,0
Director Of Planning & Economy,Planning Development Managemt,Planning Development Managemt,Advertising - General,ADVERT PLACEMENT,24/05/2022,REDACTED INVOICE NUMBER,159093,279.62,Revenue,27928,Reach Publishing Services Ltd,E14 5AP,0
Director Of Planning & Economy,Planning Development Managemt,Planning Development Managemt,Advertising - General,ADVERT PLACEMENT,31/05/2022,REDACTED INVOICE NUMBER,160648,381.3,Revenue,27928,Reach Publishing Services Ltd,E14 5AP,0
Director Of Planning & Economy,Planning Development Managemt,Planning Development Managemt,Advertising - General,ADVERT PLACEMENT,31/05/2022,REDACTED INVOICE NUMBER,159474,254.2,Revenue,27928,Reach Publishing Services Ltd,E14 5AP,0
Director Corporate Resources,Corporate Management,Corporate Management Costs,Baliff Fees,REVENUES COLLECTION,06/05/2022,REDACTED INVOICE NUMBER,157123,10,Revenue,4434,Reventus Limited,SG14 1DB,0
Director Corporate Resources,Corporate Management,Corporate Management Costs,Baliff Fees,REVENUES COLLECTION,13/05/2022,REDACTED INVOICE NUMBER,159734,0,Revenue,4434,Reventus Limited,SG14 1DB,0
Director Corporate Resources,Corporate Management,Corporate Management Costs,Baliff Fees,REVENUES COLLECTION,13/05/2022,REDACTED INVOICE NUMBER,159735,207.6,Revenue,4434,Reventus Limited,SG14 1DB,0
Director Corporate Resources,Corporate Management,Corporate Management Costs,Baliff Fees,REVENUES COLLECTION,27/05/2022,REDACTED INVOICE NUMBER,159736,75,Revenue,4434,Reventus Limited,SG14 1DB,0
Director Corporate Resources,Corporate Management,Corporate Management Costs,Baliff Fees,REVENUES COLLECTION,27/05/2022,REDACTED INVOICE NUMBER,159737,0,Revenue,4434,Reventus Limited,SG14 1DB,0
Director Corporate Resources,Human Resources,Human Resources,Training Expenses,Aspiring Managers 2022,24/05/2022,REDACTED INVOICE NUMBER,159102,6200,Revenue,28206,Richard Wills Training Assocition Ltd,NR18 0FT,0
Director Of Environment,Grounds Maintenance,Grounds Maintenance,Purchases - Materials,CONSUMABLES,24/05/2022,REDACTED INVOICE NUMBER,158686,538.5,Revenue,4449,Rigby Taylor Ltd,BL6 5HP,0
Hra Expenditure,Supervision And Management,Policy And Management,Project Management Support,CONSULTANCY CREDITS,03/05/2022,REDACTED INVOICE NUMBER,158446,6920,Revenue,26765,Right Data Ltd,IG4 5EX,0
Hra Expenditure,Supervision And Management,Policy And Management,Project Management Support,Advanced Consultancy Credits,31/05/2022,REDACTED INVOICE NUMBER,159636,6920,Revenue,26765,Right Data Ltd,IG4 5EX,0
Capex Director Of Environment,Corporate Services,Play Area Refurbishments,Contracted Services,CAMERA MAST AND CCTS,24/05/2022,REDACTED INVOICE NUMBER,158543,1248,Capital,28991,Rmc Surveys & Inspections Ltd,CM13 3FR,0
Capex Director Of Environment,Corporate Services,Play Area Refurbishments,Contracted Services,Hutton CCTV installation,24/05/2022,REDACTED INVOICE NUMBER,158620,500,Capital,28991,Rmc Surveys & Inspections Ltd,CM13 3FR,0
Capex Director Of Environment,Corporate Services,Play Area Refurbishments,Enhancements,Temporary/emergency CCTV hire,24/05/2022,REDACTED INVOICE NUMBER,159843,2500,Capital,28991,Rmc Surveys & Inspections Ltd,CM13 3FR,0
Director Housing & Enforcement,Cctv,Community Safety - Cctv,Miscellaneous Expenses,CCTV Repair - WIlsons Corner,24/05/2022,REDACTED INVOICE NUMBER,159517,500,Revenue,28991,Rmc Surveys & Inspections Ltd,CM13 3FR,0
Director Of Environment,Health & Food Safety,Corporate Health & Safety,Contracted Services,IDENTICOM SUBSCRIPTION,31/05/2022,REDACTED INVOICE NUMBER,159684,1890,Revenue,26658,Rocksure Systems Ltd,KT19 0DB,0
Hra Expenditure,Repairs And Maintenance,Planned Maintenance,R&M Fix & Fit - Fire Maintenan,FIRE CONSULTANCY APR '22,27/05/2022,REDACTED INVOICE NUMBER,159282,1425,Revenue,27008,Rowans Fire Ltd,DN22 9NQ,0
Balance Sheet,Balance Sheet,Balance Sheet,Contractor Retentions Account,DEMOLITION OF GARAGES,13/05/2022,REDACTED INVOICE NUMBER,158862,-134.77,Revenue,28406,Seh French Ltd,IP1 5LT,0
Capex Director Of Housing,Housing - Affordable Housing,Coram Green,Enhancements,DEMOLITION OF GARAGES,13/05/2022,REDACTED INVOICE NUMBER,158862,8984.94,Capital,28406,Seh French Ltd,IP1 5LT,0
Director Of Law & Governance,Legal Services & Data Protect,Legal Services & Data Protect,Project Management Support,PROJECT MANAGEMENT SUPPORT,06/05/2022,REDACTED INVOICE NUMBER,159286,1713.14,Revenue,4582,Sellick Partnership Group Ltd,M2 5HX,0
Capex Director Of Environment,Other Environmental Services,Disabled Facilities Grant,Grants - General,DISABLED FACILITIES GRANT,03/05/2022,REDACTED INVOICE NUMBER,158683,3223,Capital,28482,Shenfield Construction Ltd,CM15 9AG,0
Capex Director Of Environment,Other Environmental Services,Disabled Facilities Grant,Grants - General,DISABLED FACILITIES GRANT,10/05/2022,REDACTED INVOICE NUMBER,159437,2500,Capital,28482,Shenfield Construction Ltd,CM15 9AG,0
Capex Director Of Environment,Other Environmental Services,Disabled Facilities Grant,Grants - General,DISABLED FACILITIES GRANT,10/05/2022,REDACTED INVOICE NUMBER,159438,2500,Capital,28482,Shenfield Construction Ltd,CM15 9AG,0
Capex Director Of Environment,Other Environmental Services,Disabled Facilities Grant,Grants - General,DISABLED FACILITIES GRANT,27/05/2022,REDACTED INVOICE NUMBER,159916,1102,Capital,28482,Shenfield Construction Ltd,CM15 9AG,0
Balance Sheet,Balance Sheet,Balance Sheet,Agency - Local Elections,HIRE OF MAIN HALL - ELECTIONS,20/05/2022,REDACTED INVOICE NUMBER,159761,330.08,Revenue,24997,Shenfield Parish Hall,CM15 8LB,0
Director Digital & Customer En,Digital Servs & Transformation,Ict Services,Internet Services,Subscription Service Fee,06/05/2022,REDACTED INVOICE NUMBER,159519,1859.25,Revenue,4628,Siteimprove Ltd,SE1 9SG,0
Director Of Environment,Open Spaces,Sports Pitches,Purchases - General Equipment,Over-Marking Brentwood Pitch,24/05/2022,REDACTED INVOICE NUMBER,158747,875,Revenue,27425,Skippers Ground Maintenance Ltd,CM9 6RZ,0
Director Of Environment,Open Spaces,Sports Pitches,Purchases - General Equipment,PITCH MARKING,24/05/2022,REDACTED INVOICE NUMBER,158641,1870,Revenue,27425,Skippers Ground Maintenance Ltd,CM9 6RZ,0
Balance Sheet,Balance Sheet,Balance Sheet,Highways Stores,NITRILE GLOVES,27/05/2022,REDACTED INVOICE NUMBER,159491,1204.97,Revenue,24887,Smi Group,GU27 2QH,0
Director Digital & Customer En,Digital Servs & Transformation,Ict Services,Managed Services,MICROSOFT - FEB '22,06/05/2022,REDACTED INVOICE NUMBER,157148,621.72,Revenue,25036,Sol-Tec Ltd,RG1 8EQ,0
Director Digital & Customer En,Digital Servs & Transformation,Ict Services,Managed Services,Nerdio Manager - FEB '22,06/05/2022,REDACTED INVOICE NUMBER,157149,768.64,Revenue,25036,Sol-Tec Ltd,RG1 8EQ,0
Director Digital & Customer En,Digital Servs & Transformation,Ict Services,Managed Services,Microsoft March 2022,13/05/2022,REDACTED INVOICE NUMBER,159028,638.34,Revenue,25036,Sol-Tec Ltd,RG1 8EQ,0
Director Digital & Customer En,Digital Servs & Transformation,Ict Services,Managed Services,WVD LICENSE - MAR '22,13/05/2022,REDACTED INVOICE NUMBER,159109,786.28,Revenue,25036,Sol-Tec Ltd,RG1 8EQ,0
Director Digital & Customer En,Digital Servs & Transformation,Ict Services,Managed Services,New Tenant Support  Configuration,27/05/2022,REDACTED INVOICE NUMBER,159445,3695,Revenue,25036,Sol-Tec Ltd,RG1 8EQ,0
Hra Expenditure,Repairs And Maintenance,Responsive Void Repairs,Gas,GAS SUPPLY,20/05/2022,REDACTED INVOICE NUMBER,160014,332.54,Revenue,4674,Southern Electric Plc,PO9 5JB,0
Balance Sheet,Balance Sheet,Balance Sheet,Brentwood Centre Income - Slm,CROSS CHARGES Oct 21 - Jan 22,17/05/2022,REDACTED INVOICE NUMBER,158751,128395.84,Revenue,28440,Sports And Leisure Management,LE10 3EY,0
Director Housing & Enforcement,Homelessness,Homelessness Prevention,Rent Deposit Scheme,HOMELESSNESS PREVENTION,06/05/2022,REDACTED INVOICE NUMBER,159216,698.1,Revenue,28763,Stef Philips Ltd,N14 6BN,0
Director Housing & Enforcement,Homelessness,Homelessness Prevention,Rent Deposit Scheme,HOMELESSNESS PREVENTION,06/05/2022,REDACTED INVOICE NUMBER,159215,698.1,Revenue,28763,Stef Philips Ltd,N14 6BN,0
Director Housing & Enforcement,Homelessness,B&B Accommodation,B & B Charges (Homelessness),HOMELESSNESS PREVENTION,,REDACTED INVOICE NUMBER,155856,580,Revenue,28763,Stef Philips Ltd,N14 6BN,0
Director Corporate Resources,Asset Management,Street Lighting,R&M Other - General,"REPLACE ROAD LANTERN, ORCHARD VIEW",27/05/2022,REDACTED INVOICE NUMBER,159059,541.22,Revenue,28435,Sterling Electrical Contractors Ltd,N3 1XW,0
Director Of Environment,Vehicle Fleet Management,Vehicle Fleet Management,Vehicle Replacement Parts,VEHICLE PARTS,13/05/2022,REDACTED INVOICE NUMBER,159679,98.47,Revenue,4739,Steve Allan,RM3 0QS,0
Director Of Environment,Vehicle Fleet Management,Vehicle Fleet Management,Vehicle Replacement Parts,VEHICLE PARTS,20/05/2022,REDACTED INVOICE NUMBER,159678,49.08,Revenue,4739,Steve Allan,RM3 0QS,0
Director Of Environment,Vehicle Fleet Management,Vehicle Fleet Management,Vehicle Replacement Parts,VEHICLE PARTS,20/05/2022,REDACTED INVOICE NUMBER,159677,130,Revenue,4739,Steve Allan,RM3 0QS,0
Director Of Environment,Vehicle Fleet Management,Vehicle Fleet Management,Vehicle Replacement Parts,VEHICLE PARTS,24/05/2022,REDACTED INVOICE NUMBER,159676,113.14,Revenue,4739,Steve Allan,RM3 0QS,0
Director Of Planning & Economy,Planning Development Managemt,Planning Development Managemt,Other Professional Fees,SUSTAINABILITY VERIFICATION ,17/05/2022,REDACTED INVOICE NUMBER,159194,550,Revenue,28818,Susplan Limited,CM1 6LS,0
Director Of Planning & Economy,Planning Development Managemt,Planning Development Managemt,Other Professional Fees,SUSTAINABILITY VERIFICATION SE,31/05/2022,REDACTED INVOICE NUMBER,160512,670,Revenue,28818,Susplan Limited,CM1 6LS,0
Balance Sheet,Balance Sheet,Balance Sheet,Cis Contractors,CIS REFUND MAR 22,27/05/2022,REDACTED INVOICE NUMBER,159764,3,Revenue,4791,T Jones,CM13 1NS,0
Director Corporate Resources,Asset Management,Asset Management,R&M Bldgs - General,PLUMBING WORKS - BISHOPS HALL,27/05/2022,REDACTED INVOICE NUMBER,159766,224.1,Revenue,4791,T Jones,CM13 1NS,0
Director Corporate Resources,Asset Management,Asset Management,R&M Bldgs - General,"PLUMBIN WORKS - TOILETS, INGATESTONE",27/05/2022,REDACTED INVOICE NUMBER,160430,55,Revenue,4791,T Jones,CM13 1NS,0
Director Corporate Resources,Asset Management,Asset Management,R&M Bldgs - General,INSPECTION OF ALARM SYSTEMS,27/05/2022,REDACTED INVOICE NUMBER,160454,800,Revenue,28358,T R Fire And Security Ltd,CO12 5AH,0
Hra Expenditure,Repairs And Maintenance,Responsive Void Repairs,R&M Bldgs - General,LIFT REPAIR,24/05/2022,REDACTED INVOICE NUMBER,158861,259,Revenue,165551P,Terry Group Ltd,WA16 8PR,0
Balance Sheet,Balance Sheet,Balance Sheet,Highways Stores,COMPOSTABLE LINERS,06/05/2022,REDACTED INVOICE NUMBER,158413,4147.2,Revenue,357,The Compost Bag Company Limited,PR26 7PF,0
Hra Expenditure,Repairs And Maintenance,Planned Maintenance,Customer Surveys,DOMESTIC MANAGEMENT SURVEYS,27/05/2022,REDACTED INVOICE NUMBER,159637,7300,Revenue,27949,The Hazard Management & Environmental Service,PE28 9LJ,0
Hra Expenditure,Repairs And Maintenance,Planned Maintenance,Customer Surveys,Re-Inspection Survey,27/05/2022,REDACTED INVOICE NUMBER,159650,6739.75,Revenue,27949,The Hazard Management & Environmental Service,PE28 9LJ,0
Capex Director Of Housing,Housing - Hra,Asbestos,Enhancements,DOMESTIC MANAGEMENT SURVEYS,31/05/2022,REDACTED INVOICE NUMBER,159225,4258,Capital,27949,The Hazard Management & Environmental Service,PE28 9LJ,0
Hra Expenditure,Repairs And Maintenance,Planned Maintenance,Customer Surveys,MANAGEMENT SURVEYS,31/05/2022,REDACTED INVOICE NUMBER,158734,252,Revenue,27949,The Hazard Management & Environmental Service,PE28 9LJ,0
Hra Expenditure,Repairs And Maintenance,Responsive Void Repairs,R&M Bldgs - Asbestos,DOMESTIC MANAGEMENT SURVEYS,31/05/2022,REDACTED INVOICE NUMBER,159224,700,Revenue,27949,The Hazard Management & Environmental Service,PE28 9LJ,0
Director Of Planning & Economy,Planning Development Managemt,Planning Development Managemt,Agency Staff,PROJECT MANAGEMENT SUPPORT,06/05/2022,REDACTED INVOICE NUMBER,158507,1242,Revenue,4890,The Oyster Partnership,SW1Y 4QX,0
Director Of Planning & Economy,Planning Development Managemt,Planning Development Managemt,Agency Staff,PROJECT MANAGEMENT SUPPORT,06/05/2022,REDACTED INVOICE NUMBER,158509,1615,Revenue,4890,The Oyster Partnership,SW1Y 4QX,0
Director Of Planning & Economy,Planning Development Managemt,Planning Development Managemt,Agency Staff,PROJECT MANAGEMENT SUPPORT,06/05/2022,REDACTED INVOICE NUMBER,158508,171,Revenue,4890,The Oyster Partnership,SW1Y 4QX,0
Director Of Planning & Economy,Planning Policy Total,Planning Policy,Project Management Support,PROJECT MANAGEMENT SUPPORT,06/05/2022,REDACTED INVOICE NUMBER,158501,2775,Revenue,4890,The Oyster Partnership,SW1Y 4QX,0
Director Of Planning & Economy,Planning Development Managemt,Planning Development Managemt,Agency Staff,PROJECT MANAGEMENT SUPPORT,10/05/2022,REDACTED INVOICE NUMBER,158594,1476.45,Revenue,4890,The Oyster Partnership,SW1Y 4QX,0
Director Of Planning & Economy,Planning Development Managemt,Planning Development Managemt,Agency Staff,PROJECT MANAGEMENT SUPPORT,10/05/2022,REDACTED INVOICE NUMBER,158593,1575.58,Revenue,4890,The Oyster Partnership,SW1Y 4QX,0
Director Of Planning & Economy,Planning Development Managemt,Planning Development Managemt,Agency Staff,PROJECT MANAGEMENT SUPPORT,10/05/2022,REDACTED INVOICE NUMBER,158590,1772.19,Revenue,4890,The Oyster Partnership,SW1Y 4QX,0
Director Of Planning & Economy,Planning Development Managemt,Planning Development Managemt,Agency Staff,PROJECT MANAGEMENT SUPPORT,20/05/2022,REDACTED INVOICE NUMBER,158873,1208.46,Revenue,4890,The Oyster Partnership,SW1Y 4QX,0
Director Of Planning & Economy,Planning Development Managemt,Planning Development Managemt,Agency Staff,PROJECT MANAGEMENT SUPPORT,20/05/2022,REDACTED INVOICE NUMBER,158874,1571.3,Revenue,4890,The Oyster Partnership,SW1Y 4QX,0
Director Of Planning & Economy,Planning Development Managemt,Planning Development Managemt,Agency Staff,PROJECT MANAGEMENT SUPPORT,20/05/2022,REDACTED INVOICE NUMBER,158871,1788.03,Revenue,4890,The Oyster Partnership,SW1Y 4QX,0
Director Of Planning & Economy,Planning Policy Total,Planning Policy,Project Management Support,PROJECT MANAGEMENT SUPPORT,20/05/2022,REDACTED INVOICE NUMBER,158875,1998,Revenue,4890,The Oyster Partnership,SW1Y 4QX,0
Director Of Planning & Economy,Planning Policy Total,Planning Policy,Project Management Support,PROJECT MANAGEMENT SUPPORT,20/05/2022,REDACTED INVOICE NUMBER,158872,2294,Revenue,4890,The Oyster Partnership,SW1Y 4QX,0
Director Of Planning & Economy,Planning Policy Total,Planning Policy,Project Management Support,PROJECT MANAGEMENT SUPPORT,44708,REDACTED INVOICE NUMBER,159245,2331,Revenue,4890,The Oyster Partnership,SW1Y 4QX,0
Director Of Planning & Economy,Economic Development Total,Economic Development,Other Fees & Service,Fair Banners,44701,REDACTED INVOICE NUMBER,159609,160,Revenue,25788,The Styleworks,CM13 1XG,0
Director Of Environment,Env Health & Licensing Admin,Env Health & Licensing Admin,Contracted Services,ENV HEALTH SHARED SERVICE. OCT-DEC'21,44684,REDACTED INVOICE NUMBER,157366,6290.43,Revenue,4931,Thurrock Borough Council,RM17 6LT,0
Director Of Environment,Env Health Team & Support,Env Health Team & Support,Contracted Services,ENV HEALTH SHARED SERVICE. OCT-DEC'21,44684,REDACTED INVOICE NUMBER,157366,14697.67,Revenue,4931,Thurrock Borough Council,RM17 6LT,0
Director Of Environment,Health & Food Safety,Food & Health Support,Contracted Services,ENV HEALTH SHARED SERVICE. OCT-DEC'21,44684,REDACTED INVOICE NUMBER,157366,15488.04,Revenue,4931,Thurrock Borough Council,RM17 6LT,0
Director Of Environment,Licensing,Licensing Team & Support,Contracted Services,ENV HEALTH SHARED SERVICE. OCT-DEC'21,44684,REDACTED INVOICE NUMBER,157366,9144.43,Revenue,4931,Thurrock Borough Council,RM17 6LT,0
Director Of Environment,Parking,Parking Services,Managed Services,TRAFFIC ENFORCEMENT,44712,REDACTED INVOICE NUMBER,160639,1500,Revenue,219400P,Traffic Enforcement Centre,NN1 2LH,0
Director Of Planning & Economy,Economic Development Total,Economic Development,Other Fees & Service,APRIL SOCIAL MEDIA MANAGEMENT,44701,REDACTED INVOICE NUMBER,159549,750,Revenue,28939,Villene Hyam,CM14 4PT,0
Director Of Environment,Open Spaces,Buildings & Stakeholders,Electricity,ELECTRICITY SUPPLY,44708,REDACTED INVOICE NUMBER,159773,452.93,Revenue,5070,Warley Primary School,CM14 5LF,0
Director Of Environment,Vehicle Fleet Management,Vehicle Fleet Management,Vehicle R&M - External,RECOVER SWEEPER,44694,REDACTED INVOICE NUMBER,159454,85,Revenue,5104,Whitehouse Recovery,CM14 5RP,0
Director Of Environment,Vehicle Fleet Management,Vehicle Fleet Management,Vehicle R&M - External,RECOVER TRACTOR,44694,REDACTED INVOICE NUMBER,159453,85,Revenue,5104,Whitehouse Recovery,CM14 5RP,0
Director Of Environment,Vehicle Fleet Management,Vehicle Fleet Management,Vehicle R&M - External,RECOVER ROAD SWEEPER,44705,REDACTED INVOICE NUMBER,159642,85,Revenue,5104,Whitehouse Recovery,CM14 5RP,0
Director Of Environment,Vehicle Fleet Management,Vehicle Fleet Management,Vehicle Replacement Parts,VEHICLE PARTS,44694,REDACTED INVOICE NUMBER,158637,297.05,Revenue,5142,Wright Parts,RM13 8NH,0
Director Of Environment,Vehicle Fleet Management,Vehicle Fleet Management,Vehicle Replacement Parts,VEHICLE PARTS,44705,REDACTED INVOICE NUMBER,159428,210.85,Revenue,5142,Wright Parts,RM13 8NH,0
Director Digital & Customer En,Digital Servs & Transformation,Ict Services,Photocopier Charges,Service Agreement. FEB - APR '22,44712,REDACTED INVOICE NUMBER,159657,215.87,Revenue,5149,Xerox (Uk) Ltd,UB8 1HS,0
Balance Sheet,Balance Sheet,Balance Sheet,Homes For Ukraine,HOMES FOR UKRAINE,44687,REDACTED INVOICE NUMBER,159506,600,Revenue,216930P,REDACTED PERSONAL DATA,REDACTED,0
Director Of Environment,Open Spaces,Recreation Areas,Insurances - General Claims,Insured Recovery Statement,44698,REDACTED INVOICE NUMBER,159660,500,Revenue,5169,Zurich Insurance Plc,PO15 7JZ,0
Balance Sheet,Balance Sheet,Balance Sheet,Insurance Account,ENGINEERING INSPECTION-22/23,44701,REDACTED INVOICE NUMBER,160022,12457.49,Revenue,5169,Zurich Insurance Plc,PO15 7JZ,0
Balance Sheet,Balance Sheet,Balance Sheet,Insurance Account,SUM INSURED-COMB POLICY 22/23,44701,REDACTED INVOICE NUMBER,160021,424858.37,Revenue,5169,Zurich Insurance Plc,PO15 7JZ,0
Balance Sheet,Balance Sheet,Balance Sheet,Insurance Account,SUM INSURED-FIRE GENERAL 22/23,44701,REDACTED INVOICE NUMBER,160019,55474.28,Revenue,5169,Zurich Insurance Plc,PO15 7JZ,0
Balance Sheet,Balance Sheet,Balance Sheet,Insurance Account,SUM INSURED-FIRE GENERAL 22/23,44701,REDACTED INVOICE NUMBER,160020,24412.73,Revenue,5169,Zurich Insurance Plc,PO15 7JZ,0
Balance Sheet,Balance Sheet,Balance Sheet,Insurance Account,SUM INSURED - TERRORISM -22/23,44701,REDACTED INVOICE NUMBER,160018,10846.27,Revenue,5169,Zurich Insurance Plc,PO15 7JZ,0
Balance Sheet,Balance Sheet,Balance Sheet,Insurance Account,SUM INSURED - TERRORISM -22/23,44701,REDACTED INVOICE NUMBER,160017,5756.35,Revenue,5169,Zurich Insurance Plc,PO15 7JZ,0
Balance Sheet,Balance Sheet,Balance Sheet,Insurance Account,SUM INSURED TERRORISM - 22/23,44701,REDACTED INVOICE NUMBER,160016,3678.21,Revenue,5169,Zurich Insurance Plc,PO15 7JZ,0
Balance Sheet,Balance Sheet,Balance Sheet,Insurance Account,RISK MANAGEMENT CONSULTANCY SERVICES,44705,REDACTED INVOICE NUMBER,159831,5000,Revenue,5169,Zurich Insurance Plc,PO15 7JZ,0
